Department Family,Entity,Date,Expense Type,Expense Area,Supplier,Transaction Number,Amount,Item Description
BEIS,UKRI - AHRC,02/03/2020,Research Grant Expenditure,Industrial Strategy Challenge Fund (ISCF) - Creative Clusters,"Royal Holloway, University of London",98701045,120000.00,Research Grant Expenditure
BEIS,UKRI - AHRC,02/03/2020,T&S UK - Public Transport,SMT,Unspecified,98701817,11.41,T&S UK - Public Transport
BEIS,UKRI - AHRC,02/03/2020,T&S UK - Subsistence,SMT,Unspecified,98701817,13.23,T&S UK - Subsistence
BEIS,UKRI - AHRC,02/03/2020,T&S UK - Subsistence,SMT,Unspecified,98701817,30.85,T&S UK - Subsistence
BEIS,UKRI - AHRC,02/03/2020,T&S UK - Subsistence,SMT,Unspecified,98701817,11.80,T&S UK - Subsistence
BEIS,UKRI - AHRC,02/03/2020,T&S UK - Subsistence,SMT,Unspecified,98701817,17.35,T&S UK - Subsistence
BEIS,UKRI - AHRC,02/03/2020,T&S UK - Subsistence,SMT,Unspecified,98701817,10.00,T&S UK - Subsistence
BEIS,UKRI - AHRC,02/03/2020,T&S UK - Public Transport,Industrial Strategy Challenge Fund (ISCF) - Creative Clusters,Unspecified,98701818,96.40,T&S UK - Public Transport
BEIS,UKRI - AHRC,02/03/2020,T&S UK - Subsistence,Industrial Strategy Challenge Fund (ISCF) - Creative Clusters,Unspecified,98701818,25.00,T&S UK - Subsistence
BEIS,UKRI - AHRC,02/03/2020,T&S UK - Subsistence,Industrial Strategy Challenge Fund (ISCF) - Creative Clusters,Unspecified,98701818,6.99,T&S UK - Subsistence
BEIS,UKRI - AHRC,02/03/2020,T&S UK - Subsistence,Industrial Strategy Challenge Fund (ISCF) - Creative Clusters,Unspecified,98701818,2.08,T&S UK - Subsistence
BEIS,UKRI - AHRC,02/03/2020,Research Grant Expenditure,Industrial Strategy Challenge Fund (ISCF) - Creative Clusters,"Royal Holloway, University of London",98701997,27601.08,Research Grant Expenditure
BEIS,UKRI - AHRC,02/03/2020,Research Grant Expenditure,Industrial Strategy Challenge Fund (ISCF) - Creative Clusters,"Royal Holloway, University of London",98702000,3264.42,Research Grant Expenditure
BEIS,UKRI - AHRC,02/03/2020,Research Grant Expenditure,Industrial Strategy Challenge Fund (ISCF) - Creative Clusters,"Royal Holloway, University of London",98702002,42480.00,Research Grant Expenditure
BEIS,UKRI - AHRC,02/03/2020,Research Grant Expenditure,Industrial Strategy Challenge Fund (ISCF) - Creative Clusters,"Royal Holloway, University of London",98702004,35689.87,Research Grant Expenditure
BEIS,UKRI - AHRC,02/03/2020,Non-staff travel and subsistance,Skills Strategy,Non Employee Expenses Supplier,98702680,184.00,Non-staff travel and subsistance
BEIS,UKRI - AHRC,02/03/2020,Non-staff travel and subsistance,Skills Strategy,Non Employee Expenses Supplier,98702681,226.45,Non-staff travel and subsistance
BEIS,UKRI - AHRC,02/03/2020,Non-staff travel and subsistance,Skills Strategy,Non Employee Expenses Supplier,98702682,72.84,Non-staff travel and subsistance
BEIS,UKRI - AHRC,02/03/2020,Non-staff travel and subsistance,SMT,Non Employee Expenses Supplier,98702731,14.89,Non-staff travel and subsistance
BEIS,UKRI - AHRC,02/03/2020,Non-staff travel and subsistance,SMT,Non Employee Expenses Supplier,98702732,146.86,Non-staff travel and subsistance
BEIS,UKRI - AHRC,02/03/2020,Non-staff travel and subsistance,SMT,Non Employee Expenses Supplier,98702733,29.68,Non-staff travel and subsistance
BEIS,UKRI - AHRC,02/03/2020,Non-staff travel and subsistance,Public and Stakeholder Engagement,Non Employee Expenses Supplier,98702734,158.84,Non-staff travel and subsistance
BEIS,UKRI - AHRC,02/03/2020,Non-staff travel and subsistance,SMT,Non Employee Expenses Supplier,98702735,1809.09,Non-staff travel and subsistance
BEIS,UKRI - AHRC,02/03/2020,Non-staff travel and subsistance,SMT,Non Employee Expenses Supplier,98702736,242.13,Non-staff travel and subsistance
BEIS,UKRI - AHRC,02/03/2020,Non-staff travel and subsistance,SMT,Non Employee Expenses Supplier,98702737,470.46,Non-staff travel and subsistance
BEIS,UKRI - AHRC,02/03/2020,Non-staff travel and subsistance,SMT,Non Employee Expenses Supplier,98702738,112.15,Non-staff travel and subsistance
BEIS,UKRI - AHRC,03/03/2020,Research Grant Expenditure,11546,UKRI - Economic & Social Research Council,98699941,24887.66,Research Grant Expenditure
BEIS,UKRI - AHRC,03/03/2020,Conferences & Seminars,Public and Stakeholder Engagement,The University of Manchester,98703597,282.00,Conferences & Seminars
BEIS,UKRI - AHRC,03/03/2020,Non-staff travel and subsistance,Executive Office,Non Employee Expenses Supplier,98703650,88.00,Non-staff travel and subsistance
BEIS,UKRI - AHRC,03/03/2020,Staff Training,Corporate Services,National Autistic Society (The),98704617,1554.00,Staff Training
BEIS,UKRI - AHRC,03/03/2020,T&S UK - Other Charges,GCRF - Programme Delivery,Unspecified,98704729,12.94,T&S UK - Other Charges
BEIS,UKRI - AHRC,03/03/2020,T&S UK - Public Transport,GCRF - Programme Delivery,Unspecified,98704729,10.00,T&S UK - Public Transport
BEIS,UKRI - AHRC,03/03/2020,T&S UK - Subsistence,GCRF - Programme Delivery,Unspecified,98704729,7.50,T&S UK - Subsistence
BEIS,UKRI - AHRC,03/03/2020,T&S UK - Subsistence,GCRF - Programme Delivery,Unspecified,98704729,20.59,T&S UK - Subsistence
BEIS,UKRI - AHRC,03/03/2020,T&S UK - Subsistence,GCRF - Programme Delivery,Unspecified,98704729,15.00,T&S UK - Subsistence
BEIS,UKRI - AHRC,03/03/2020,T&S UK - Subsistence,Infrastruture Roadmap,Unspecified,98704730,26.00,T&S UK - Subsistence
BEIS,UKRI - AHRC,03/03/2020,T&S UK - Other Charges,Public and Stakeholder Engagement,Unspecified,98707240,-16.00,T&S UK - Other Charges
BEIS,UKRI - AHRC,03/03/2020,T&S UK - Public Transport,Public and Stakeholder Engagement,Unspecified,98707240,-84.70,T&S UK - Public Transport
BEIS,UKRI - AHRC,03/03/2020,T&S UK - Subsistence,Public and Stakeholder Engagement,Unspecified,98707240,-81.62,T&S UK - Subsistence
BEIS,UKRI - AHRC,03/03/2020,UK - Professional Memberships & Subscriptions,Public and Stakeholder Engagement,Unspecified,98707240,-120.00,UK - Professional Memberships & Subscriptions
BEIS,UKRI - AHRC,04/03/2020,Cleaning & Sterilisation,Operations,Premier Farnell UK Ltd T/A Farnell Onecall,98686682,15.45,Cleaning & Sterilisation
BEIS,UKRI - AHRC,04/03/2020,Printing & Stationery,Operations,Premier Farnell UK Ltd T/A Farnell Onecall,98686682,1.87,Printing & Stationery
BEIS,UKRI - AHRC,04/03/2020,T&S UK - Vehicle Hire,Operations,Enterprise Rent-A-Car UK Ltd,98703759,163.42,T&S UK - Vehicle Hire
BEIS,UKRI - AHRC,04/03/2020,Health & Safety (inc. Medicals & Opticians),HR,Swindon Occupational Medical Services Ltd,98706407,1050.00,Health & Safety (inc. Medicals & Opticians)
BEIS,UKRI - AHRC,05/03/2020,Recruitment Costs,Corporate Services,Agenda Resource Management Ltd,98702808,153.91,Recruitment Costs
BEIS,UKRI - AHRC,05/03/2020,T&S Overseas - Accommodation,GCRF - Programme Delivery,Corporate Travel Management (North) Ltd,98706625,0.80,T&S Overseas - Accommodation
BEIS,UKRI - AHRC,05/03/2020,T&S Overseas - Accommodation,GCRF - Programme Delivery,Corporate Travel Management (North) Ltd,98706625,308.86,T&S Overseas - Accommodation
BEIS,UKRI - AHRC,05/03/2020,T&S Overseas - Accommodation,GCRF - Programme Delivery,Corporate Travel Management (North) Ltd,98706625,0.16,T&S Overseas - Accommodation
BEIS,UKRI - AHRC,05/03/2020,T&S Overseas - Accommodation,International Development and Area Studies,Corporate Travel Management (North) Ltd,98706625,0.80,T&S Overseas - Accommodation
BEIS,UKRI - AHRC,05/03/2020,T&S Overseas - Accommodation,International Development and Area Studies,Corporate Travel Management (North) Ltd,98706625,128.73,T&S Overseas - Accommodation
BEIS,UKRI - AHRC,05/03/2020,T&S Overseas - Accommodation,International Development and Area Studies,Corporate Travel Management (North) Ltd,98706625,0.50,T&S Overseas - Accommodation
BEIS,UKRI - AHRC,05/03/2020,T&S Overseas - Accommodation,International Development and Area Studies,Corporate Travel Management (North) Ltd,98706625,128.73,T&S Overseas - Accommodation
BEIS,UKRI - AHRC,05/03/2020,T&S Overseas - Accommodation,International Development and Area Studies,Corporate Travel Management (North) Ltd,98706625,0.80,T&S Overseas - Accommodation
BEIS,UKRI - AHRC,05/03/2020,T&S Overseas - Accommodation,International Development and Area Studies,Corporate Travel Management (North) Ltd,98706625,134.60,T&S Overseas - Accommodation
BEIS,UKRI - AHRC,05/03/2020,T&S Overseas - Accommodation,International Development and Area Studies,Corporate Travel Management (North) Ltd,98706625,0.42,T&S Overseas - Accommodation
BEIS,UKRI - AHRC,05/03/2020,T&S Overseas - Accommodation,Skills Strategy,Corporate Travel Management (North) Ltd,98706625,0.80,T&S Overseas - Accommodation
BEIS,UKRI - AHRC,05/03/2020,T&S Overseas - Accommodation,Skills Strategy,Corporate Travel Management (North) Ltd,98706625,214.12,T&S Overseas - Accommodation
BEIS,UKRI - AHRC,05/03/2020,T&S Overseas - Accommodation,Skills Strategy,Corporate Travel Management (North) Ltd,98706625,0.16,T&S Overseas - Accommodation
BEIS,UKRI - AHRC,05/03/2020,T&S Overseas - Flights,IS,Corporate Travel Management (North) Ltd,98706625,2.50,T&S Overseas - Flights
BEIS,UKRI - AHRC,05/03/2020,T&S Overseas - Flights,IS,Corporate Travel Management (North) Ltd,98706625,208.51,T&S Overseas - Flights
BEIS,UKRI - AHRC,05/03/2020,T&S Overseas - Flights,SMT,Corporate Travel Management (North) Ltd,98706625,9.50,T&S Overseas - Flights
BEIS,UKRI - AHRC,05/03/2020,T&S Overseas - Flights,SMT,Corporate Travel Management (North) Ltd,98706625,1497.47,T&S Overseas - Flights
BEIS,UKRI - AHRC,05/03/2020,T&S Overseas - Other Charges,JPI Cultural Heritage Project,Corporate Travel Management (North) Ltd,98706625,4.50,T&S Overseas - Other Charges
BEIS,UKRI - AHRC,05/03/2020,T&S Overseas - Other Charges,JPI Cultural Heritage Project,Corporate Travel Management (North) Ltd,98706625,164.00,T&S Overseas - Other Charges
BEIS,UKRI - AHRC,05/03/2020,T&S Overseas - Other Charges,SMT,Corporate Travel Management (North) Ltd,98706625,2.50,T&S Overseas - Other Charges
BEIS,UKRI - AHRC,05/03/2020,T&S Overseas - Other Charges,SMT,Corporate Travel Management (North) Ltd,98706625,1602.17,T&S Overseas - Other Charges
BEIS,UKRI - AHRC,05/03/2020,T&S UK - Accommodation,Corporate Services,Corporate Travel Management (North) Ltd,98706625,0.80,T&S UK - Accommodation
BEIS,UKRI - AHRC,05/03/2020,T&S UK - Accommodation,Corporate Services,Corporate Travel Management (North) Ltd,98706625,147.00,T&S UK - Accommodation
BEIS,UKRI - AHRC,05/03/2020,T&S UK - Accommodation,Corporate Services,Corporate Travel Management (North) Ltd,98706625,0.16,T&S UK - Accommodation
BEIS,UKRI - AHRC,05/03/2020,T&S UK - Accommodation,Digital Arts and Humanities and Creative Industries,Corporate Travel Management (North) Ltd,98706625,0.80,T&S UK - Accommodation
BEIS,UKRI - AHRC,05/03/2020,T&S UK - Accommodation,Digital Arts and Humanities and Creative Industries,Corporate Travel Management (North) Ltd,98706625,430.00,T&S UK - Accommodation
BEIS,UKRI - AHRC,05/03/2020,T&S UK - Accommodation,Digital Arts and Humanities and Creative Industries,Corporate Travel Management (North) Ltd,98706625,0.80,T&S UK - Accommodation
BEIS,UKRI - AHRC,05/03/2020,T&S UK - Accommodation,Digital Arts and Humanities and Creative Industries,Corporate Travel Management (North) Ltd,98706625,105.00,T&S UK - Accommodation
BEIS,UKRI - AHRC,05/03/2020,T&S UK - Accommodation,Digital Arts and Humanities and Creative Industries,Corporate Travel Management (North) Ltd,98706625,0.80,T&S UK - Accommodation
BEIS,UKRI - AHRC,05/03/2020,T&S UK - Accommodation,Digital Arts and Humanities and Creative Industries,Corporate Travel Management (North) Ltd,98706625,168.00,T&S UK - Accommodation
BEIS,UKRI - AHRC,05/03/2020,T&S UK - Accommodation,Digital Arts and Humanities and Creative Industries,Corporate Travel Management (North) Ltd,98706625,0.80,T&S UK - Accommodation
BEIS,UKRI - AHRC,05/03/2020,T&S UK - Accommodation,Digital Arts and Humanities and Creative Industries,Corporate Travel Management (North) Ltd,98706625,91.00,T&S UK - Accommodation
BEIS,UKRI - AHRC,05/03/2020,T&S UK - Accommodation,Digital Arts and Humanities and Creative Industries,Corporate Travel Management (North) Ltd,98706625,0.64,T&S UK - Accommodation
BEIS,UKRI - AHRC,05/03/2020,T&S UK - Accommodation,HR,Corporate Travel Management (North) Ltd,98706625,0.80,T&S UK - Accommodation
BEIS,UKRI - AHRC,05/03/2020,T&S UK - Accommodation,HR,Corporate Travel Management (North) Ltd,98706625,168.32,T&S UK - Accommodation
BEIS,UKRI - AHRC,05/03/2020,T&S UK - Accommodation,HR,Corporate Travel Management (North) Ltd,98706625,0.16,T&S UK - Accommodation
BEIS,UKRI - AHRC,05/03/2020,T&S UK - Accommodation,"History, Heritage, Languages and Literature",Corporate Travel Management (North) Ltd,98706625,0.80,T&S UK - Accommodation
BEIS,UKRI - AHRC,05/03/2020,T&S UK - Accommodation,"History, Heritage, Languages and Literature",Corporate Travel Management (North) Ltd,98706625,87.00,T&S UK - Accommodation
BEIS,UKRI - AHRC,05/03/2020,T&S UK - Accommodation,"History, Heritage, Languages and Literature",Corporate Travel Management (North) Ltd,98706625,0.16,T&S UK - Accommodation
BEIS,UKRI - AHRC,05/03/2020,T&S UK - Accommodation,Industrial Strategy Challenge Fund (ISCF) - Creative Clusters,Corporate Travel Management (North) Ltd,98706625,0.80,T&S UK - Accommodation
BEIS,UKRI - AHRC,05/03/2020,T&S UK - Accommodation,Industrial Strategy Challenge Fund (ISCF) - Creative Clusters,Corporate Travel Management (North) Ltd,98706625,74.00,T&S UK - Accommodation
BEIS,UKRI - AHRC,05/03/2020,T&S UK - Accommodation,Industrial Strategy Challenge Fund (ISCF) - Creative Clusters,Corporate Travel Management (North) Ltd,98706625,0.80,T&S UK - Accommodation
BEIS,UKRI - AHRC,05/03/2020,T&S UK - Accommodation,Industrial Strategy Challenge Fund (ISCF) - Creative Clusters,Corporate Travel Management (North) Ltd,98706625,0.80,T&S UK - Accommodation
BEIS,UKRI - AHRC,05/03/2020,T&S UK - Accommodation,Industrial Strategy Challenge Fund (ISCF) - Creative Clusters,Corporate Travel Management (North) Ltd,98706625,0.80,T&S UK - Accommodation
BEIS,UKRI - AHRC,05/03/2020,T&S UK - Accommodation,Industrial Strategy Challenge Fund (ISCF) - Creative Clusters,Corporate Travel Management (North) Ltd,98706625,0.80,T&S UK - Accommodation
BEIS,UKRI - AHRC,05/03/2020,T&S UK - Accommodation,Industrial Strategy Challenge Fund (ISCF) - Creative Clusters,Corporate Travel Management (North) Ltd,98706625,148.00,T&S UK - Accommodation
BEIS,UKRI - AHRC,05/03/2020,T&S UK - Accommodation,Industrial Strategy Challenge Fund (ISCF) - Creative Clusters,Corporate Travel Management (North) Ltd,98706625,0.80,T&S UK - Accommodation
BEIS,UKRI - AHRC,05/03/2020,T&S UK - Accommodation,Industrial Strategy Challenge Fund (ISCF) - Creative Clusters,Corporate Travel Management (North) Ltd,98706625,140.45,T&S UK - Accommodation
BEIS,UKRI - AHRC,05/03/2020,T&S UK - Accommodation,Industrial Strategy Challenge Fund (ISCF) - Creative Clusters,Corporate Travel Management (North) Ltd,98706625,0.80,T&S UK - Accommodation
BEIS,UKRI - AHRC,05/03/2020,T&S UK - Accommodation,Industrial Strategy Challenge Fund (ISCF) - Creative Clusters,Corporate Travel Management (North) Ltd,98706625,140.45,T&S UK - Accommodation
BEIS,UKRI - AHRC,05/03/2020,T&S UK - Accommodation,Industrial Strategy Challenge Fund (ISCF) - Creative Clusters,Corporate Travel Management (North) Ltd,98706625,1.12,T&S UK - Accommodation
BEIS,UKRI - AHRC,05/03/2020,T&S UK - Accommodation,International,Corporate Travel Management (North) Ltd,98706625,0.80,T&S UK - Accommodation
BEIS,UKRI - AHRC,05/03/2020,T&S UK - Accommodation,International,Corporate Travel Management (North) Ltd,98706625,138.00,T&S UK - Accommodation
BEIS,UKRI - AHRC,05/03/2020,T&S UK - Accommodation,International,Corporate Travel Management (North) Ltd,98706625,0.16,T&S UK - Accommodation
BEIS,UKRI - AHRC,05/03/2020,T&S UK - Accommodation,International Partnership and Engagement,Corporate Travel Management (North) Ltd,98706625,0.80,T&S UK - Accommodation
BEIS,UKRI - AHRC,05/03/2020,T&S UK - Accommodation,International Partnership and Engagement,Corporate Travel Management (North) Ltd,98706625,119.25,T&S UK - Accommodation
BEIS,UKRI - AHRC,05/03/2020,T&S UK - Accommodation,International Partnership and Engagement,Corporate Travel Management (North) Ltd,98706625,0.80,T&S UK - Accommodation
BEIS,UKRI - AHRC,05/03/2020,T&S UK - Accommodation,International Partnership and Engagement,Corporate Travel Management (North) Ltd,98706625,119.25,T&S UK - Accommodation
BEIS,UKRI - AHRC,05/03/2020,T&S UK - Accommodation,International Partnership and Engagement,Corporate Travel Management (North) Ltd,98706625,0.32,T&S UK - Accommodation
BEIS,UKRI - AHRC,05/03/2020,T&S UK - Accommodation,Operations,Corporate Travel Management (North) Ltd,98706625,0.80,T&S UK - Accommodation
BEIS,UKRI - AHRC,05/03/2020,T&S UK - Accommodation,Operations,Corporate Travel Management (North) Ltd,98706625,154.00,T&S UK - Accommodation
BEIS,UKRI - AHRC,05/03/2020,T&S UK - Accommodation,Operations,Corporate Travel Management (North) Ltd,98706625,0.80,T&S UK - Accommodation
BEIS,UKRI - AHRC,05/03/2020,T&S UK - Accommodation,Operations,Corporate Travel Management (North) Ltd,98706625,154.00,T&S UK - Accommodation
BEIS,UKRI - AHRC,05/03/2020,T&S UK - Accommodation,Operations,Corporate Travel Management (North) Ltd,98706625,0.80,T&S UK - Accommodation
BEIS,UKRI - AHRC,05/03/2020,T&S UK - Accommodation,Operations,Corporate Travel Management (North) Ltd,98706625,63.29,T&S UK - Accommodation
BEIS,UKRI - AHRC,05/03/2020,T&S UK - Accommodation,Operations,Corporate Travel Management (North) Ltd,98706625,0.80,T&S UK - Accommodation
BEIS,UKRI - AHRC,05/03/2020,T&S UK - Accommodation,Operations,Corporate Travel Management (North) Ltd,98706625,63.29,T&S UK - Accommodation
BEIS,UKRI - AHRC,05/03/2020,T&S UK - Accommodation,Operations,Corporate Travel Management (North) Ltd,98706625,0.80,T&S UK - Accommodation
BEIS,UKRI - AHRC,05/03/2020,T&S UK - Accommodation,Operations,Corporate Travel Management (North) Ltd,98706625,63.29,T&S UK - Accommodation
BEIS,UKRI - AHRC,05/03/2020,T&S UK - Accommodation,Operations,Corporate Travel Management (North) Ltd,98706625,0.80,T&S UK - Accommodation
BEIS,UKRI - AHRC,05/03/2020,T&S UK - Accommodation,Operations,Corporate Travel Management (North) Ltd,98706625,63.29,T&S UK - Accommodation
BEIS,UKRI - AHRC,05/03/2020,T&S UK - Accommodation,Operations,Corporate Travel Management (North) Ltd,98706625,0.80,T&S UK - Accommodation
BEIS,UKRI - AHRC,05/03/2020,T&S UK - Accommodation,Operations,Corporate Travel Management (North) Ltd,98706625,63.29,T&S UK - Accommodation
BEIS,UKRI - AHRC,05/03/2020,T&S UK - Accommodation,Operations,Corporate Travel Management (North) Ltd,98706625,0.80,T&S UK - Accommodation
BEIS,UKRI - AHRC,05/03/2020,T&S UK - Accommodation,Operations,Corporate Travel Management (North) Ltd,98706625,107.10,T&S UK - Accommodation
BEIS,UKRI - AHRC,05/03/2020,T&S UK - Accommodation,Operations,Corporate Travel Management (North) Ltd,98706625,0.80,T&S UK - Accommodation
BEIS,UKRI - AHRC,05/03/2020,T&S UK - Accommodation,Operations,Corporate Travel Management (North) Ltd,98706625,107.10,T&S UK - Accommodation
BEIS,UKRI - AHRC,05/03/2020,T&S UK - Accommodation,Operations,Corporate Travel Management (North) Ltd,98706625,0.80,T&S UK - Accommodation
BEIS,UKRI - AHRC,05/03/2020,T&S UK - Accommodation,Operations,Corporate Travel Management (North) Ltd,98706625,42.08,T&S UK - Accommodation
BEIS,UKRI - AHRC,05/03/2020,T&S UK - Accommodation,Operations,Corporate Travel Management (North) Ltd,98706625,0.80,T&S UK - Accommodation
BEIS,UKRI - AHRC,05/03/2020,T&S UK - Accommodation,Operations,Corporate Travel Management (North) Ltd,98706625,45.11,T&S UK - Accommodation
BEIS,UKRI - AHRC,05/03/2020,T&S UK - Accommodation,Operations,Corporate Travel Management (North) Ltd,98706625,0.80,T&S UK - Accommodation
BEIS,UKRI - AHRC,05/03/2020,T&S UK - Accommodation,Operations,Corporate Travel Management (North) Ltd,98706625,69.00,T&S UK - Accommodation
BEIS,UKRI - AHRC,05/03/2020,T&S UK - Accommodation,Operations,Corporate Travel Management (North) Ltd,98706625,0.80,T&S UK - Accommodation
BEIS,UKRI - AHRC,05/03/2020,T&S UK - Accommodation,Operations,Corporate Travel Management (North) Ltd,98706625,69.00,T&S UK - Accommodation
BEIS,UKRI - AHRC,05/03/2020,T&S UK - Accommodation,Operations,Corporate Travel Management (North) Ltd,98706625,0.80,T&S UK - Accommodation
BEIS,UKRI - AHRC,05/03/2020,T&S UK - Accommodation,Operations,Corporate Travel Management (North) Ltd,98706625,69.00,T&S UK - Accommodation
BEIS,UKRI - AHRC,05/03/2020,T&S UK - Accommodation,Operations,Corporate Travel Management (North) Ltd,98706625,0.80,T&S UK - Accommodation
BEIS,UKRI - AHRC,05/03/2020,T&S UK - Accommodation,Operations,Corporate Travel Management (North) Ltd,98706625,69.00,T&S UK - Accommodation
BEIS,UKRI - AHRC,05/03/2020,T&S UK - Accommodation,Operations,Corporate Travel Management (North) Ltd,98706625,0.80,T&S UK - Accommodation
BEIS,UKRI - AHRC,05/03/2020,T&S UK - Accommodation,Operations,Corporate Travel Management (North) Ltd,98706625,69.00,T&S UK - Accommodation
BEIS,UKRI - AHRC,05/03/2020,T&S UK - Accommodation,Operations,Corporate Travel Management (North) Ltd,98706625,0.80,T&S UK - Accommodation
BEIS,UKRI - AHRC,05/03/2020,T&S UK - Accommodation,Operations,Corporate Travel Management (North) Ltd,98706625,69.00,T&S UK - Accommodation
BEIS,UKRI - AHRC,05/03/2020,T&S UK - Accommodation,Operations,Corporate Travel Management (North) Ltd,98706625,0.80,T&S UK - Accommodation
BEIS,UKRI - AHRC,05/03/2020,T&S UK - Accommodation,Operations,Corporate Travel Management (North) Ltd,98706625,45.11,T&S UK - Accommodation
BEIS,UKRI - AHRC,05/03/2020,T&S UK - Accommodation,Operations,Corporate Travel Management (North) Ltd,98706625,0.80,T&S UK - Accommodation
BEIS,UKRI - AHRC,05/03/2020,T&S UK - Accommodation,Operations,Corporate Travel Management (North) Ltd,98706625,45.11,T&S UK - Accommodation
BEIS,UKRI - AHRC,05/03/2020,T&S UK - Accommodation,Operations,Corporate Travel Management (North) Ltd,98706625,0.80,T&S UK - Accommodation
BEIS,UKRI - AHRC,05/03/2020,T&S UK - Accommodation,Operations,Corporate Travel Management (North) Ltd,98706625,45.11,T&S UK - Accommodation
BEIS,UKRI - AHRC,05/03/2020,T&S UK - Accommodation,Operations,Corporate Travel Management (North) Ltd,98706625,3.20,T&S UK - Accommodation
BEIS,UKRI - AHRC,05/03/2020,T&S UK - Accommodation,Public and Stakeholder Engagement,Corporate Travel Management (North) Ltd,98706625,0.80,T&S UK - Accommodation
BEIS,UKRI - AHRC,05/03/2020,T&S UK - Accommodation,Public and Stakeholder Engagement,Corporate Travel Management (North) Ltd,98706625,312.42,T&S UK - Accommodation
BEIS,UKRI - AHRC,05/03/2020,T&S UK - Accommodation,Public and Stakeholder Engagement,Corporate Travel Management (North) Ltd,98706625,0.80,T&S UK - Accommodation
BEIS,UKRI - AHRC,05/03/2020,T&S UK - Accommodation,Public and Stakeholder Engagement,Corporate Travel Management (North) Ltd,98706625,312.42,T&S UK - Accommodation
BEIS,UKRI - AHRC,05/03/2020,T&S UK - Accommodation,Public and Stakeholder Engagement,Corporate Travel Management (North) Ltd,98706625,0.80,T&S UK - Accommodation
BEIS,UKRI - AHRC,05/03/2020,T&S UK - Accommodation,Public and Stakeholder Engagement,Corporate Travel Management (North) Ltd,98706625,312.42,T&S UK - Accommodation
BEIS,UKRI - AHRC,05/03/2020,T&S UK - Accommodation,Public and Stakeholder Engagement,Corporate Travel Management (North) Ltd,98706625,0.80,T&S UK - Accommodation
BEIS,UKRI - AHRC,05/03/2020,T&S UK - Accommodation,Public and Stakeholder Engagement,Corporate Travel Management (North) Ltd,98706625,312.42,T&S UK - Accommodation
BEIS,UKRI - AHRC,05/03/2020,T&S UK - Accommodation,Public and Stakeholder Engagement,Corporate Travel Management (North) Ltd,98706625,0.80,T&S UK - Accommodation
BEIS,UKRI - AHRC,05/03/2020,T&S UK - Accommodation,Public and Stakeholder Engagement,Corporate Travel Management (North) Ltd,98706625,312.42,T&S UK - Accommodation
BEIS,UKRI - AHRC,05/03/2020,T&S UK - Accommodation,Public and Stakeholder Engagement,Corporate Travel Management (North) Ltd,98706625,0.80,T&S UK - Accommodation
BEIS,UKRI - AHRC,05/03/2020,T&S UK - Accommodation,Public and Stakeholder Engagement,Corporate Travel Management (North) Ltd,98706625,167.00,T&S UK - Accommodation
BEIS,UKRI - AHRC,05/03/2020,T&S UK - Accommodation,Public and Stakeholder Engagement,Corporate Travel Management (North) Ltd,98706625,0.80,T&S UK - Accommodation
BEIS,UKRI - AHRC,05/03/2020,T&S UK - Accommodation,Public and Stakeholder Engagement,Corporate Travel Management (North) Ltd,98706625,167.00,T&S UK - Accommodation
BEIS,UKRI - AHRC,05/03/2020,T&S UK - Accommodation,Public and Stakeholder Engagement,Corporate Travel Management (North) Ltd,98706625,0.80,T&S UK - Accommodation
BEIS,UKRI - AHRC,05/03/2020,T&S UK - Accommodation,Public and Stakeholder Engagement,Corporate Travel Management (North) Ltd,98706625,167.00,T&S UK - Accommodation
BEIS,UKRI - AHRC,05/03/2020,T&S UK - Accommodation,Public and Stakeholder Engagement,Corporate Travel Management (North) Ltd,98706625,0.80,T&S UK - Accommodation
BEIS,UKRI - AHRC,05/03/2020,T&S UK - Accommodation,Public and Stakeholder Engagement,Corporate Travel Management (North) Ltd,98706625,0.80,T&S UK - Accommodation
BEIS,UKRI - AHRC,05/03/2020,T&S UK - Accommodation,Public and Stakeholder Engagement,Corporate Travel Management (North) Ltd,98706625,167.00,T&S UK - Accommodation
BEIS,UKRI - AHRC,05/03/2020,T&S UK - Accommodation,Public and Stakeholder Engagement,Corporate Travel Management (North) Ltd,98706625,1.60,T&S UK - Accommodation
BEIS,UKRI - AHRC,05/03/2020,T&S UK - Accommodation,SMT,Corporate Travel Management (North) Ltd,98706625,0.80,T&S UK - Accommodation
BEIS,UKRI - AHRC,05/03/2020,T&S UK - Accommodation,SMT,Corporate Travel Management (North) Ltd,98706625,179.00,T&S UK - Accommodation
BEIS,UKRI - AHRC,05/03/2020,T&S UK - Accommodation,SMT,Corporate Travel Management (North) Ltd,98706625,0.80,T&S UK - Accommodation
BEIS,UKRI - AHRC,05/03/2020,T&S UK - Accommodation,SMT,Corporate Travel Management (North) Ltd,98706625,188.70,T&S UK - Accommodation
BEIS,UKRI - AHRC,05/03/2020,T&S UK - Accommodation,SMT,Corporate Travel Management (North) Ltd,98706625,0.80,T&S UK - Accommodation
BEIS,UKRI - AHRC,05/03/2020,T&S UK - Accommodation,SMT,Corporate Travel Management (North) Ltd,98706625,588.76,T&S UK - Accommodation
BEIS,UKRI - AHRC,05/03/2020,T&S UK - Accommodation,SMT,Corporate Travel Management (North) Ltd,98706625,0.80,T&S UK - Accommodation
BEIS,UKRI - AHRC,05/03/2020,T&S UK - Accommodation,SMT,Corporate Travel Management (North) Ltd,98706625,154.00,T&S UK - Accommodation
BEIS,UKRI - AHRC,05/03/2020,T&S UK - Accommodation,SMT,Corporate Travel Management (North) Ltd,98706625,0.80,T&S UK - Accommodation
BEIS,UKRI - AHRC,05/03/2020,T&S UK - Accommodation,SMT,Corporate Travel Management (North) Ltd,98706625,90.00,T&S UK - Accommodation
BEIS,UKRI - AHRC,05/03/2020,T&S UK - Accommodation,SMT,Corporate Travel Management (North) Ltd,98706625,0.80,T&S UK - Accommodation
BEIS,UKRI - AHRC,05/03/2020,T&S UK - Accommodation,Secretariat,Corporate Travel Management (North) Ltd,98706625,0.80,T&S UK - Accommodation
BEIS,UKRI - AHRC,05/03/2020,T&S UK - Accommodation,Secretariat,Corporate Travel Management (North) Ltd,98706625,103.50,T&S UK - Accommodation
BEIS,UKRI - AHRC,05/03/2020,T&S UK - Accommodation,Secretariat,Corporate Travel Management (North) Ltd,98706625,0.80,T&S UK - Accommodation
BEIS,UKRI - AHRC,05/03/2020,T&S UK - Accommodation,Secretariat,Corporate Travel Management (North) Ltd,98706625,75.00,T&S UK - Accommodation
BEIS,UKRI - AHRC,05/03/2020,T&S UK - Accommodation,Secretariat,Corporate Travel Management (North) Ltd,98706625,0.32,T&S UK - Accommodation
BEIS,UKRI - AHRC,05/03/2020,T&S UK - Accommodation,Skills Strategy,Corporate Travel Management (North) Ltd,98706625,0.80,T&S UK - Accommodation
BEIS,UKRI - AHRC,05/03/2020,T&S UK - Accommodation,Skills Strategy,Corporate Travel Management (North) Ltd,98706625,43.63,T&S UK - Accommodation
BEIS,UKRI - AHRC,05/03/2020,T&S UK - Accommodation,Skills Strategy,Corporate Travel Management (North) Ltd,98706625,0.80,T&S UK - Accommodation
BEIS,UKRI - AHRC,05/03/2020,T&S UK - Accommodation,Skills Strategy,Corporate Travel Management (North) Ltd,98706625,43.63,T&S UK - Accommodation
BEIS,UKRI - AHRC,05/03/2020,T&S UK - Accommodation,Skills Strategy,Corporate Travel Management (North) Ltd,98706625,0.80,T&S UK - Accommodation
BEIS,UKRI - AHRC,05/03/2020,T&S UK - Accommodation,Skills Strategy,Corporate Travel Management (North) Ltd,98706625,43.63,T&S UK - Accommodation
BEIS,UKRI - AHRC,05/03/2020,T&S UK - Accommodation,Skills Strategy,Corporate Travel Management (North) Ltd,98706625,0.48,T&S UK - Accommodation
BEIS,UKRI - AHRC,05/03/2020,T&S UK - Flights,Industrial Strategy Challenge Fund (ISCF) - Creative Clusters,Corporate Travel Management (North) Ltd,98706625,2.50,T&S UK - Flights
BEIS,UKRI - AHRC,05/03/2020,T&S UK - Flights,Industrial Strategy Challenge Fund (ISCF) - Creative Clusters,Corporate Travel Management (North) Ltd,98706625,157.98,T&S UK - Flights
BEIS,UKRI - AHRC,05/03/2020,T&S UK - Flights,SMT,Corporate Travel Management (North) Ltd,98706625,2.50,T&S UK - Flights
BEIS,UKRI - AHRC,05/03/2020,T&S UK - Flights,SMT,Corporate Travel Management (North) Ltd,98706625,25.99,T&S UK - Flights
BEIS,UKRI - AHRC,05/03/2020,T&S UK - Flights,SMT,Corporate Travel Management (North) Ltd,98706625,2.50,T&S UK - Flights
BEIS,UKRI - AHRC,05/03/2020,T&S UK - Flights,SMT,Corporate Travel Management (North) Ltd,98706625,38.38,T&S UK - Flights
BEIS,UKRI - AHRC,05/03/2020,T&S UK - Flights,SMT,Corporate Travel Management (North) Ltd,98706625,2.50,T&S UK - Flights
BEIS,UKRI - AHRC,05/03/2020,T&S UK - Flights,SMT,Corporate Travel Management (North) Ltd,98706625,1976.36,T&S UK - Flights
BEIS,UKRI - AHRC,05/03/2020,T&S UK - Other Charges,Operations,Corporate Travel Management (North) Ltd,98706625,2.50,T&S UK - Other Charges
BEIS,UKRI - AHRC,05/03/2020,T&S UK - Other Charges,Operations,Corporate Travel Management (North) Ltd,98706625,15.41,T&S UK - Other Charges
BEIS,UKRI - AHRC,05/03/2020,T&S UK - Other Charges,Operations,Corporate Travel Management (North) Ltd,98706625,2.50,T&S UK - Other Charges
BEIS,UKRI - AHRC,05/03/2020,T&S UK - Other Charges,Operations,Corporate Travel Management (North) Ltd,98706625,12.95,T&S UK - Other Charges
BEIS,UKRI - AHRC,05/03/2020,T&S UK - Other Charges,Operations,Corporate Travel Management (North) Ltd,98706625,1.00,T&S UK - Other Charges
BEIS,UKRI - AHRC,05/03/2020,T&S UK - Public Transport,Digital Arts and Humanities and Creative Industries,Corporate Travel Management (North) Ltd,98706625,0.25,T&S UK - Public Transport
BEIS,UKRI - AHRC,05/03/2020,T&S UK - Public Transport,Digital Arts and Humanities and Creative Industries,Corporate Travel Management (North) Ltd,98706625,25.10,T&S UK - Public Transport
BEIS,UKRI - AHRC,05/03/2020,T&S UK - Public Transport,Digital Arts and Humanities and Creative Industries,Corporate Travel Management (North) Ltd,98706625,0.25,T&S UK - Public Transport
BEIS,UKRI - AHRC,05/03/2020,T&S UK - Public Transport,Digital Arts and Humanities and Creative Industries,Corporate Travel Management (North) Ltd,98706625,148.00,T&S UK - Public Transport
BEIS,UKRI - AHRC,05/03/2020,T&S UK - Public Transport,Digital Arts and Humanities and Creative Industries,Corporate Travel Management (North) Ltd,98706625,0.25,T&S UK - Public Transport
BEIS,UKRI - AHRC,05/03/2020,T&S UK - Public Transport,Digital Arts and Humanities and Creative Industries,Corporate Travel Management (North) Ltd,98706625,50.80,T&S UK - Public Transport
BEIS,UKRI - AHRC,05/03/2020,T&S UK - Public Transport,Digital Arts and Humanities and Creative Industries,Corporate Travel Management (North) Ltd,98706625,0.25,T&S UK - Public Transport
BEIS,UKRI - AHRC,05/03/2020,T&S UK - Public Transport,Digital Arts and Humanities and Creative Industries,Corporate Travel Management (North) Ltd,98706625,80.00,T&S UK - Public Transport
BEIS,UKRI - AHRC,05/03/2020,T&S UK - Public Transport,Digital Arts and Humanities and Creative Industries,Corporate Travel Management (North) Ltd,98706625,0.50,T&S UK - Public Transport
BEIS,UKRI - AHRC,05/03/2020,T&S UK - Public Transport,Digital Arts and Humanities and Creative Industries,Corporate Travel Management (North) Ltd,98706625,68.50,T&S UK - Public Transport
BEIS,UKRI - AHRC,05/03/2020,T&S UK - Public Transport,Digital Arts and Humanities and Creative Industries,Corporate Travel Management (North) Ltd,98706625,52.60,T&S UK - Public Transport
BEIS,UKRI - AHRC,05/03/2020,T&S UK - Public Transport,Digital Arts and Humanities and Creative Industries,Corporate Travel Management (North) Ltd,98706625,0.25,T&S UK - Public Transport
BEIS,UKRI - AHRC,05/03/2020,T&S UK - Public Transport,Digital Arts and Humanities and Creative Industries,Corporate Travel Management (North) Ltd,98706625,80.50,T&S UK - Public Transport
BEIS,UKRI - AHRC,05/03/2020,T&S UK - Public Transport,Digital Arts and Humanities and Creative Industries,Corporate Travel Management (North) Ltd,98706625,0.75,T&S UK - Public Transport
BEIS,UKRI - AHRC,05/03/2020,T&S UK - Public Transport,Digital Arts and Humanities and Creative Industries,Corporate Travel Management (North) Ltd,98706625,28.20,T&S UK - Public Transport
BEIS,UKRI - AHRC,05/03/2020,T&S UK - Public Transport,Digital Arts and Humanities and Creative Industries,Corporate Travel Management (North) Ltd,98706625,13.50,T&S UK - Public Transport
BEIS,UKRI - AHRC,05/03/2020,T&S UK - Public Transport,Digital Arts and Humanities and Creative Industries,Corporate Travel Management (North) Ltd,98706625,13.50,T&S UK - Public Transport
BEIS,UKRI - AHRC,05/03/2020,T&S UK - Public Transport,Digital Arts and Humanities and Creative Industries,Corporate Travel Management (North) Ltd,98706625,0.25,T&S UK - Public Transport
BEIS,UKRI - AHRC,05/03/2020,T&S UK - Public Transport,Digital Arts and Humanities and Creative Industries,Corporate Travel Management (North) Ltd,98706625,130.30,T&S UK - Public Transport
BEIS,UKRI - AHRC,05/03/2020,T&S UK - Public Transport,Digital Arts and Humanities and Creative Industries,Corporate Travel Management (North) Ltd,98706625,0.50,T&S UK - Public Transport
BEIS,UKRI - AHRC,05/03/2020,T&S UK - Public Transport,Digital Arts and Humanities and Creative Industries,Corporate Travel Management (North) Ltd,98706625,238.80,T&S UK - Public Transport
BEIS,UKRI - AHRC,05/03/2020,T&S UK - Public Transport,Digital Arts and Humanities and Creative Industries,Corporate Travel Management (North) Ltd,98706625,0.25,T&S UK - Public Transport
BEIS,UKRI - AHRC,05/03/2020,T&S UK - Public Transport,Digital Arts and Humanities and Creative Industries,Corporate Travel Management (North) Ltd,98706625,130.30,T&S UK - Public Transport
BEIS,UKRI - AHRC,05/03/2020,T&S UK - Public Transport,Digital Arts and Humanities and Creative Industries,Corporate Travel Management (North) Ltd,98706625,0.25,T&S UK - Public Transport
BEIS,UKRI - AHRC,05/03/2020,T&S UK - Public Transport,Digital Arts and Humanities and Creative Industries,Corporate Travel Management (North) Ltd,98706625,55.50,T&S UK - Public Transport
BEIS,UKRI - AHRC,05/03/2020,T&S UK - Public Transport,Digital Arts and Humanities and Creative Industries,Corporate Travel Management (North) Ltd,98706625,0.25,T&S UK - Public Transport
BEIS,UKRI - AHRC,05/03/2020,T&S UK - Public Transport,Digital Arts and Humanities and Creative Industries,Corporate Travel Management (North) Ltd,98706625,67.00,T&S UK - Public Transport
BEIS,UKRI - AHRC,05/03/2020,T&S UK - Public Transport,Digital Arts and Humanities and Creative Industries,Corporate Travel Management (North) Ltd,98706625,0.25,T&S UK - Public Transport
BEIS,UKRI - AHRC,05/03/2020,T&S UK - Public Transport,Digital Arts and Humanities and Creative Industries,Corporate Travel Management (North) Ltd,98706625,64.70,T&S UK - Public Transport
BEIS,UKRI - AHRC,05/03/2020,T&S UK - Public Transport,Executive Office,Corporate Travel Management (North) Ltd,98706625,0.25,T&S UK - Public Transport
BEIS,UKRI - AHRC,05/03/2020,T&S UK - Public Transport,Executive Office,Corporate Travel Management (North) Ltd,98706625,71.70,T&S UK - Public Transport
BEIS,UKRI - AHRC,05/03/2020,T&S UK - Public Transport,Executive Office,Corporate Travel Management (North) Ltd,98706625,0.25,T&S UK - Public Transport
BEIS,UKRI - AHRC,05/03/2020,T&S UK - Public Transport,Executive Office,Corporate Travel Management (North) Ltd,98706625,49.60,T&S UK - Public Transport
BEIS,UKRI - AHRC,05/03/2020,T&S UK - Public Transport,Executive Office,Corporate Travel Management (North) Ltd,98706625,0.25,T&S UK - Public Transport
BEIS,UKRI - AHRC,05/03/2020,T&S UK - Public Transport,Executive Office,Corporate Travel Management (North) Ltd,98706625,71.10,T&S UK - Public Transport
BEIS,UKRI - AHRC,05/03/2020,T&S UK - Public Transport,Executive Office,Corporate Travel Management (North) Ltd,98706625,0.25,T&S UK - Public Transport
BEIS,UKRI - AHRC,05/03/2020,T&S UK - Public Transport,Executive Office,Corporate Travel Management (North) Ltd,98706625,12.20,T&S UK - Public Transport
BEIS,UKRI - AHRC,05/03/2020,T&S UK - Public Transport,FIC- US,Corporate Travel Management (North) Ltd,98706625,0.25,T&S UK - Public Transport
BEIS,UKRI - AHRC,05/03/2020,T&S UK - Public Transport,FIC- US,Corporate Travel Management (North) Ltd,98706625,19.55,T&S UK - Public Transport
BEIS,UKRI - AHRC,05/03/2020,T&S UK - Public Transport,GCRF - Programme Delivery,Corporate Travel Management (North) Ltd,98706625,2.50,T&S UK - Public Transport
BEIS,UKRI - AHRC,05/03/2020,T&S UK - Public Transport,GCRF - Programme Delivery,Corporate Travel Management (North) Ltd,98706625,40.50,T&S UK - Public Transport
BEIS,UKRI - AHRC,05/03/2020,T&S UK - Public Transport,GCRF - Programme Delivery,Corporate Travel Management (North) Ltd,98706625,10.00,T&S UK - Public Transport
BEIS,UKRI - AHRC,05/03/2020,T&S UK - Public Transport,GCRF - Programme Delivery,Corporate Travel Management (North) Ltd,98706625,-107.50,T&S UK - Public Transport
BEIS,UKRI - AHRC,05/03/2020,T&S UK - Public Transport,GCRF - Programme Delivery,Corporate Travel Management (North) Ltd,98706625,0.25,T&S UK - Public Transport
BEIS,UKRI - AHRC,05/03/2020,T&S UK - Public Transport,GCRF - Programme Delivery,Corporate Travel Management (North) Ltd,98706625,51.60,T&S UK - Public Transport
BEIS,UKRI - AHRC,05/03/2020,T&S UK - Public Transport,GCRF - Programme Delivery,Corporate Travel Management (North) Ltd,98706625,0.25,T&S UK - Public Transport
BEIS,UKRI - AHRC,05/03/2020,T&S UK - Public Transport,GCRF - Programme Delivery,Corporate Travel Management (North) Ltd,98706625,38.55,T&S UK - Public Transport
BEIS,UKRI - AHRC,05/03/2020,T&S UK - Public Transport,GCRF - Programme Delivery,Corporate Travel Management (North) Ltd,98706625,0.50,T&S UK - Public Transport
BEIS,UKRI - AHRC,05/03/2020,T&S UK - Public Transport,HR,Corporate Travel Management (North) Ltd,98706625,0.25,T&S UK - Public Transport
BEIS,UKRI - AHRC,05/03/2020,T&S UK - Public Transport,HR,Corporate Travel Management (North) Ltd,98706625,74.40,T&S UK - Public Transport
BEIS,UKRI - AHRC,05/03/2020,T&S UK - Public Transport,HR,Corporate Travel Management (North) Ltd,98706625,0.25,T&S UK - Public Transport
BEIS,UKRI - AHRC,05/03/2020,T&S UK - Public Transport,HR,Corporate Travel Management (North) Ltd,98706625,77.00,T&S UK - Public Transport
BEIS,UKRI - AHRC,05/03/2020,T&S UK - Public Transport,"History, Heritage, Languages and Literature",Corporate Travel Management (North) Ltd,98706625,0.25,T&S UK - Public Transport
BEIS,UKRI - AHRC,05/03/2020,T&S UK - Public Transport,"History, Heritage, Languages and Literature",Corporate Travel Management (North) Ltd,98706625,120.50,T&S UK - Public Transport
BEIS,UKRI - AHRC,05/03/2020,T&S UK - Public Transport,"History, Heritage, Languages and Literature",Corporate Travel Management (North) Ltd,98706625,0.50,T&S UK - Public Transport
BEIS,UKRI - AHRC,05/03/2020,T&S UK - Public Transport,"History, Heritage, Languages and Literature",Corporate Travel Management (North) Ltd,98706625,112.10,T&S UK - Public Transport
BEIS,UKRI - AHRC,05/03/2020,T&S UK - Public Transport,"History, Heritage, Languages and Literature",Corporate Travel Management (North) Ltd,98706625,43.10,T&S UK - Public Transport
BEIS,UKRI - AHRC,05/03/2020,T&S UK - Public Transport,"History, Heritage, Languages and Literature",Corporate Travel Management (North) Ltd,98706625,0.25,T&S UK - Public Transport
BEIS,UKRI - AHRC,05/03/2020,T&S UK - Public Transport,"History, Heritage, Languages and Literature",Corporate Travel Management (North) Ltd,98706625,71.70,T&S UK - Public Transport
BEIS,UKRI - AHRC,05/03/2020,T&S UK - Public Transport,"History, Heritage, Languages and Literature",Corporate Travel Management (North) Ltd,98706625,0.25,T&S UK - Public Transport
BEIS,UKRI - AHRC,05/03/2020,T&S UK - Public Transport,"History, Heritage, Languages and Literature",Corporate Travel Management (North) Ltd,98706625,67.60,T&S UK - Public Transport
BEIS,UKRI - AHRC,05/03/2020,T&S UK - Public Transport,"History, Heritage, Languages and Literature",Corporate Travel Management (North) Ltd,98706625,0.25,T&S UK - Public Transport
BEIS,UKRI - AHRC,05/03/2020,T&S UK - Public Transport,"History, Heritage, Languages and Literature",Corporate Travel Management (North) Ltd,98706625,151.95,T&S UK - Public Transport
BEIS,UKRI - AHRC,05/03/2020,T&S UK - Public Transport,"History, Heritage, Languages and Literature",Corporate Travel Management (North) Ltd,98706625,0.75,T&S UK - Public Transport
BEIS,UKRI - AHRC,05/03/2020,T&S UK - Public Transport,"History, Heritage, Languages and Literature",Corporate Travel Management (North) Ltd,98706625,27.30,T&S UK - Public Transport
BEIS,UKRI - AHRC,05/03/2020,T&S UK - Public Transport,"History, Heritage, Languages and Literature",Corporate Travel Management (North) Ltd,98706625,58.00,T&S UK - Public Transport
BEIS,UKRI - AHRC,05/03/2020,T&S UK - Public Transport,"History, Heritage, Languages and Literature",Corporate Travel Management (North) Ltd,98706625,40.50,T&S UK - Public Transport
BEIS,UKRI - AHRC,05/03/2020,T&S UK - Public Transport,"History, Heritage, Languages and Literature",Corporate Travel Management (North) Ltd,98706625,0.25,T&S UK - Public Transport
BEIS,UKRI - AHRC,05/03/2020,T&S UK - Public Transport,"History, Heritage, Languages and Literature",Corporate Travel Management (North) Ltd,98706625,163.40,T&S UK - Public Transport
BEIS,UKRI - AHRC,05/03/2020,T&S UK - Public Transport,"History, Heritage, Languages and Literature",Corporate Travel Management (North) Ltd,98706625,0.25,T&S UK - Public Transport
BEIS,UKRI - AHRC,05/03/2020,T&S UK - Public Transport,"History, Heritage, Languages and Literature",Corporate Travel Management (North) Ltd,98706625,237.70,T&S UK - Public Transport
BEIS,UKRI - AHRC,05/03/2020,T&S UK - Public Transport,"History, Heritage, Languages and Literature",Corporate Travel Management (North) Ltd,98706625,0.25,T&S UK - Public Transport
BEIS,UKRI - AHRC,05/03/2020,T&S UK - Public Transport,"History, Heritage, Languages and Literature",Corporate Travel Management (North) Ltd,98706625,83.80,T&S UK - Public Transport
BEIS,UKRI - AHRC,05/03/2020,T&S UK - Public Transport,"History, Heritage, Languages and Literature",Corporate Travel Management (North) Ltd,98706625,0.25,T&S UK - Public Transport
BEIS,UKRI - AHRC,05/03/2020,T&S UK - Public Transport,"History, Heritage, Languages and Literature",Corporate Travel Management (North) Ltd,98706625,182.00,T&S UK - Public Transport
BEIS,UKRI - AHRC,05/03/2020,T&S UK - Public Transport,"History, Heritage, Languages and Literature",Corporate Travel Management (North) Ltd,98706625,0.25,T&S UK - Public Transport
BEIS,UKRI - AHRC,05/03/2020,T&S UK - Public Transport,"History, Heritage, Languages and Literature",Corporate Travel Management (North) Ltd,98706625,47.35,T&S UK - Public Transport
BEIS,UKRI - AHRC,05/03/2020,T&S UK - Public Transport,"History, Heritage, Languages and Literature",Corporate Travel Management (North) Ltd,98706625,0.25,T&S UK - Public Transport
BEIS,UKRI - AHRC,05/03/2020,T&S UK - Public Transport,"History, Heritage, Languages and Literature",Corporate Travel Management (North) Ltd,98706625,104.30,T&S UK - Public Transport
BEIS,UKRI - AHRC,05/03/2020,T&S UK - Public Transport,"History, Heritage, Languages and Literature",Corporate Travel Management (North) Ltd,98706625,0.25,T&S UK - Public Transport
BEIS,UKRI - AHRC,05/03/2020,T&S UK - Public Transport,"History, Heritage, Languages and Literature",Corporate Travel Management (North) Ltd,98706625,231.00,T&S UK - Public Transport
BEIS,UKRI - AHRC,05/03/2020,T&S UK - Public Transport,"History, Heritage, Languages and Literature",Corporate Travel Management (North) Ltd,98706625,0.50,T&S UK - Public Transport
BEIS,UKRI - AHRC,05/03/2020,T&S UK - Public Transport,"History, Heritage, Languages and Literature",Corporate Travel Management (North) Ltd,98706625,12.30,T&S UK - Public Transport
BEIS,UKRI - AHRC,05/03/2020,T&S UK - Public Transport,"History, Heritage, Languages and Literature",Corporate Travel Management (North) Ltd,98706625,57.80,T&S UK - Public Transport
BEIS,UKRI - AHRC,05/03/2020,T&S UK - Public Transport,"History, Heritage, Languages and Literature",Corporate Travel Management (North) Ltd,98706625,10.00,T&S UK - Public Transport
BEIS,UKRI - AHRC,05/03/2020,T&S UK - Public Transport,"History, Heritage, Languages and Literature",Corporate Travel Management (North) Ltd,98706625,-115.70,T&S UK - Public Transport
BEIS,UKRI - AHRC,05/03/2020,T&S UK - Public Transport,"History, Heritage, Languages and Literature",Corporate Travel Management (North) Ltd,98706625,0.25,T&S UK - Public Transport
BEIS,UKRI - AHRC,05/03/2020,T&S UK - Public Transport,"History, Heritage, Languages and Literature",Corporate Travel Management (North) Ltd,98706625,12.00,T&S UK - Public Transport
BEIS,UKRI - AHRC,05/03/2020,T&S UK - Public Transport,"History, Heritage, Languages and Literature",Corporate Travel Management (North) Ltd,98706625,0.25,T&S UK - Public Transport
BEIS,UKRI - AHRC,05/03/2020,T&S UK - Public Transport,"History, Heritage, Languages and Literature",Corporate Travel Management (North) Ltd,98706625,89.30,T&S UK - Public Transport
BEIS,UKRI - AHRC,05/03/2020,T&S UK - Public Transport,"History, Heritage, Languages and Literature",Corporate Travel Management (North) Ltd,98706625,0.25,T&S UK - Public Transport
BEIS,UKRI - AHRC,05/03/2020,T&S UK - Public Transport,"History, Heritage, Languages and Literature",Corporate Travel Management (North) Ltd,98706625,183.30,T&S UK - Public Transport
BEIS,UKRI - AHRC,05/03/2020,T&S UK - Public Transport,Industrial Strategy Challenge Fund (ISCF) - Creative Clusters,Corporate Travel Management (North) Ltd,98706625,0.13,T&S UK - Public Transport
BEIS,UKRI - AHRC,05/03/2020,T&S UK - Public Transport,Industrial Strategy Challenge Fund (ISCF) - Creative Clusters,Corporate Travel Management (North) Ltd,98706625,126.30,T&S UK - Public Transport
BEIS,UKRI - AHRC,05/03/2020,T&S UK - Public Transport,Industrial Strategy Challenge Fund (ISCF) - Creative Clusters,Corporate Travel Management (North) Ltd,98706625,0.12,T&S UK - Public Transport
BEIS,UKRI - AHRC,05/03/2020,T&S UK - Public Transport,Industrial Strategy Challenge Fund (ISCF) - Creative Clusters,Corporate Travel Management (North) Ltd,98706625,126.30,T&S UK - Public Transport
BEIS,UKRI - AHRC,05/03/2020,T&S UK - Public Transport,Industrial Strategy Challenge Fund (ISCF) - Creative Clusters,Corporate Travel Management (North) Ltd,98706625,0.50,T&S UK - Public Transport
BEIS,UKRI - AHRC,05/03/2020,T&S UK - Public Transport,Industrial Strategy Challenge Fund (ISCF) - Creative Clusters,Corporate Travel Management (North) Ltd,98706625,110.30,T&S UK - Public Transport
BEIS,UKRI - AHRC,05/03/2020,T&S UK - Public Transport,Industrial Strategy Challenge Fund (ISCF) - Creative Clusters,Corporate Travel Management (North) Ltd,98706625,126.30,T&S UK - Public Transport
BEIS,UKRI - AHRC,05/03/2020,T&S UK - Public Transport,Industrial Strategy Challenge Fund (ISCF) - Creative Clusters,Corporate Travel Management (North) Ltd,98706625,0.50,T&S UK - Public Transport
BEIS,UKRI - AHRC,05/03/2020,T&S UK - Public Transport,Industrial Strategy Challenge Fund (ISCF) - Creative Clusters,Corporate Travel Management (North) Ltd,98706625,41.70,T&S UK - Public Transport
BEIS,UKRI - AHRC,05/03/2020,T&S UK - Public Transport,Industrial Strategy Challenge Fund (ISCF) - Creative Clusters,Corporate Travel Management (North) Ltd,98706625,13.50,T&S UK - Public Transport
BEIS,UKRI - AHRC,05/03/2020,T&S UK - Public Transport,Industrial Strategy Challenge Fund (ISCF) - Creative Clusters,Corporate Travel Management (North) Ltd,98706625,0.25,T&S UK - Public Transport
BEIS,UKRI - AHRC,05/03/2020,T&S UK - Public Transport,Industrial Strategy Challenge Fund (ISCF) - Creative Clusters,Corporate Travel Management (North) Ltd,98706625,15.90,T&S UK - Public Transport
BEIS,UKRI - AHRC,05/03/2020,T&S UK - Public Transport,Industrial Strategy Challenge Fund (ISCF) - Creative Clusters,Corporate Travel Management (North) Ltd,98706625,0.25,T&S UK - Public Transport
BEIS,UKRI - AHRC,05/03/2020,T&S UK - Public Transport,Industrial Strategy Challenge Fund (ISCF) - Creative Clusters,Corporate Travel Management (North) Ltd,98706625,34.50,T&S UK - Public Transport
BEIS,UKRI - AHRC,05/03/2020,T&S UK - Public Transport,Industrial Strategy Challenge Fund (ISCF) - Creative Clusters,Corporate Travel Management (North) Ltd,98706625,0.25,T&S UK - Public Transport
BEIS,UKRI - AHRC,05/03/2020,T&S UK - Public Transport,Industrial Strategy Challenge Fund (ISCF) - Creative Clusters,Corporate Travel Management (North) Ltd,98706625,224.20,T&S UK - Public Transport
BEIS,UKRI - AHRC,05/03/2020,T&S UK - Public Transport,Industrial Strategy Challenge Fund (ISCF) - Creative Clusters,Corporate Travel Management (North) Ltd,98706625,0.25,T&S UK - Public Transport
BEIS,UKRI - AHRC,05/03/2020,T&S UK - Public Transport,Industrial Strategy Challenge Fund (ISCF) - Creative Clusters,Corporate Travel Management (North) Ltd,98706625,142.00,T&S UK - Public Transport
BEIS,UKRI - AHRC,05/03/2020,T&S UK - Public Transport,Industrial Strategy Challenge Fund (ISCF) - Creative Clusters,Corporate Travel Management (North) Ltd,98706625,0.25,T&S UK - Public Transport
BEIS,UKRI - AHRC,05/03/2020,T&S UK - Public Transport,Industrial Strategy Challenge Fund (ISCF) - Creative Clusters,Corporate Travel Management (North) Ltd,98706625,114.10,T&S UK - Public Transport
BEIS,UKRI - AHRC,05/03/2020,T&S UK - Public Transport,Industrial Strategy Challenge Fund (ISCF) - Creative Clusters,Corporate Travel Management (North) Ltd,98706625,0.25,T&S UK - Public Transport
BEIS,UKRI - AHRC,05/03/2020,T&S UK - Public Transport,Industrial Strategy Challenge Fund (ISCF) - Creative Clusters,Corporate Travel Management (North) Ltd,98706625,24.20,T&S UK - Public Transport
BEIS,UKRI - AHRC,05/03/2020,T&S UK - Public Transport,Industrial Strategy Challenge Fund (ISCF) - Creative Clusters,Corporate Travel Management (North) Ltd,98706625,0.25,T&S UK - Public Transport
BEIS,UKRI - AHRC,05/03/2020,T&S UK - Public Transport,Industrial Strategy Challenge Fund (ISCF) - Creative Clusters,Corporate Travel Management (North) Ltd,98706625,206.10,T&S UK - Public Transport
BEIS,UKRI - AHRC,05/03/2020,T&S UK - Public Transport,Industrial Strategy Challenge Fund (ISCF) - Creative Clusters,Corporate Travel Management (North) Ltd,98706625,0.25,T&S UK - Public Transport
BEIS,UKRI - AHRC,05/03/2020,T&S UK - Public Transport,Industrial Strategy Challenge Fund (ISCF) - Creative Clusters,Corporate Travel Management (North) Ltd,98706625,125.00,T&S UK - Public Transport
BEIS,UKRI - AHRC,05/03/2020,T&S UK - Public Transport,Industrial Strategy Challenge Fund (ISCF) - Creative Clusters,Corporate Travel Management (North) Ltd,98706625,0.25,T&S UK - Public Transport
BEIS,UKRI - AHRC,05/03/2020,T&S UK - Public Transport,Industrial Strategy Challenge Fund (ISCF) - Creative Clusters,Corporate Travel Management (North) Ltd,98706625,84.90,T&S UK - Public Transport
BEIS,UKRI - AHRC,05/03/2020,T&S UK - Public Transport,Industrial Strategy Challenge Fund (ISCF) - Creative Clusters,Corporate Travel Management (North) Ltd,98706625,0.25,T&S UK - Public Transport
BEIS,UKRI - AHRC,05/03/2020,T&S UK - Public Transport,Industrial Strategy Challenge Fund (ISCF) - Creative Clusters,Corporate Travel Management (North) Ltd,98706625,144.00,T&S UK - Public Transport
BEIS,UKRI - AHRC,05/03/2020,T&S UK - Public Transport,Industrial Strategy Challenge Fund (ISCF) - Creative Clusters,Corporate Travel Management (North) Ltd,98706625,0.25,T&S UK - Public Transport
BEIS,UKRI - AHRC,05/03/2020,T&S UK - Public Transport,Industrial Strategy Challenge Fund (ISCF) - Creative Clusters,Corporate Travel Management (North) Ltd,98706625,142.00,T&S UK - Public Transport
BEIS,UKRI - AHRC,05/03/2020,T&S UK - Public Transport,Industrial Strategy Challenge Fund (ISCF) - Creative Clusters,Corporate Travel Management (North) Ltd,98706625,0.25,T&S UK - Public Transport
BEIS,UKRI - AHRC,05/03/2020,T&S UK - Public Transport,Industrial Strategy Challenge Fund (ISCF) - Creative Clusters,Corporate Travel Management (North) Ltd,98706625,64.70,T&S UK - Public Transport
BEIS,UKRI - AHRC,05/03/2020,T&S UK - Public Transport,Industrial Strategy Challenge Fund (ISCF) - Creative Clusters,Corporate Travel Management (North) Ltd,98706625,0.25,T&S UK - Public Transport
BEIS,UKRI - AHRC,05/03/2020,T&S UK - Public Transport,Industrial Strategy Challenge Fund (ISCF) - Creative Clusters,Corporate Travel Management (North) Ltd,98706625,148.80,T&S UK - Public Transport
BEIS,UKRI - AHRC,05/03/2020,T&S UK - Public Transport,Industrial Strategy Challenge Fund (ISCF) - Creative Clusters,Corporate Travel Management (North) Ltd,98706625,0.25,T&S UK - Public Transport
BEIS,UKRI - AHRC,05/03/2020,T&S UK - Public Transport,Industrial Strategy Challenge Fund (ISCF) - Creative Clusters,Corporate Travel Management (North) Ltd,98706625,56.80,T&S UK - Public Transport
BEIS,UKRI - AHRC,05/03/2020,T&S UK - Public Transport,Industrial Strategy Challenge Fund (ISCF) - Creative Clusters,Corporate Travel Management (North) Ltd,98706625,0.25,T&S UK - Public Transport
BEIS,UKRI - AHRC,05/03/2020,T&S UK - Public Transport,Industrial Strategy Challenge Fund (ISCF) - Creative Clusters,Corporate Travel Management (North) Ltd,98706625,80.50,T&S UK - Public Transport
BEIS,UKRI - AHRC,05/03/2020,T&S UK - Public Transport,Industrial Strategy Challenge Fund (ISCF) - Creative Clusters,Corporate Travel Management (North) Ltd,98706625,0.25,T&S UK - Public Transport
BEIS,UKRI - AHRC,05/03/2020,T&S UK - Public Transport,Industrial Strategy Challenge Fund (ISCF) - Creative Clusters,Corporate Travel Management (North) Ltd,98706625,170.90,T&S UK - Public Transport
BEIS,UKRI - AHRC,05/03/2020,T&S UK - Public Transport,Industrial Strategy Challenge Fund (ISCF) - Creative Clusters,Corporate Travel Management (North) Ltd,98706625,5.00,T&S UK - Public Transport
BEIS,UKRI - AHRC,05/03/2020,T&S UK - Public Transport,Industrial Strategy Challenge Fund (ISCF) - Creative Clusters,Corporate Travel Management (North) Ltd,98706625,-143.80,T&S UK - Public Transport
BEIS,UKRI - AHRC,05/03/2020,T&S UK - Public Transport,International,Corporate Travel Management (North) Ltd,98706625,0.25,T&S UK - Public Transport
BEIS,UKRI - AHRC,05/03/2020,T&S UK - Public Transport,International,Corporate Travel Management (North) Ltd,98706625,90.40,T&S UK - Public Transport
BEIS,UKRI - AHRC,05/03/2020,T&S UK - Public Transport,International,Corporate Travel Management (North) Ltd,98706625,2.50,T&S UK - Public Transport
BEIS,UKRI - AHRC,05/03/2020,T&S UK - Public Transport,International,Corporate Travel Management (North) Ltd,98706625,9.60,T&S UK - Public Transport
BEIS,UKRI - AHRC,05/03/2020,T&S UK - Public Transport,International,Corporate Travel Management (North) Ltd,98706625,0.25,T&S UK - Public Transport
BEIS,UKRI - AHRC,05/03/2020,T&S UK - Public Transport,International,Corporate Travel Management (North) Ltd,98706625,71.70,T&S UK - Public Transport
BEIS,UKRI - AHRC,05/03/2020,T&S UK - Public Transport,International,Corporate Travel Management (North) Ltd,98706625,0.50,T&S UK - Public Transport
BEIS,UKRI - AHRC,05/03/2020,T&S UK - Public Transport,International Development and Area Studies,Corporate Travel Management (North) Ltd,98706625,0.25,T&S UK - Public Transport
BEIS,UKRI - AHRC,05/03/2020,T&S UK - Public Transport,International Development and Area Studies,Corporate Travel Management (North) Ltd,98706625,73.00,T&S UK - Public Transport
BEIS,UKRI - AHRC,05/03/2020,T&S UK - Public Transport,International Development and Area Studies,Corporate Travel Management (North) Ltd,98706625,0.25,T&S UK - Public Transport
BEIS,UKRI - AHRC,05/03/2020,T&S UK - Public Transport,International Development and Area Studies,Corporate Travel Management (North) Ltd,98706625,55.50,T&S UK - Public Transport
BEIS,UKRI - AHRC,05/03/2020,T&S UK - Public Transport,International Partnership and Engagement,Corporate Travel Management (North) Ltd,98706625,0.25,T&S UK - Public Transport
BEIS,UKRI - AHRC,05/03/2020,T&S UK - Public Transport,International Partnership and Engagement,Corporate Travel Management (North) Ltd,98706625,68.50,T&S UK - Public Transport
BEIS,UKRI - AHRC,05/03/2020,T&S UK - Public Transport,International Partnership and Engagement,Corporate Travel Management (North) Ltd,98706625,0.25,T&S UK - Public Transport
BEIS,UKRI - AHRC,05/03/2020,T&S UK - Public Transport,International Partnership and Engagement,Corporate Travel Management (North) Ltd,98706625,28.20,T&S UK - Public Transport
BEIS,UKRI - AHRC,05/03/2020,T&S UK - Public Transport,International Partnership and Engagement,Corporate Travel Management (North) Ltd,98706625,0.25,T&S UK - Public Transport
BEIS,UKRI - AHRC,05/03/2020,T&S UK - Public Transport,International Partnership and Engagement,Corporate Travel Management (North) Ltd,98706625,68.50,T&S UK - Public Transport
BEIS,UKRI - AHRC,05/03/2020,T&S UK - Public Transport,International Partnership and Engagement,Corporate Travel Management (North) Ltd,98706625,0.50,T&S UK - Public Transport
BEIS,UKRI - AHRC,05/03/2020,T&S UK - Public Transport,International Partnership and Engagement,Corporate Travel Management (North) Ltd,98706625,74.50,T&S UK - Public Transport
BEIS,UKRI - AHRC,05/03/2020,T&S UK - Public Transport,International Partnership and Engagement,Corporate Travel Management (North) Ltd,98706625,52.60,T&S UK - Public Transport
BEIS,UKRI - AHRC,05/03/2020,T&S UK - Public Transport,International Partnership and Engagement,Corporate Travel Management (North) Ltd,98706625,0.25,T&S UK - Public Transport
BEIS,UKRI - AHRC,05/03/2020,T&S UK - Public Transport,International Partnership and Engagement,Corporate Travel Management (North) Ltd,98706625,17.00,T&S UK - Public Transport
BEIS,UKRI - AHRC,05/03/2020,T&S UK - Public Transport,International Partnership and Engagement,Corporate Travel Management (North) Ltd,98706625,0.25,T&S UK - Public Transport
BEIS,UKRI - AHRC,05/03/2020,T&S UK - Public Transport,International Partnership and Engagement,Corporate Travel Management (North) Ltd,98706625,7.00,T&S UK - Public Transport
BEIS,UKRI - AHRC,05/03/2020,T&S UK - Public Transport,International Partnership and Engagement,Corporate Travel Management (North) Ltd,98706625,0.25,T&S UK - Public Transport
BEIS,UKRI - AHRC,05/03/2020,T&S UK - Public Transport,International Partnership and Engagement,Corporate Travel Management (North) Ltd,98706625,163.60,T&S UK - Public Transport
BEIS,UKRI - AHRC,05/03/2020,T&S UK - Public Transport,International Partnership and Engagement,Corporate Travel Management (North) Ltd,98706625,0.25,T&S UK - Public Transport
BEIS,UKRI - AHRC,05/03/2020,T&S UK - Public Transport,International Partnership and Engagement,Corporate Travel Management (North) Ltd,98706625,28.20,T&S UK - Public Transport
BEIS,UKRI - AHRC,05/03/2020,T&S UK - Public Transport,International Partnership and Engagement,Corporate Travel Management (North) Ltd,98706625,0.25,T&S UK - Public Transport
BEIS,UKRI - AHRC,05/03/2020,T&S UK - Public Transport,International Partnership and Engagement,Corporate Travel Management (North) Ltd,98706625,68.50,T&S UK - Public Transport
BEIS,UKRI - AHRC,05/03/2020,T&S UK - Public Transport,International Partnership and Engagement,Corporate Travel Management (North) Ltd,98706625,0.25,T&S UK - Public Transport
BEIS,UKRI - AHRC,05/03/2020,T&S UK - Public Transport,International Partnership and Engagement,Corporate Travel Management (North) Ltd,98706625,68.50,T&S UK - Public Transport
BEIS,UKRI - AHRC,05/03/2020,T&S UK - Public Transport,International Partnership and Engagement,Corporate Travel Management (North) Ltd,98706625,0.50,T&S UK - Public Transport
BEIS,UKRI - AHRC,05/03/2020,T&S UK - Public Transport,International Partnership and Engagement,Corporate Travel Management (North) Ltd,98706625,33.70,T&S UK - Public Transport
BEIS,UKRI - AHRC,05/03/2020,T&S UK - Public Transport,International Partnership and Engagement,Corporate Travel Management (North) Ltd,98706625,13.50,T&S UK - Public Transport
BEIS,UKRI - AHRC,05/03/2020,T&S UK - Public Transport,International Partnership and Engagement,Corporate Travel Management (North) Ltd,98706625,0.25,T&S UK - Public Transport
BEIS,UKRI - AHRC,05/03/2020,T&S UK - Public Transport,International Partnership and Engagement,Corporate Travel Management (North) Ltd,98706625,68.50,T&S UK - Public Transport
BEIS,UKRI - AHRC,05/03/2020,T&S UK - Public Transport,International Partnership and Engagement,Corporate Travel Management (North) Ltd,98706625,0.50,T&S UK - Public Transport
BEIS,UKRI - AHRC,05/03/2020,T&S UK - Public Transport,International Partnership and Engagement,Corporate Travel Management (North) Ltd,98706625,74.50,T&S UK - Public Transport
BEIS,UKRI - AHRC,05/03/2020,T&S UK - Public Transport,International Partnership and Engagement,Corporate Travel Management (North) Ltd,98706625,13.50,T&S UK - Public Transport
BEIS,UKRI - AHRC,05/03/2020,T&S UK - Public Transport,Newton Programme Delivery,Corporate Travel Management (North) Ltd,98706625,0.25,T&S UK - Public Transport
BEIS,UKRI - AHRC,05/03/2020,T&S UK - Public Transport,Newton Programme Delivery,Corporate Travel Management (North) Ltd,98706625,142.80,T&S UK - Public Transport
BEIS,UKRI - AHRC,05/03/2020,T&S UK - Public Transport,Operations,Corporate Travel Management (North) Ltd,98706625,0.50,T&S UK - Public Transport
BEIS,UKRI - AHRC,05/03/2020,T&S UK - Public Transport,Operations,Corporate Travel Management (North) Ltd,98706625,297.60,T&S UK - Public Transport
BEIS,UKRI - AHRC,05/03/2020,T&S UK - Public Transport,PSU Project Office,Corporate Travel Management (North) Ltd,98706625,10.00,T&S UK - Public Transport
BEIS,UKRI - AHRC,05/03/2020,T&S UK - Public Transport,PSU Project Office,Corporate Travel Management (North) Ltd,98706625,-29.70,T&S UK - Public Transport
BEIS,UKRI - AHRC,05/03/2020,T&S UK - Public Transport,PSU Project Office,Corporate Travel Management (North) Ltd,98706625,0.25,T&S UK - Public Transport
BEIS,UKRI - AHRC,05/03/2020,T&S UK - Public Transport,PSU Project Office,Corporate Travel Management (North) Ltd,98706625,27.80,T&S UK - Public Transport
BEIS,UKRI - AHRC,05/03/2020,T&S UK - Public Transport,Public and Stakeholder Engagement,Corporate Travel Management (North) Ltd,98706625,0.25,T&S UK - Public Transport
BEIS,UKRI - AHRC,05/03/2020,T&S UK - Public Transport,Public and Stakeholder Engagement,Corporate Travel Management (North) Ltd,98706625,214.80,T&S UK - Public Transport
BEIS,UKRI - AHRC,05/03/2020,T&S UK - Public Transport,Public and Stakeholder Engagement,Corporate Travel Management (North) Ltd,98706625,0.50,T&S UK - Public Transport
BEIS,UKRI - AHRC,05/03/2020,T&S UK - Public Transport,Public and Stakeholder Engagement,Corporate Travel Management (North) Ltd,98706625,12.30,T&S UK - Public Transport
BEIS,UKRI - AHRC,05/03/2020,T&S UK - Public Transport,Public and Stakeholder Engagement,Corporate Travel Management (North) Ltd,98706625,29.35,T&S UK - Public Transport
BEIS,UKRI - AHRC,05/03/2020,T&S UK - Public Transport,Public and Stakeholder Engagement,Corporate Travel Management (North) Ltd,98706625,0.25,T&S UK - Public Transport
BEIS,UKRI - AHRC,05/03/2020,T&S UK - Public Transport,Public and Stakeholder Engagement,Corporate Travel Management (North) Ltd,98706625,117.00,T&S UK - Public Transport
BEIS,UKRI - AHRC,05/03/2020,T&S UK - Public Transport,SMT,Corporate Travel Management (North) Ltd,98706625,0.25,T&S UK - Public Transport
BEIS,UKRI - AHRC,05/03/2020,T&S UK - Public Transport,SMT,Corporate Travel Management (North) Ltd,98706625,91.50,T&S UK - Public Transport
BEIS,UKRI - AHRC,05/03/2020,T&S UK - Public Transport,SMT,Corporate Travel Management (North) Ltd,98706625,0.25,T&S UK - Public Transport
BEIS,UKRI - AHRC,05/03/2020,T&S UK - Public Transport,SMT,Corporate Travel Management (North) Ltd,98706625,136.80,T&S UK - Public Transport
BEIS,UKRI - AHRC,05/03/2020,T&S UK - Public Transport,SMT,Corporate Travel Management (North) Ltd,98706625,0.25,T&S UK - Public Transport
BEIS,UKRI - AHRC,05/03/2020,T&S UK - Public Transport,SMT,Corporate Travel Management (North) Ltd,98706625,53.10,T&S UK - Public Transport
BEIS,UKRI - AHRC,05/03/2020,T&S UK - Public Transport,SMT,Corporate Travel Management (North) Ltd,98706625,0.25,T&S UK - Public Transport
BEIS,UKRI - AHRC,05/03/2020,T&S UK - Public Transport,SMT,Corporate Travel Management (North) Ltd,98706625,22.00,T&S UK - Public Transport
BEIS,UKRI - AHRC,05/03/2020,T&S UK - Public Transport,SMT,Corporate Travel Management (North) Ltd,98706625,0.25,T&S UK - Public Transport
BEIS,UKRI - AHRC,05/03/2020,T&S UK - Public Transport,SMT,Corporate Travel Management (North) Ltd,98706625,71.00,T&S UK - Public Transport
BEIS,UKRI - AHRC,05/03/2020,T&S UK - Public Transport,SMT,Corporate Travel Management (North) Ltd,98706625,0.25,T&S UK - Public Transport
BEIS,UKRI - AHRC,05/03/2020,T&S UK - Public Transport,SMT,Corporate Travel Management (North) Ltd,98706625,110.80,T&S UK - Public Transport
BEIS,UKRI - AHRC,05/03/2020,T&S UK - Public Transport,SMT,Corporate Travel Management (North) Ltd,98706625,0.25,T&S UK - Public Transport
BEIS,UKRI - AHRC,05/03/2020,T&S UK - Public Transport,SMT,Corporate Travel Management (North) Ltd,98706625,157.40,T&S UK - Public Transport
BEIS,UKRI - AHRC,05/03/2020,T&S UK - Public Transport,SMT,Corporate Travel Management (North) Ltd,98706625,0.25,T&S UK - Public Transport
BEIS,UKRI - AHRC,05/03/2020,T&S UK - Public Transport,SMT,Corporate Travel Management (North) Ltd,98706625,21.10,T&S UK - Public Transport
BEIS,UKRI - AHRC,05/03/2020,T&S UK - Public Transport,SMT,Corporate Travel Management (North) Ltd,98706625,0.25,T&S UK - Public Transport
BEIS,UKRI - AHRC,05/03/2020,T&S UK - Public Transport,SMT,Corporate Travel Management (North) Ltd,98706625,136.80,T&S UK - Public Transport
BEIS,UKRI - AHRC,05/03/2020,T&S UK - Public Transport,SMT,Corporate Travel Management (North) Ltd,98706625,0.25,T&S UK - Public Transport
BEIS,UKRI - AHRC,05/03/2020,T&S UK - Public Transport,SMT,Corporate Travel Management (North) Ltd,98706625,103.00,T&S UK - Public Transport
BEIS,UKRI - AHRC,05/03/2020,T&S UK - Public Transport,SMT,Corporate Travel Management (North) Ltd,98706625,0.25,T&S UK - Public Transport
BEIS,UKRI - AHRC,05/03/2020,T&S UK - Public Transport,SMT,Corporate Travel Management (North) Ltd,98706625,76.70,T&S UK - Public Transport
BEIS,UKRI - AHRC,05/03/2020,T&S UK - Public Transport,SMT,Corporate Travel Management (North) Ltd,98706625,0.25,T&S UK - Public Transport
BEIS,UKRI - AHRC,05/03/2020,T&S UK - Public Transport,SMT,Corporate Travel Management (North) Ltd,98706625,68.80,T&S UK - Public Transport
BEIS,UKRI - AHRC,05/03/2020,T&S UK - Public Transport,SMT,Corporate Travel Management (North) Ltd,98706625,0.25,T&S UK - Public Transport
BEIS,UKRI - AHRC,05/03/2020,T&S UK - Public Transport,SMT,Corporate Travel Management (North) Ltd,98706625,28.10,T&S UK - Public Transport
BEIS,UKRI - AHRC,05/03/2020,T&S UK - Public Transport,SMT,Corporate Travel Management (North) Ltd,98706625,0.50,T&S UK - Public Transport
BEIS,UKRI - AHRC,05/03/2020,T&S UK - Public Transport,SMT,Corporate Travel Management (North) Ltd,98706625,212.10,T&S UK - Public Transport
BEIS,UKRI - AHRC,05/03/2020,T&S UK - Public Transport,SMT,Corporate Travel Management (North) Ltd,98706625,0.25,T&S UK - Public Transport
BEIS,UKRI - AHRC,05/03/2020,T&S UK - Public Transport,SMT,Corporate Travel Management (North) Ltd,98706625,124.10,T&S UK - Public Transport
BEIS,UKRI - AHRC,05/03/2020,T&S UK - Public Transport,SMT,Corporate Travel Management (North) Ltd,98706625,0.25,T&S UK - Public Transport
BEIS,UKRI - AHRC,05/03/2020,T&S UK - Public Transport,SMT,Corporate Travel Management (North) Ltd,98706625,105.90,T&S UK - Public Transport
BEIS,UKRI - AHRC,05/03/2020,T&S UK - Public Transport,SMT,Corporate Travel Management (North) Ltd,98706625,5.00,T&S UK - Public Transport
BEIS,UKRI - AHRC,05/03/2020,T&S UK - Public Transport,SMT,Corporate Travel Management (North) Ltd,98706625,-64.00,T&S UK - Public Transport
BEIS,UKRI - AHRC,05/03/2020,T&S UK - Public Transport,SMT,Corporate Travel Management (North) Ltd,98706625,0.25,T&S UK - Public Transport
BEIS,UKRI - AHRC,05/03/2020,T&S UK - Public Transport,SMT,Corporate Travel Management (North) Ltd,98706625,46.90,T&S UK - Public Transport
BEIS,UKRI - AHRC,05/03/2020,T&S UK - Public Transport,SMT,Corporate Travel Management (North) Ltd,98706625,0.25,T&S UK - Public Transport
BEIS,UKRI - AHRC,05/03/2020,T&S UK - Public Transport,SMT,Corporate Travel Management (North) Ltd,98706625,53.10,T&S UK - Public Transport
BEIS,UKRI - AHRC,05/03/2020,T&S UK - Public Transport,SMT,Corporate Travel Management (North) Ltd,98706625,0.25,T&S UK - Public Transport
BEIS,UKRI - AHRC,05/03/2020,T&S UK - Public Transport,SMT,Corporate Travel Management (North) Ltd,98706625,29.60,T&S UK - Public Transport
BEIS,UKRI - AHRC,05/03/2020,T&S UK - Public Transport,SMT,Corporate Travel Management (North) Ltd,98706625,0.25,T&S UK - Public Transport
BEIS,UKRI - AHRC,05/03/2020,T&S UK - Public Transport,SMT,Corporate Travel Management (North) Ltd,98706625,50.80,T&S UK - Public Transport
BEIS,UKRI - AHRC,05/03/2020,T&S UK - Public Transport,SMT,Corporate Travel Management (North) Ltd,98706625,0.25,T&S UK - Public Transport
BEIS,UKRI - AHRC,05/03/2020,T&S UK - Public Transport,SMT,Corporate Travel Management (North) Ltd,98706625,232.50,T&S UK - Public Transport
BEIS,UKRI - AHRC,05/03/2020,T&S UK - Public Transport,SMT,Corporate Travel Management (North) Ltd,98706625,0.25,T&S UK - Public Transport
BEIS,UKRI - AHRC,05/03/2020,T&S UK - Public Transport,SMT,Corporate Travel Management (North) Ltd,98706625,38.50,T&S UK - Public Transport
BEIS,UKRI - AHRC,05/03/2020,T&S UK - Public Transport,SMT,Corporate Travel Management (North) Ltd,98706625,0.25,T&S UK - Public Transport
BEIS,UKRI - AHRC,05/03/2020,T&S UK - Public Transport,SMT,Corporate Travel Management (North) Ltd,98706625,112.10,T&S UK - Public Transport
BEIS,UKRI - AHRC,05/03/2020,T&S UK - Public Transport,SMT,Corporate Travel Management (North) Ltd,98706625,0.50,T&S UK - Public Transport
BEIS,UKRI - AHRC,05/03/2020,T&S UK - Public Transport,SMT,Corporate Travel Management (North) Ltd,98706625,32.60,T&S UK - Public Transport
BEIS,UKRI - AHRC,05/03/2020,T&S UK - Public Transport,SMT,Corporate Travel Management (North) Ltd,98706625,91.10,T&S UK - Public Transport
BEIS,UKRI - AHRC,05/03/2020,T&S UK - Public Transport,SMT,Corporate Travel Management (North) Ltd,98706625,0.25,T&S UK - Public Transport
BEIS,UKRI - AHRC,05/03/2020,T&S UK - Public Transport,SMT,Corporate Travel Management (North) Ltd,98706625,142.00,T&S UK - Public Transport
BEIS,UKRI - AHRC,05/03/2020,T&S UK - Public Transport,SMT,Corporate Travel Management (North) Ltd,98706625,0.25,T&S UK - Public Transport
BEIS,UKRI - AHRC,05/03/2020,T&S UK - Public Transport,SMT,Corporate Travel Management (North) Ltd,98706625,50.80,T&S UK - Public Transport
BEIS,UKRI - AHRC,05/03/2020,T&S UK - Public Transport,SMT,Corporate Travel Management (North) Ltd,98706625,0.25,T&S UK - Public Transport
BEIS,UKRI - AHRC,05/03/2020,T&S UK - Public Transport,SMT,Corporate Travel Management (North) Ltd,98706625,28.10,T&S UK - Public Transport
BEIS,UKRI - AHRC,05/03/2020,T&S UK - Public Transport,Skills Strategy,Corporate Travel Management (North) Ltd,98706625,0.25,T&S UK - Public Transport
BEIS,UKRI - AHRC,05/03/2020,T&S UK - Public Transport,Skills Strategy,Corporate Travel Management (North) Ltd,98706625,94.20,T&S UK - Public Transport
BEIS,UKRI - AHRC,05/03/2020,T&S UK - Public Transport,Skills Strategy,Corporate Travel Management (North) Ltd,98706625,0.25,T&S UK - Public Transport
BEIS,UKRI - AHRC,05/03/2020,T&S UK - Public Transport,Skills Strategy,Corporate Travel Management (North) Ltd,98706625,65.55,T&S UK - Public Transport
BEIS,UKRI - AHRC,05/03/2020,T&S UK - Public Transport,Skills Strategy,Corporate Travel Management (North) Ltd,98706625,0.50,T&S UK - Public Transport
BEIS,UKRI - AHRC,05/03/2020,T&S UK - Public Transport,Skills Strategy,Corporate Travel Management (North) Ltd,98706625,14.90,T&S UK - Public Transport
BEIS,UKRI - AHRC,05/03/2020,T&S UK - Public Transport,Skills Strategy,Corporate Travel Management (North) Ltd,98706625,29.35,T&S UK - Public Transport
BEIS,UKRI - AHRC,05/03/2020,T&S UK - Public Transport,Skills Strategy,Corporate Travel Management (North) Ltd,98706625,0.25,T&S UK - Public Transport
BEIS,UKRI - AHRC,05/03/2020,T&S UK - Public Transport,Skills Strategy,Corporate Travel Management (North) Ltd,98706625,280.05,T&S UK - Public Transport
BEIS,UKRI - AHRC,05/03/2020,T&S UK - Public Transport,Skills Strategy,Corporate Travel Management (North) Ltd,98706625,0.25,T&S UK - Public Transport
BEIS,UKRI - AHRC,05/03/2020,T&S UK - Public Transport,Skills Strategy,Corporate Travel Management (North) Ltd,98706625,79.50,T&S UK - Public Transport
BEIS,UKRI - AHRC,05/03/2020,T&S UK - Public Transport,Skills Strategy,Corporate Travel Management (North) Ltd,98706625,0.25,T&S UK - Public Transport
BEIS,UKRI - AHRC,05/03/2020,T&S UK - Public Transport,Skills Strategy,Corporate Travel Management (North) Ltd,98706625,71.70,T&S UK - Public Transport
BEIS,UKRI - AHRC,05/03/2020,T&S UK - Public Transport,Skills Strategy,Corporate Travel Management (North) Ltd,98706625,0.25,T&S UK - Public Transport
BEIS,UKRI - AHRC,05/03/2020,T&S UK - Public Transport,Skills Strategy,Corporate Travel Management (North) Ltd,98706625,42.10,T&S UK - Public Transport
BEIS,UKRI - AHRC,05/03/2020,T&S UK - Public Transport,Skills Strategy,Corporate Travel Management (North) Ltd,98706625,0.25,T&S UK - Public Transport
BEIS,UKRI - AHRC,05/03/2020,T&S UK - Public Transport,Skills Strategy,Corporate Travel Management (North) Ltd,98706625,77.00,T&S UK - Public Transport
BEIS,UKRI - AHRC,05/03/2020,T&S UK - Public Transport,Skills Strategy,Corporate Travel Management (North) Ltd,98706625,0.25,T&S UK - Public Transport
BEIS,UKRI - AHRC,05/03/2020,T&S UK - Public Transport,Skills Strategy,Corporate Travel Management (North) Ltd,98706625,49.00,T&S UK - Public Transport
BEIS,UKRI - AHRC,05/03/2020,T&S UK - Public Transport,Skills Strategy,Corporate Travel Management (North) Ltd,98706625,0.25,T&S UK - Public Transport
BEIS,UKRI - AHRC,05/03/2020,T&S UK - Public Transport,Skills Strategy,Corporate Travel Management (North) Ltd,98706625,32.35,T&S UK - Public Transport
BEIS,UKRI - AHRC,05/03/2020,T&S UK - Public Transport,Skills Strategy,Corporate Travel Management (North) Ltd,98706625,0.25,T&S UK - Public Transport
BEIS,UKRI - AHRC,05/03/2020,T&S UK - Public Transport,Skills Strategy,Corporate Travel Management (North) Ltd,98706625,32.35,T&S UK - Public Transport
BEIS,UKRI - AHRC,05/03/2020,T&S UK - Public Transport,Skills Strategy,Corporate Travel Management (North) Ltd,98706625,0.25,T&S UK - Public Transport
BEIS,UKRI - AHRC,05/03/2020,T&S UK - Public Transport,Skills Strategy,Corporate Travel Management (North) Ltd,98706625,98.10,T&S UK - Public Transport
BEIS,UKRI - AHRC,05/03/2020,T&S UK - Public Transport,Skills Strategy,Corporate Travel Management (North) Ltd,98706625,0.25,T&S UK - Public Transport
BEIS,UKRI - AHRC,05/03/2020,T&S UK - Public Transport,Skills Strategy,Corporate Travel Management (North) Ltd,98706625,77.55,T&S UK - Public Transport
BEIS,UKRI - AHRC,05/03/2020,T&S UK - Public Transport,Skills Strategy,Corporate Travel Management (North) Ltd,98706625,0.25,T&S UK - Public Transport
BEIS,UKRI - AHRC,05/03/2020,T&S UK - Public Transport,Skills Strategy,Corporate Travel Management (North) Ltd,98706625,191.50,T&S UK - Public Transport
BEIS,UKRI - AHRC,05/03/2020,T&S UK - Public Transport,Skills Strategy,Corporate Travel Management (North) Ltd,98706625,0.25,T&S UK - Public Transport
BEIS,UKRI - AHRC,05/03/2020,T&S UK - Public Transport,Skills Strategy,Corporate Travel Management (North) Ltd,98706625,168.10,T&S UK - Public Transport
BEIS,UKRI - AHRC,05/03/2020,T&S UK - Public Transport,Skills Strategy,Corporate Travel Management (North) Ltd,98706625,0.25,T&S UK - Public Transport
BEIS,UKRI - AHRC,05/03/2020,T&S UK - Public Transport,Skills Strategy,Corporate Travel Management (North) Ltd,98706625,81.50,T&S UK - Public Transport
BEIS,UKRI - AHRC,05/03/2020,Non-staff travel and subsistance,Operations,Non Employee Expenses Supplier,98706830,168.18,Non-staff travel and subsistance
BEIS,UKRI - AHRC,05/03/2020,Non-staff travel and subsistance,Operations,Non Employee Expenses Supplier,98706831,71.83,Non-staff travel and subsistance
BEIS,UKRI - AHRC,05/03/2020,Non-staff travel and subsistance,Digital Arts and Humanities and Creative Industries,Non Employee Expenses Supplier,98706832,83.60,Non-staff travel and subsistance
BEIS,UKRI - AHRC,05/03/2020,Non-staff travel and subsistance,Digital Arts and Humanities and Creative Industries,Non Employee Expenses Supplier,98706833,35.90,Non-staff travel and subsistance
BEIS,UKRI - AHRC,05/03/2020,Non-staff travel and subsistance,Digital Arts and Humanities and Creative Industries,Non Employee Expenses Supplier,98706834,85.13,Non-staff travel and subsistance
BEIS,UKRI - AHRC,05/03/2020,Non-staff travel and subsistance,Digital Arts and Humanities and Creative Industries,Non Employee Expenses Supplier,98706835,105.20,Non-staff travel and subsistance
BEIS,UKRI - AHRC,05/03/2020,Non-staff travel and subsistance,Digital Arts and Humanities and Creative Industries,Non Employee Expenses Supplier,98706836,60.00,Non-staff travel and subsistance
BEIS,UKRI - AHRC,05/03/2020,Non-staff travel and subsistance,Digital Arts and Humanities and Creative Industries,Non Employee Expenses Supplier,98706837,105.70,Non-staff travel and subsistance
BEIS,UKRI - AHRC,05/03/2020,Non-staff travel and subsistance,Digital Arts and Humanities and Creative Industries,Non Employee Expenses Supplier,98706838,118.20,Non-staff travel and subsistance
BEIS,UKRI - AHRC,05/03/2020,Non-staff travel and subsistance,Digital Arts and Humanities and Creative Industries,Non Employee Expenses Supplier,98706839,52.35,Non-staff travel and subsistance
BEIS,UKRI - AHRC,05/03/2020,Non-staff travel and subsistance,Digital Arts and Humanities and Creative Industries,Non Employee Expenses Supplier,98706840,86.10,Non-staff travel and subsistance
BEIS,UKRI - AHRC,05/03/2020,Non-staff travel and subsistance,Operations,Non Employee Expenses Supplier,98706841,16.60,Non-staff travel and subsistance
BEIS,UKRI - AHRC,05/03/2020,Non-staff travel and subsistance,Operations,Non Employee Expenses Supplier,98706842,36.30,Non-staff travel and subsistance
BEIS,UKRI - AHRC,05/03/2020,Non-staff travel and subsistance,Operations,Non Employee Expenses Supplier,98706843,198.06,Non-staff travel and subsistance
BEIS,UKRI - AHRC,05/03/2020,Non-staff travel and subsistance,Operations,Non Employee Expenses Supplier,98706844,212.67,Non-staff travel and subsistance
BEIS,UKRI - AHRC,05/03/2020,Non-staff travel and subsistance,Operations,Non Employee Expenses Supplier,98706845,25.00,Non-staff travel and subsistance
BEIS,UKRI - AHRC,05/03/2020,Non-staff travel and subsistance,Operations,Non Employee Expenses Supplier,98706846,225.07,Non-staff travel and subsistance
BEIS,UKRI - AHRC,05/03/2020,Non-staff travel and subsistance,Digital Arts and Humanities and Creative Industries,Non Employee Expenses Supplier,98706847,179.96,Non-staff travel and subsistance
BEIS,UKRI - AHRC,05/03/2020,Non-staff travel and subsistance,Skills Strategy,Non Employee Expenses Supplier,98706848,319.75,Non-staff travel and subsistance
BEIS,UKRI - AHRC,05/03/2020,Non-staff travel and subsistance,Towards a National Collection (SPF),Non Employee Expenses Supplier,98706849,176.00,Non-staff travel and subsistance
BEIS,UKRI - AHRC,05/03/2020,Non-staff travel and subsistance,Towards a National Collection (SPF),Non Employee Expenses Supplier,98706850,19.00,Non-staff travel and subsistance
BEIS,UKRI - AHRC,05/03/2020,Conferences & Seminars,Operations,Calder Conference Ltd,98708748,450.00,Conferences & Seminars
BEIS,UKRI - AHRC,05/03/2020,UK - Professional Memberships & Subscriptions,SMT,The Edinburgh Television Festival Council,98708776,37300.00,UK - Professional Memberships & Subscriptions
BEIS,UKRI - AHRC,05/03/2020,Non-staff travel and subsistance,Digital Arts and Humanities and Creative Industries,Corporate Travel Management (North) Ltd,98708843,0.80,Non-staff travel and subsistance
BEIS,UKRI - AHRC,05/03/2020,Non-staff travel and subsistance,Digital Arts and Humanities and Creative Industries,Corporate Travel Management (North) Ltd,98708843,42.08,Non-staff travel and subsistance
BEIS,UKRI - AHRC,05/03/2020,Non-staff travel and subsistance,Digital Arts and Humanities and Creative Industries,Corporate Travel Management (North) Ltd,98708843,0.16,Non-staff travel and subsistance
BEIS,UKRI - AHRC,05/03/2020,Non-staff travel and subsistance,Industrial Strategy Challenge Fund (ISCF) - Creative Clusters,Corporate Travel Management (North) Ltd,98708843,0.80,Non-staff travel and subsistance
BEIS,UKRI - AHRC,05/03/2020,Non-staff travel and subsistance,Industrial Strategy Challenge Fund (ISCF) - Creative Clusters,Corporate Travel Management (North) Ltd,98708843,65.00,Non-staff travel and subsistance
BEIS,UKRI - AHRC,05/03/2020,Non-staff travel and subsistance,Industrial Strategy Challenge Fund (ISCF) - Creative Clusters,Corporate Travel Management (North) Ltd,98708843,0.16,Non-staff travel and subsistance
BEIS,UKRI - AHRC,05/03/2020,Non-staff travel and subsistance,International Partnership and Engagement,Corporate Travel Management (North) Ltd,98708843,0.80,Non-staff travel and subsistance
BEIS,UKRI - AHRC,05/03/2020,Non-staff travel and subsistance,International Partnership and Engagement,Corporate Travel Management (North) Ltd,98708843,339.00,Non-staff travel and subsistance
BEIS,UKRI - AHRC,05/03/2020,Non-staff travel and subsistance,International Partnership and Engagement,Corporate Travel Management (North) Ltd,98708843,0.80,Non-staff travel and subsistance
BEIS,UKRI - AHRC,05/03/2020,Non-staff travel and subsistance,International Partnership and Engagement,Corporate Travel Management (North) Ltd,98708843,204.00,Non-staff travel and subsistance
BEIS,UKRI - AHRC,05/03/2020,Non-staff travel and subsistance,International Partnership and Engagement,Corporate Travel Management (North) Ltd,98708843,0.32,Non-staff travel and subsistance
BEIS,UKRI - AHRC,05/03/2020,T&S Overseas - Flights,GCRF - Programme Delivery,Corporate Travel Management (North) Ltd,98708843,2.50,T&S Overseas - Flights
BEIS,UKRI - AHRC,05/03/2020,T&S Overseas - Flights,GCRF - Programme Delivery,Corporate Travel Management (North) Ltd,98708843,399.77,T&S Overseas - Flights
BEIS,UKRI - AHRC,05/03/2020,T&S Overseas - Flights,"History, Heritage, Languages and Literature",Corporate Travel Management (North) Ltd,98708843,2.50,T&S Overseas - Flights
BEIS,UKRI - AHRC,05/03/2020,T&S Overseas - Flights,"History, Heritage, Languages and Literature",Corporate Travel Management (North) Ltd,98708843,306.62,T&S Overseas - Flights
BEIS,UKRI - AHRC,05/03/2020,T&S Overseas - Flights,"History, Heritage, Languages and Literature",Corporate Travel Management (North) Ltd,98708843,4.50,T&S Overseas - Flights
BEIS,UKRI - AHRC,05/03/2020,T&S Overseas - Flights,"History, Heritage, Languages and Literature",Corporate Travel Management (North) Ltd,98708843,157.00,T&S Overseas - Flights
BEIS,UKRI - AHRC,05/03/2020,T&S Overseas - Flights,International,Corporate Travel Management (North) Ltd,98708843,9.50,T&S Overseas - Flights
BEIS,UKRI - AHRC,05/03/2020,T&S Overseas - Flights,International,Corporate Travel Management (North) Ltd,98708843,710.07,T&S Overseas - Flights
BEIS,UKRI - AHRC,05/03/2020,T&S Overseas - Flights,International,Corporate Travel Management (North) Ltd,98708843,9.50,T&S Overseas - Flights
BEIS,UKRI - AHRC,05/03/2020,T&S Overseas - Flights,International,Corporate Travel Management (North) Ltd,98708843,100.50,T&S Overseas - Flights
BEIS,UKRI - AHRC,05/03/2020,T&S Overseas - Flights,International,Corporate Travel Management (North) Ltd,98708843,9.50,T&S Overseas - Flights
BEIS,UKRI - AHRC,05/03/2020,T&S Overseas - Flights,International,Corporate Travel Management (North) Ltd,98708843,1423.57,T&S Overseas - Flights
BEIS,UKRI - AHRC,05/03/2020,T&S Overseas - Flights,International Development and Area Studies,Corporate Travel Management (North) Ltd,98708843,9.50,T&S Overseas - Flights
BEIS,UKRI - AHRC,05/03/2020,T&S Overseas - Flights,International Development and Area Studies,Corporate Travel Management (North) Ltd,98708843,2524.77,T&S Overseas - Flights
BEIS,UKRI - AHRC,05/03/2020,T&S Overseas - Flights,International Development and Area Studies,Corporate Travel Management (North) Ltd,98708843,2.50,T&S Overseas - Flights
BEIS,UKRI - AHRC,05/03/2020,T&S Overseas - Flights,International Development and Area Studies,Corporate Travel Management (North) Ltd,98708843,407.57,T&S Overseas - Flights
BEIS,UKRI - AHRC,05/03/2020,T&S Overseas - Flights,SMT,Corporate Travel Management (North) Ltd,98708843,9.50,T&S Overseas - Flights
BEIS,UKRI - AHRC,05/03/2020,T&S Overseas - Flights,SMT,Corporate Travel Management (North) Ltd,98708843,3262.57,T&S Overseas - Flights
BEIS,UKRI - AHRC,05/03/2020,T&S Overseas - Flights,SMT,Corporate Travel Management (North) Ltd,98708843,9.50,T&S Overseas - Flights
BEIS,UKRI - AHRC,05/03/2020,T&S Overseas - Flights,SMT,Corporate Travel Management (North) Ltd,98708843,1086.87,T&S Overseas - Flights
BEIS,UKRI - AHRC,05/03/2020,T&S Overseas - Flights,SMT,Corporate Travel Management (North) Ltd,98708843,9.50,T&S Overseas - Flights
BEIS,UKRI - AHRC,05/03/2020,T&S Overseas - Flights,SMT,Corporate Travel Management (North) Ltd,98708843,1677.37,T&S Overseas - Flights
BEIS,UKRI - AHRC,05/03/2020,T&S Overseas - Flights,SMT,Corporate Travel Management (North) Ltd,98708843,2.50,T&S Overseas - Flights
BEIS,UKRI - AHRC,05/03/2020,T&S Overseas - Flights,SMT,Corporate Travel Management (North) Ltd,98708843,504.20,T&S Overseas - Flights
BEIS,UKRI - AHRC,05/03/2020,T&S Overseas - Flights,SMT,Corporate Travel Management (North) Ltd,98708843,9.50,T&S Overseas - Flights
BEIS,UKRI - AHRC,05/03/2020,T&S Overseas - Flights,SMT,Corporate Travel Management (North) Ltd,98708843,755.90,T&S Overseas - Flights
BEIS,UKRI - AHRC,05/03/2020,T&S Overseas - Flights,SMT,Corporate Travel Management (North) Ltd,98708843,9.50,T&S Overseas - Flights
BEIS,UKRI - AHRC,05/03/2020,T&S Overseas - Flights,SMT,Corporate Travel Management (North) Ltd,98708843,2572.90,T&S Overseas - Flights
BEIS,UKRI - AHRC,05/03/2020,T&S Overseas - Other Charges,SMT,Corporate Travel Management (North) Ltd,98708843,2.50,T&S Overseas - Other Charges
BEIS,UKRI - AHRC,05/03/2020,T&S Overseas - Other Charges,SMT,Corporate Travel Management (North) Ltd,98708843,505.30,T&S Overseas - Other Charges
BEIS,UKRI - AHRC,05/03/2020,T&S Overseas - Public Transport,Public and Stakeholder Engagement,Corporate Travel Management (North) Ltd,98708843,0.25,T&S Overseas - Public Transport
BEIS,UKRI - AHRC,05/03/2020,T&S Overseas - Public Transport,Public and Stakeholder Engagement,Corporate Travel Management (North) Ltd,98708843,24.05,T&S Overseas - Public Transport
BEIS,UKRI - AHRC,05/03/2020,T&S Overseas - Public Transport,SMT,Corporate Travel Management (North) Ltd,98708843,0.25,T&S Overseas - Public Transport
BEIS,UKRI - AHRC,05/03/2020,T&S Overseas - Public Transport,SMT,Corporate Travel Management (North) Ltd,98708843,52.00,T&S Overseas - Public Transport
BEIS,UKRI - AHRC,05/03/2020,T&S UK - Accommodation,Digital Arts and Humanities and Creative Industries,Corporate Travel Management (North) Ltd,98708843,0.80,T&S UK - Accommodation
BEIS,UKRI - AHRC,05/03/2020,T&S UK - Accommodation,Digital Arts and Humanities and Creative Industries,Corporate Travel Management (North) Ltd,98708843,0.16,T&S UK - Accommodation
BEIS,UKRI - AHRC,05/03/2020,T&S UK - Accommodation,HR,Corporate Travel Management (North) Ltd,98708843,0.80,T&S UK - Accommodation
BEIS,UKRI - AHRC,05/03/2020,T&S UK - Accommodation,HR,Corporate Travel Management (North) Ltd,98708843,168.32,T&S UK - Accommodation
BEIS,UKRI - AHRC,05/03/2020,T&S UK - Accommodation,HR,Corporate Travel Management (North) Ltd,98708843,0.16,T&S UK - Accommodation
BEIS,UKRI - AHRC,05/03/2020,T&S UK - Accommodation,"History, Heritage, Languages and Literature",Corporate Travel Management (North) Ltd,98708843,0.80,T&S UK - Accommodation
BEIS,UKRI - AHRC,05/03/2020,T&S UK - Accommodation,"History, Heritage, Languages and Literature",Corporate Travel Management (North) Ltd,98708843,168.10,T&S UK - Accommodation
BEIS,UKRI - AHRC,05/03/2020,T&S UK - Accommodation,"History, Heritage, Languages and Literature",Corporate Travel Management (North) Ltd,98708843,0.16,T&S UK - Accommodation
BEIS,UKRI - AHRC,05/03/2020,T&S UK - Accommodation,IS,Corporate Travel Management (North) Ltd,98708843,0.80,T&S UK - Accommodation
BEIS,UKRI - AHRC,05/03/2020,T&S UK - Accommodation,IS,Corporate Travel Management (North) Ltd,98708843,82.00,T&S UK - Accommodation
BEIS,UKRI - AHRC,05/03/2020,T&S UK - Accommodation,IS,Corporate Travel Management (North) Ltd,98708843,0.16,T&S UK - Accommodation
BEIS,UKRI - AHRC,05/03/2020,T&S UK - Accommodation,Industrial Strategy Challenge Fund (ISCF) - Creative Clusters,Corporate Travel Management (North) Ltd,98708843,0.80,T&S UK - Accommodation
BEIS,UKRI - AHRC,05/03/2020,T&S UK - Accommodation,Industrial Strategy Challenge Fund (ISCF) - Creative Clusters,Corporate Travel Management (North) Ltd,98708843,67.20,T&S UK - Accommodation
BEIS,UKRI - AHRC,05/03/2020,T&S UK - Accommodation,Industrial Strategy Challenge Fund (ISCF) - Creative Clusters,Corporate Travel Management (North) Ltd,98708843,0.80,T&S UK - Accommodation
BEIS,UKRI - AHRC,05/03/2020,T&S UK - Accommodation,Industrial Strategy Challenge Fund (ISCF) - Creative Clusters,Corporate Travel Management (North) Ltd,98708843,129.00,T&S UK - Accommodation
BEIS,UKRI - AHRC,05/03/2020,T&S UK - Accommodation,Industrial Strategy Challenge Fund (ISCF) - Creative Clusters,Corporate Travel Management (North) Ltd,98708843,0.32,T&S UK - Accommodation
BEIS,UKRI - AHRC,05/03/2020,T&S UK - Accommodation,International Partnership and Engagement,Corporate Travel Management (North) Ltd,98708843,0.80,T&S UK - Accommodation
BEIS,UKRI - AHRC,05/03/2020,T&S UK - Accommodation,International Partnership and Engagement,Corporate Travel Management (North) Ltd,98708843,339.00,T&S UK - Accommodation
BEIS,UKRI - AHRC,05/03/2020,T&S UK - Accommodation,International Partnership and Engagement,Corporate Travel Management (North) Ltd,98708843,0.80,T&S UK - Accommodation
BEIS,UKRI - AHRC,05/03/2020,T&S UK - Accommodation,International Partnership and Engagement,Corporate Travel Management (North) Ltd,98708843,239.00,T&S UK - Accommodation
BEIS,UKRI - AHRC,05/03/2020,T&S UK - Accommodation,International Partnership and Engagement,Corporate Travel Management (North) Ltd,98708843,0.80,T&S UK - Accommodation
BEIS,UKRI - AHRC,05/03/2020,T&S UK - Accommodation,International Partnership and Engagement,Corporate Travel Management (North) Ltd,98708843,127.25,T&S UK - Accommodation
BEIS,UKRI - AHRC,05/03/2020,T&S UK - Accommodation,International Partnership and Engagement,Corporate Travel Management (North) Ltd,98708843,0.80,T&S UK - Accommodation
BEIS,UKRI - AHRC,05/03/2020,T&S UK - Accommodation,International Partnership and Engagement,Corporate Travel Management (North) Ltd,98708843,48.68,T&S UK - Accommodation
BEIS,UKRI - AHRC,05/03/2020,T&S UK - Accommodation,International Partnership and Engagement,Corporate Travel Management (North) Ltd,98708843,0.64,T&S UK - Accommodation
BEIS,UKRI - AHRC,05/03/2020,T&S UK - Accommodation,Operations,Corporate Travel Management (North) Ltd,98708843,0.80,T&S UK - Accommodation
BEIS,UKRI - AHRC,05/03/2020,T&S UK - Accommodation,Operations,Corporate Travel Management (North) Ltd,98708843,69.00,T&S UK - Accommodation
BEIS,UKRI - AHRC,05/03/2020,T&S UK - Accommodation,Operations,Corporate Travel Management (North) Ltd,98708843,0.80,T&S UK - Accommodation
BEIS,UKRI - AHRC,05/03/2020,T&S UK - Accommodation,Operations,Corporate Travel Management (North) Ltd,98708843,69.00,T&S UK - Accommodation
BEIS,UKRI - AHRC,05/03/2020,T&S UK - Accommodation,Operations,Corporate Travel Management (North) Ltd,98708843,0.80,T&S UK - Accommodation
BEIS,UKRI - AHRC,05/03/2020,T&S UK - Accommodation,Operations,Corporate Travel Management (North) Ltd,98708843,82.00,T&S UK - Accommodation
BEIS,UKRI - AHRC,05/03/2020,T&S UK - Accommodation,Operations,Corporate Travel Management (North) Ltd,98708843,0.80,T&S UK - Accommodation
BEIS,UKRI - AHRC,05/03/2020,T&S UK - Accommodation,Operations,Corporate Travel Management (North) Ltd,98708843,75.00,T&S UK - Accommodation
BEIS,UKRI - AHRC,05/03/2020,T&S UK - Accommodation,Operations,Corporate Travel Management (North) Ltd,98708843,0.80,T&S UK - Accommodation
BEIS,UKRI - AHRC,05/03/2020,T&S UK - Accommodation,Operations,Corporate Travel Management (North) Ltd,98708843,75.00,T&S UK - Accommodation
BEIS,UKRI - AHRC,05/03/2020,T&S UK - Accommodation,Operations,Corporate Travel Management (North) Ltd,98708843,0.80,T&S UK - Accommodation
BEIS,UKRI - AHRC,05/03/2020,T&S UK - Accommodation,Operations,Corporate Travel Management (North) Ltd,98708843,63.29,T&S UK - Accommodation
BEIS,UKRI - AHRC,05/03/2020,T&S UK - Accommodation,Operations,Corporate Travel Management (North) Ltd,98708843,0.80,T&S UK - Accommodation
BEIS,UKRI - AHRC,05/03/2020,T&S UK - Accommodation,Operations,Corporate Travel Management (North) Ltd,98708843,63.29,T&S UK - Accommodation
BEIS,UKRI - AHRC,05/03/2020,T&S UK - Accommodation,Operations,Corporate Travel Management (North) Ltd,98708843,0.80,T&S UK - Accommodation
BEIS,UKRI - AHRC,05/03/2020,T&S UK - Accommodation,Operations,Corporate Travel Management (North) Ltd,98708843,63.29,T&S UK - Accommodation
BEIS,UKRI - AHRC,05/03/2020,T&S UK - Accommodation,Operations,Corporate Travel Management (North) Ltd,98708843,0.80,T&S UK - Accommodation
BEIS,UKRI - AHRC,05/03/2020,T&S UK - Accommodation,Operations,Corporate Travel Management (North) Ltd,98708843,63.29,T&S UK - Accommodation
BEIS,UKRI - AHRC,05/03/2020,T&S UK - Accommodation,Operations,Corporate Travel Management (North) Ltd,98708843,0.80,T&S UK - Accommodation
BEIS,UKRI - AHRC,05/03/2020,T&S UK - Accommodation,Operations,Corporate Travel Management (North) Ltd,98708843,63.29,T&S UK - Accommodation
BEIS,UKRI - AHRC,05/03/2020,T&S UK - Accommodation,Operations,Corporate Travel Management (North) Ltd,98708843,0.80,T&S UK - Accommodation
BEIS,UKRI - AHRC,05/03/2020,T&S UK - Accommodation,Operations,Corporate Travel Management (North) Ltd,98708843,63.29,T&S UK - Accommodation
BEIS,UKRI - AHRC,05/03/2020,T&S UK - Accommodation,Operations,Corporate Travel Management (North) Ltd,98708843,0.80,T&S UK - Accommodation
BEIS,UKRI - AHRC,05/03/2020,T&S UK - Accommodation,Operations,Corporate Travel Management (North) Ltd,98708843,63.29,T&S UK - Accommodation
BEIS,UKRI - AHRC,05/03/2020,T&S UK - Accommodation,Operations,Corporate Travel Management (North) Ltd,98708843,0.80,T&S UK - Accommodation
BEIS,UKRI - AHRC,05/03/2020,T&S UK - Accommodation,Operations,Corporate Travel Management (North) Ltd,98708843,63.29,T&S UK - Accommodation
BEIS,UKRI - AHRC,05/03/2020,T&S UK - Accommodation,Operations,Corporate Travel Management (North) Ltd,98708843,0.80,T&S UK - Accommodation
BEIS,UKRI - AHRC,05/03/2020,T&S UK - Accommodation,Operations,Corporate Travel Management (North) Ltd,98708843,63.29,T&S UK - Accommodation
BEIS,UKRI - AHRC,05/03/2020,T&S UK - Accommodation,Operations,Corporate Travel Management (North) Ltd,98708843,0.80,T&S UK - Accommodation
BEIS,UKRI - AHRC,05/03/2020,T&S UK - Accommodation,Operations,Corporate Travel Management (North) Ltd,98708843,63.29,T&S UK - Accommodation
BEIS,UKRI - AHRC,05/03/2020,T&S UK - Accommodation,Operations,Corporate Travel Management (North) Ltd,98708843,0.80,T&S UK - Accommodation
BEIS,UKRI - AHRC,05/03/2020,T&S UK - Accommodation,Operations,Corporate Travel Management (North) Ltd,98708843,75.00,T&S UK - Accommodation
BEIS,UKRI - AHRC,05/03/2020,T&S UK - Accommodation,Operations,Corporate Travel Management (North) Ltd,98708843,0.80,T&S UK - Accommodation
BEIS,UKRI - AHRC,05/03/2020,T&S UK - Accommodation,Operations,Corporate Travel Management (North) Ltd,98708843,75.00,T&S UK - Accommodation
BEIS,UKRI - AHRC,05/03/2020,T&S UK - Accommodation,Operations,Corporate Travel Management (North) Ltd,98708843,0.80,T&S UK - Accommodation
BEIS,UKRI - AHRC,05/03/2020,T&S UK - Accommodation,Operations,Corporate Travel Management (North) Ltd,98708843,75.00,T&S UK - Accommodation
BEIS,UKRI - AHRC,05/03/2020,T&S UK - Accommodation,Operations,Corporate Travel Management (North) Ltd,98708843,0.80,T&S UK - Accommodation
BEIS,UKRI - AHRC,05/03/2020,T&S UK - Accommodation,Operations,Corporate Travel Management (North) Ltd,98708843,75.00,T&S UK - Accommodation
BEIS,UKRI - AHRC,05/03/2020,T&S UK - Accommodation,Operations,Corporate Travel Management (North) Ltd,98708843,0.80,T&S UK - Accommodation
BEIS,UKRI - AHRC,05/03/2020,T&S UK - Accommodation,Operations,Corporate Travel Management (North) Ltd,98708843,75.00,T&S UK - Accommodation
BEIS,UKRI - AHRC,05/03/2020,T&S UK - Accommodation,Operations,Corporate Travel Management (North) Ltd,98708843,0.80,T&S UK - Accommodation
BEIS,UKRI - AHRC,05/03/2020,T&S UK - Accommodation,Operations,Corporate Travel Management (North) Ltd,98708843,87.30,T&S UK - Accommodation
BEIS,UKRI - AHRC,05/03/2020,T&S UK - Accommodation,Operations,Corporate Travel Management (North) Ltd,98708843,0.80,T&S UK - Accommodation
BEIS,UKRI - AHRC,05/03/2020,T&S UK - Accommodation,Operations,Corporate Travel Management (North) Ltd,98708843,85.00,T&S UK - Accommodation
BEIS,UKRI - AHRC,05/03/2020,T&S UK - Accommodation,Operations,Corporate Travel Management (North) Ltd,98708843,0.80,T&S UK - Accommodation
BEIS,UKRI - AHRC,05/03/2020,T&S UK - Accommodation,Operations,Corporate Travel Management (North) Ltd,98708843,87.30,T&S UK - Accommodation
BEIS,UKRI - AHRC,05/03/2020,T&S UK - Accommodation,Operations,Corporate Travel Management (North) Ltd,98708843,0.80,T&S UK - Accommodation
BEIS,UKRI - AHRC,05/03/2020,T&S UK - Accommodation,Operations,Corporate Travel Management (North) Ltd,98708843,87.30,T&S UK - Accommodation
BEIS,UKRI - AHRC,05/03/2020,T&S UK - Accommodation,Operations,Corporate Travel Management (North) Ltd,98708843,0.80,T&S UK - Accommodation
BEIS,UKRI - AHRC,05/03/2020,T&S UK - Accommodation,Operations,Corporate Travel Management (North) Ltd,98708843,42.08,T&S UK - Accommodation
BEIS,UKRI - AHRC,05/03/2020,T&S UK - Accommodation,Operations,Corporate Travel Management (North) Ltd,98708843,0.80,T&S UK - Accommodation
BEIS,UKRI - AHRC,05/03/2020,T&S UK - Accommodation,Operations,Corporate Travel Management (North) Ltd,98708843,42.08,T&S UK - Accommodation
BEIS,UKRI - AHRC,05/03/2020,T&S UK - Accommodation,Operations,Corporate Travel Management (North) Ltd,98708843,0.80,T&S UK - Accommodation
BEIS,UKRI - AHRC,05/03/2020,T&S UK - Accommodation,Operations,Corporate Travel Management (North) Ltd,98708843,42.08,T&S UK - Accommodation
BEIS,UKRI - AHRC,05/03/2020,T&S UK - Accommodation,Operations,Corporate Travel Management (North) Ltd,98708843,0.80,T&S UK - Accommodation
BEIS,UKRI - AHRC,05/03/2020,T&S UK - Accommodation,Operations,Corporate Travel Management (North) Ltd,98708843,45.11,T&S UK - Accommodation
BEIS,UKRI - AHRC,05/03/2020,T&S UK - Accommodation,Operations,Corporate Travel Management (North) Ltd,98708843,0.80,T&S UK - Accommodation
BEIS,UKRI - AHRC,05/03/2020,T&S UK - Accommodation,Operations,Corporate Travel Management (North) Ltd,98708843,45.11,T&S UK - Accommodation
BEIS,UKRI - AHRC,05/03/2020,T&S UK - Accommodation,Operations,Corporate Travel Management (North) Ltd,98708843,0.80,T&S UK - Accommodation
BEIS,UKRI - AHRC,05/03/2020,T&S UK - Accommodation,Operations,Corporate Travel Management (North) Ltd,98708843,45.11,T&S UK - Accommodation
BEIS,UKRI - AHRC,05/03/2020,T&S UK - Accommodation,Operations,Corporate Travel Management (North) Ltd,98708843,0.80,T&S UK - Accommodation
BEIS,UKRI - AHRC,05/03/2020,T&S UK - Accommodation,Operations,Corporate Travel Management (North) Ltd,98708843,45.11,T&S UK - Accommodation
BEIS,UKRI - AHRC,05/03/2020,T&S UK - Accommodation,Operations,Corporate Travel Management (North) Ltd,98708843,2.00,T&S UK - Accommodation
BEIS,UKRI - AHRC,05/03/2020,T&S UK - Accommodation,Operations,Corporate Travel Management (North) Ltd,98708843,45.11,T&S UK - Accommodation
BEIS,UKRI - AHRC,05/03/2020,T&S UK - Accommodation,Operations,Corporate Travel Management (North) Ltd,98708843,0.80,T&S UK - Accommodation
BEIS,UKRI - AHRC,05/03/2020,T&S UK - Accommodation,Operations,Corporate Travel Management (North) Ltd,98708843,45.11,T&S UK - Accommodation
BEIS,UKRI - AHRC,05/03/2020,T&S UK - Accommodation,Operations,Corporate Travel Management (North) Ltd,98708843,0.80,T&S UK - Accommodation
BEIS,UKRI - AHRC,05/03/2020,T&S UK - Accommodation,Operations,Corporate Travel Management (North) Ltd,98708843,45.11,T&S UK - Accommodation
BEIS,UKRI - AHRC,05/03/2020,T&S UK - Accommodation,Operations,Corporate Travel Management (North) Ltd,98708843,0.80,T&S UK - Accommodation
BEIS,UKRI - AHRC,05/03/2020,T&S UK - Accommodation,Operations,Corporate Travel Management (North) Ltd,98708843,45.11,T&S UK - Accommodation
BEIS,UKRI - AHRC,05/03/2020,T&S UK - Accommodation,Operations,Corporate Travel Management (North) Ltd,98708843,0.80,T&S UK - Accommodation
BEIS,UKRI - AHRC,05/03/2020,T&S UK - Accommodation,Operations,Corporate Travel Management (North) Ltd,98708843,45.11,T&S UK - Accommodation
BEIS,UKRI - AHRC,05/03/2020,T&S UK - Accommodation,Operations,Corporate Travel Management (North) Ltd,98708843,0.80,T&S UK - Accommodation
BEIS,UKRI - AHRC,05/03/2020,T&S UK - Accommodation,Operations,Corporate Travel Management (North) Ltd,98708843,47.74,T&S UK - Accommodation
BEIS,UKRI - AHRC,05/03/2020,T&S UK - Accommodation,Operations,Corporate Travel Management (North) Ltd,98708843,0.80,T&S UK - Accommodation
BEIS,UKRI - AHRC,05/03/2020,T&S UK - Accommodation,Operations,Corporate Travel Management (North) Ltd,98708843,47.74,T&S UK - Accommodation
BEIS,UKRI - AHRC,05/03/2020,T&S UK - Accommodation,Operations,Corporate Travel Management (North) Ltd,98708843,0.80,T&S UK - Accommodation
BEIS,UKRI - AHRC,05/03/2020,T&S UK - Accommodation,Operations,Corporate Travel Management (North) Ltd,98708843,47.74,T&S UK - Accommodation
BEIS,UKRI - AHRC,05/03/2020,T&S UK - Accommodation,Operations,Corporate Travel Management (North) Ltd,98708843,0.80,T&S UK - Accommodation
BEIS,UKRI - AHRC,05/03/2020,T&S UK - Accommodation,Operations,Corporate Travel Management (North) Ltd,98708843,47.74,T&S UK - Accommodation
BEIS,UKRI - AHRC,05/03/2020,T&S UK - Accommodation,Operations,Corporate Travel Management (North) Ltd,98708843,0.80,T&S UK - Accommodation
BEIS,UKRI - AHRC,05/03/2020,T&S UK - Accommodation,Operations,Corporate Travel Management (North) Ltd,98708843,48.74,T&S UK - Accommodation
BEIS,UKRI - AHRC,05/03/2020,T&S UK - Accommodation,Operations,Corporate Travel Management (North) Ltd,98708843,0.80,T&S UK - Accommodation
BEIS,UKRI - AHRC,05/03/2020,T&S UK - Accommodation,Operations,Corporate Travel Management (North) Ltd,98708843,47.74,T&S UK - Accommodation
BEIS,UKRI - AHRC,05/03/2020,T&S UK - Accommodation,Operations,Corporate Travel Management (North) Ltd,98708843,0.80,T&S UK - Accommodation
BEIS,UKRI - AHRC,05/03/2020,T&S UK - Accommodation,Operations,Corporate Travel Management (North) Ltd,98708843,53.60,T&S UK - Accommodation
BEIS,UKRI - AHRC,05/03/2020,T&S UK - Accommodation,Operations,Corporate Travel Management (North) Ltd,98708843,0.80,T&S UK - Accommodation
BEIS,UKRI - AHRC,05/03/2020,T&S UK - Accommodation,Operations,Corporate Travel Management (North) Ltd,98708843,53.60,T&S UK - Accommodation
BEIS,UKRI - AHRC,05/03/2020,T&S UK - Accommodation,Operations,Corporate Travel Management (North) Ltd,98708843,0.80,T&S UK - Accommodation
BEIS,UKRI - AHRC,05/03/2020,T&S UK - Accommodation,Operations,Corporate Travel Management (North) Ltd,98708843,47.74,T&S UK - Accommodation
BEIS,UKRI - AHRC,05/03/2020,T&S UK - Accommodation,Operations,Corporate Travel Management (North) Ltd,98708843,0.80,T&S UK - Accommodation
BEIS,UKRI - AHRC,05/03/2020,T&S UK - Accommodation,Operations,Corporate Travel Management (North) Ltd,98708843,53.60,T&S UK - Accommodation
BEIS,UKRI - AHRC,05/03/2020,T&S UK - Accommodation,Operations,Corporate Travel Management (North) Ltd,98708843,0.80,T&S UK - Accommodation
BEIS,UKRI - AHRC,05/03/2020,T&S UK - Accommodation,Operations,Corporate Travel Management (North) Ltd,98708843,53.60,T&S UK - Accommodation
BEIS,UKRI - AHRC,05/03/2020,T&S UK - Accommodation,Operations,Corporate Travel Management (North) Ltd,98708843,0.80,T&S UK - Accommodation
BEIS,UKRI - AHRC,05/03/2020,T&S UK - Accommodation,Operations,Corporate Travel Management (North) Ltd,98708843,53.60,T&S UK - Accommodation
BEIS,UKRI - AHRC,05/03/2020,T&S UK - Accommodation,Operations,Corporate Travel Management (North) Ltd,98708843,0.80,T&S UK - Accommodation
BEIS,UKRI - AHRC,05/03/2020,T&S UK - Accommodation,Operations,Corporate Travel Management (North) Ltd,98708843,53.60,T&S UK - Accommodation
BEIS,UKRI - AHRC,05/03/2020,T&S UK - Accommodation,Operations,Corporate Travel Management (North) Ltd,98708843,0.80,T&S UK - Accommodation
BEIS,UKRI - AHRC,05/03/2020,T&S UK - Accommodation,Operations,Corporate Travel Management (North) Ltd,98708843,53.60,T&S UK - Accommodation
BEIS,UKRI - AHRC,05/03/2020,T&S UK - Accommodation,Operations,Corporate Travel Management (North) Ltd,98708843,0.80,T&S UK - Accommodation
BEIS,UKRI - AHRC,05/03/2020,T&S UK - Accommodation,Operations,Corporate Travel Management (North) Ltd,98708843,47.74,T&S UK - Accommodation
BEIS,UKRI - AHRC,05/03/2020,T&S UK - Accommodation,Operations,Corporate Travel Management (North) Ltd,98708843,0.80,T&S UK - Accommodation
BEIS,UKRI - AHRC,05/03/2020,T&S UK - Accommodation,Operations,Corporate Travel Management (North) Ltd,98708843,47.74,T&S UK - Accommodation
BEIS,UKRI - AHRC,05/03/2020,T&S UK - Accommodation,Operations,Corporate Travel Management (North) Ltd,98708843,0.80,T&S UK - Accommodation
BEIS,UKRI - AHRC,05/03/2020,T&S UK - Accommodation,Operations,Corporate Travel Management (North) Ltd,98708843,39.74,T&S UK - Accommodation
BEIS,UKRI - AHRC,05/03/2020,T&S UK - Accommodation,Operations,Corporate Travel Management (North) Ltd,98708843,0.80,T&S UK - Accommodation
BEIS,UKRI - AHRC,05/03/2020,T&S UK - Accommodation,Operations,Corporate Travel Management (North) Ltd,98708843,47.74,T&S UK - Accommodation
BEIS,UKRI - AHRC,05/03/2020,T&S UK - Accommodation,Operations,Corporate Travel Management (North) Ltd,98708843,0.80,T&S UK - Accommodation
BEIS,UKRI - AHRC,05/03/2020,T&S UK - Accommodation,Operations,Corporate Travel Management (North) Ltd,98708843,47.74,T&S UK - Accommodation
BEIS,UKRI - AHRC,05/03/2020,T&S UK - Accommodation,Operations,Corporate Travel Management (North) Ltd,98708843,0.80,T&S UK - Accommodation
BEIS,UKRI - AHRC,05/03/2020,T&S UK - Accommodation,Operations,Corporate Travel Management (North) Ltd,98708843,47.74,T&S UK - Accommodation
BEIS,UKRI - AHRC,05/03/2020,T&S UK - Accommodation,Operations,Corporate Travel Management (North) Ltd,98708843,0.80,T&S UK - Accommodation
BEIS,UKRI - AHRC,05/03/2020,T&S UK - Accommodation,Operations,Corporate Travel Management (North) Ltd,98708843,47.74,T&S UK - Accommodation
BEIS,UKRI - AHRC,05/03/2020,T&S UK - Accommodation,Operations,Corporate Travel Management (North) Ltd,98708843,9.36,T&S UK - Accommodation
BEIS,UKRI - AHRC,05/03/2020,T&S UK - Accommodation,Public and Stakeholder Engagement,Corporate Travel Management (North) Ltd,98708843,0.80,T&S UK - Accommodation
BEIS,UKRI - AHRC,05/03/2020,T&S UK - Accommodation,Public and Stakeholder Engagement,Corporate Travel Management (North) Ltd,98708843,85.00,T&S UK - Accommodation
BEIS,UKRI - AHRC,05/03/2020,T&S UK - Accommodation,Public and Stakeholder Engagement,Corporate Travel Management (North) Ltd,98708843,0.80,T&S UK - Accommodation
BEIS,UKRI - AHRC,05/03/2020,T&S UK - Accommodation,Public and Stakeholder Engagement,Corporate Travel Management (North) Ltd,98708843,82.00,T&S UK - Accommodation
BEIS,UKRI - AHRC,05/03/2020,T&S UK - Accommodation,Public and Stakeholder Engagement,Corporate Travel Management (North) Ltd,98708843,0.80,T&S UK - Accommodation
BEIS,UKRI - AHRC,05/03/2020,T&S UK - Accommodation,Public and Stakeholder Engagement,Corporate Travel Management (North) Ltd,98708843,82.00,T&S UK - Accommodation
BEIS,UKRI - AHRC,05/03/2020,T&S UK - Accommodation,Public and Stakeholder Engagement,Corporate Travel Management (North) Ltd,98708843,0.80,T&S UK - Accommodation
BEIS,UKRI - AHRC,05/03/2020,T&S UK - Accommodation,Public and Stakeholder Engagement,Corporate Travel Management (North) Ltd,98708843,95.00,T&S UK - Accommodation
BEIS,UKRI - AHRC,05/03/2020,T&S UK - Accommodation,Public and Stakeholder Engagement,Corporate Travel Management (North) Ltd,98708843,0.80,T&S UK - Accommodation
BEIS,UKRI - AHRC,05/03/2020,T&S UK - Accommodation,Public and Stakeholder Engagement,Corporate Travel Management (North) Ltd,98708843,95.00,T&S UK - Accommodation
BEIS,UKRI - AHRC,05/03/2020,T&S UK - Accommodation,Public and Stakeholder Engagement,Corporate Travel Management (North) Ltd,98708843,0.80,T&S UK - Accommodation
BEIS,UKRI - AHRC,05/03/2020,T&S UK - Accommodation,Public and Stakeholder Engagement,Corporate Travel Management (North) Ltd,98708843,189.00,T&S UK - Accommodation
BEIS,UKRI - AHRC,05/03/2020,T&S UK - Accommodation,Public and Stakeholder Engagement,Corporate Travel Management (North) Ltd,98708843,0.80,T&S UK - Accommodation
BEIS,UKRI - AHRC,05/03/2020,T&S UK - Accommodation,Public and Stakeholder Engagement,Corporate Travel Management (North) Ltd,98708843,64.40,T&S UK - Accommodation
BEIS,UKRI - AHRC,05/03/2020,T&S UK - Accommodation,Public and Stakeholder Engagement,Corporate Travel Management (North) Ltd,98708843,1.12,T&S UK - Accommodation
BEIS,UKRI - AHRC,05/03/2020,T&S UK - Accommodation,SMT,Corporate Travel Management (North) Ltd,98708843,0.80,T&S UK - Accommodation
BEIS,UKRI - AHRC,05/03/2020,T&S UK - Accommodation,SMT,Corporate Travel Management (North) Ltd,98708843,82.00,T&S UK - Accommodation
BEIS,UKRI - AHRC,05/03/2020,T&S UK - Accommodation,SMT,Corporate Travel Management (North) Ltd,98708843,0.80,T&S UK - Accommodation
BEIS,UKRI - AHRC,05/03/2020,T&S UK - Accommodation,SMT,Corporate Travel Management (North) Ltd,98708843,82.00,T&S UK - Accommodation
BEIS,UKRI - AHRC,05/03/2020,T&S UK - Accommodation,SMT,Corporate Travel Management (North) Ltd,98708843,0.80,T&S UK - Accommodation
BEIS,UKRI - AHRC,05/03/2020,T&S UK - Accommodation,SMT,Corporate Travel Management (North) Ltd,98708843,125.75,T&S UK - Accommodation
BEIS,UKRI - AHRC,05/03/2020,T&S UK - Accommodation,SMT,Corporate Travel Management (North) Ltd,98708843,0.48,T&S UK - Accommodation
BEIS,UKRI - AHRC,05/03/2020,T&S UK - Accommodation,Secretariat,Corporate Travel Management (North) Ltd,98708843,0.80,T&S UK - Accommodation
BEIS,UKRI - AHRC,05/03/2020,T&S UK - Accommodation,Secretariat,Corporate Travel Management (North) Ltd,98708843,145.01,T&S UK - Accommodation
BEIS,UKRI - AHRC,05/03/2020,T&S UK - Accommodation,Secretariat,Corporate Travel Management (North) Ltd,98708843,0.16,T&S UK - Accommodation
BEIS,UKRI - AHRC,05/03/2020,T&S UK - Accommodation,Skills Strategy,Corporate Travel Management (North) Ltd,98708843,0.80,T&S UK - Accommodation
BEIS,UKRI - AHRC,05/03/2020,T&S UK - Accommodation,Skills Strategy,Corporate Travel Management (North) Ltd,98708843,47.74,T&S UK - Accommodation
BEIS,UKRI - AHRC,05/03/2020,T&S UK - Accommodation,Skills Strategy,Corporate Travel Management (North) Ltd,98708843,0.80,T&S UK - Accommodation
BEIS,UKRI - AHRC,05/03/2020,T&S UK - Accommodation,Skills Strategy,Corporate Travel Management (North) Ltd,98708843,82.00,T&S UK - Accommodation
BEIS,UKRI - AHRC,05/03/2020,T&S UK - Accommodation,Skills Strategy,Corporate Travel Management (North) Ltd,98708843,0.80,T&S UK - Accommodation
BEIS,UKRI - AHRC,05/03/2020,T&S UK - Accommodation,Skills Strategy,Corporate Travel Management (North) Ltd,98708843,56.50,T&S UK - Accommodation
BEIS,UKRI - AHRC,05/03/2020,T&S UK - Accommodation,Skills Strategy,Corporate Travel Management (North) Ltd,98708843,0.80,T&S UK - Accommodation
BEIS,UKRI - AHRC,05/03/2020,T&S UK - Accommodation,Skills Strategy,Corporate Travel Management (North) Ltd,98708843,56.50,T&S UK - Accommodation
BEIS,UKRI - AHRC,05/03/2020,T&S UK - Accommodation,Skills Strategy,Corporate Travel Management (North) Ltd,98708843,0.80,T&S UK - Accommodation
BEIS,UKRI - AHRC,05/03/2020,T&S UK - Accommodation,Skills Strategy,Corporate Travel Management (North) Ltd,98708843,56.50,T&S UK - Accommodation
BEIS,UKRI - AHRC,05/03/2020,T&S UK - Accommodation,Skills Strategy,Corporate Travel Management (North) Ltd,98708843,0.80,T&S UK - Accommodation
BEIS,UKRI - AHRC,05/03/2020,T&S UK - Flights,Digital Arts and Humanities and Creative Industries,Corporate Travel Management (North) Ltd,98708843,2.50,T&S UK - Flights
BEIS,UKRI - AHRC,05/03/2020,T&S UK - Flights,Digital Arts and Humanities and Creative Industries,Corporate Travel Management (North) Ltd,98708843,86.31,T&S UK - Flights
BEIS,UKRI - AHRC,05/03/2020,T&S UK - Flights,Digital Arts and Humanities and Creative Industries,Corporate Travel Management (North) Ltd,98708843,2.50,T&S UK - Flights
BEIS,UKRI - AHRC,05/03/2020,T&S UK - Flights,Digital Arts and Humanities and Creative Industries,Corporate Travel Management (North) Ltd,98708843,303.68,T&S UK - Flights
BEIS,UKRI - AHRC,05/03/2020,T&S UK - Flights,Industrial Strategy Challenge Fund (ISCF) - Creative Clusters,Corporate Travel Management (North) Ltd,98708843,2.50,T&S UK - Flights
BEIS,UKRI - AHRC,05/03/2020,T&S UK - Flights,Industrial Strategy Challenge Fund (ISCF) - Creative Clusters,Corporate Travel Management (North) Ltd,98708843,156.47,T&S UK - Flights
BEIS,UKRI - AHRC,05/03/2020,T&S UK - Flights,Industrial Strategy Challenge Fund (ISCF) - Creative Clusters,Corporate Travel Management (North) Ltd,98708843,2.50,T&S UK - Flights
BEIS,UKRI - AHRC,05/03/2020,T&S UK - Flights,Industrial Strategy Challenge Fund (ISCF) - Creative Clusters,Corporate Travel Management (North) Ltd,98708843,27.99,T&S UK - Flights
BEIS,UKRI - AHRC,05/03/2020,T&S UK - Flights,Industrial Strategy Challenge Fund (ISCF) - Creative Clusters,Corporate Travel Management (North) Ltd,98708843,2.50,T&S UK - Flights
BEIS,UKRI - AHRC,05/03/2020,T&S UK - Flights,Industrial Strategy Challenge Fund (ISCF) - Creative Clusters,Corporate Travel Management (North) Ltd,98708843,55.31,T&S UK - Flights
BEIS,UKRI - AHRC,05/03/2020,T&S UK - Flights,Operations,Corporate Travel Management (North) Ltd,98708843,2.50,T&S UK - Flights
BEIS,UKRI - AHRC,05/03/2020,T&S UK - Flights,Operations,Corporate Travel Management (North) Ltd,98708843,95.98,T&S UK - Flights
BEIS,UKRI - AHRC,05/03/2020,T&S UK - Flights,Operations,Corporate Travel Management (North) Ltd,98708843,2.50,T&S UK - Flights
BEIS,UKRI - AHRC,05/03/2020,T&S UK - Flights,Operations,Corporate Travel Management (North) Ltd,98708843,95.98,T&S UK - Flights
BEIS,UKRI - AHRC,05/03/2020,T&S UK - Flights,Operations,Corporate Travel Management (North) Ltd,98708843,2.50,T&S UK - Flights
BEIS,UKRI - AHRC,05/03/2020,T&S UK - Flights,Operations,Corporate Travel Management (North) Ltd,98708843,71.99,T&S UK - Flights
BEIS,UKRI - AHRC,05/03/2020,T&S UK - Flights,Operations,Corporate Travel Management (North) Ltd,98708843,2.50,T&S UK - Flights
BEIS,UKRI - AHRC,05/03/2020,T&S UK - Flights,Operations,Corporate Travel Management (North) Ltd,98708843,91.98,T&S UK - Flights
BEIS,UKRI - AHRC,05/03/2020,T&S UK - Flights,Operations,Corporate Travel Management (North) Ltd,98708843,2.50,T&S UK - Flights
BEIS,UKRI - AHRC,05/03/2020,T&S UK - Flights,Operations,Corporate Travel Management (North) Ltd,98708843,100.98,T&S UK - Flights
BEIS,UKRI - AHRC,05/03/2020,T&S UK - Flights,Operations,Corporate Travel Management (North) Ltd,98708843,2.50,T&S UK - Flights
BEIS,UKRI - AHRC,05/03/2020,T&S UK - Flights,Operations,Corporate Travel Management (North) Ltd,98708843,84.98,T&S UK - Flights
BEIS,UKRI - AHRC,05/03/2020,T&S UK - Flights,Operations,Corporate Travel Management (North) Ltd,98708843,2.50,T&S UK - Flights
BEIS,UKRI - AHRC,05/03/2020,T&S UK - Flights,Operations,Corporate Travel Management (North) Ltd,98708843,95.98,T&S UK - Flights
BEIS,UKRI - AHRC,05/03/2020,T&S UK - Flights,SMT,Corporate Travel Management (North) Ltd,98708843,2.50,T&S UK - Flights
BEIS,UKRI - AHRC,05/03/2020,T&S UK - Flights,SMT,Corporate Travel Management (North) Ltd,98708843,161.91,T&S UK - Flights
BEIS,UKRI - AHRC,05/03/2020,T&S UK - Public Transport,Corporate Services,Corporate Travel Management (North) Ltd,98708843,0.25,T&S UK - Public Transport
BEIS,UKRI - AHRC,05/03/2020,T&S UK - Public Transport,Corporate Services,Corporate Travel Management (North) Ltd,98708843,148.00,T&S UK - Public Transport
BEIS,UKRI - AHRC,05/03/2020,T&S UK - Public Transport,Digital Arts and Humanities and Creative Industries,Corporate Travel Management (North) Ltd,98708843,0.25,T&S UK - Public Transport
BEIS,UKRI - AHRC,05/03/2020,T&S UK - Public Transport,Digital Arts and Humanities and Creative Industries,Corporate Travel Management (North) Ltd,98708843,114.10,T&S UK - Public Transport
BEIS,UKRI - AHRC,05/03/2020,T&S UK - Public Transport,Digital Arts and Humanities and Creative Industries,Corporate Travel Management (North) Ltd,98708843,0.25,T&S UK - Public Transport
BEIS,UKRI - AHRC,05/03/2020,T&S UK - Public Transport,Digital Arts and Humanities and Creative Industries,Corporate Travel Management (North) Ltd,98708843,183.30,T&S UK - Public Transport
BEIS,UKRI - AHRC,05/03/2020,T&S UK - Public Transport,Digital Arts and Humanities and Creative Industries,Corporate Travel Management (North) Ltd,98708843,0.25,T&S UK - Public Transport
BEIS,UKRI - AHRC,05/03/2020,T&S UK - Public Transport,Digital Arts and Humanities and Creative Industries,Corporate Travel Management (North) Ltd,98708843,130.30,T&S UK - Public Transport
BEIS,UKRI - AHRC,05/03/2020,T&S UK - Public Transport,Digital Arts and Humanities and Creative Industries,Corporate Travel Management (North) Ltd,98708843,0.25,T&S UK - Public Transport
BEIS,UKRI - AHRC,05/03/2020,T&S UK - Public Transport,Digital Arts and Humanities and Creative Industries,Corporate Travel Management (North) Ltd,98708843,136.90,T&S UK - Public Transport
BEIS,UKRI - AHRC,05/03/2020,T&S UK - Public Transport,Digital Arts and Humanities and Creative Industries,Corporate Travel Management (North) Ltd,98708843,0.25,T&S UK - Public Transport
BEIS,UKRI - AHRC,05/03/2020,T&S UK - Public Transport,Digital Arts and Humanities and Creative Industries,Corporate Travel Management (North) Ltd,98708843,175.50,T&S UK - Public Transport
BEIS,UKRI - AHRC,05/03/2020,T&S UK - Public Transport,Digital Arts and Humanities and Creative Industries,Corporate Travel Management (North) Ltd,98708843,0.25,T&S UK - Public Transport
BEIS,UKRI - AHRC,05/03/2020,T&S UK - Public Transport,Digital Arts and Humanities and Creative Industries,Corporate Travel Management (North) Ltd,98708843,136.90,T&S UK - Public Transport
BEIS,UKRI - AHRC,05/03/2020,T&S UK - Public Transport,Digital Arts and Humanities and Creative Industries,Corporate Travel Management (North) Ltd,98708843,0.50,T&S UK - Public Transport
BEIS,UKRI - AHRC,05/03/2020,T&S UK - Public Transport,Digital Arts and Humanities and Creative Industries,Corporate Travel Management (North) Ltd,98708843,82.00,T&S UK - Public Transport
BEIS,UKRI - AHRC,05/03/2020,T&S UK - Public Transport,Digital Arts and Humanities and Creative Industries,Corporate Travel Management (North) Ltd,98708843,13.50,T&S UK - Public Transport
BEIS,UKRI - AHRC,05/03/2020,T&S UK - Public Transport,Digital Arts and Humanities and Creative Industries,Corporate Travel Management (North) Ltd,98708843,0.25,T&S UK - Public Transport
BEIS,UKRI - AHRC,05/03/2020,T&S UK - Public Transport,Digital Arts and Humanities and Creative Industries,Corporate Travel Management (North) Ltd,98708843,121.10,T&S UK - Public Transport
BEIS,UKRI - AHRC,05/03/2020,T&S UK - Public Transport,Executive Office,Corporate Travel Management (North) Ltd,98708843,0.25,T&S UK - Public Transport
BEIS,UKRI - AHRC,05/03/2020,T&S UK - Public Transport,Executive Office,Corporate Travel Management (North) Ltd,98708843,55.50,T&S UK - Public Transport
BEIS,UKRI - AHRC,05/03/2020,T&S UK - Public Transport,Executive Office,Corporate Travel Management (North) Ltd,98708843,5.00,T&S UK - Public Transport
BEIS,UKRI - AHRC,05/03/2020,T&S UK - Public Transport,Executive Office,Corporate Travel Management (North) Ltd,98708843,-64.90,T&S UK - Public Transport
BEIS,UKRI - AHRC,05/03/2020,T&S UK - Public Transport,Executive Office,Corporate Travel Management (North) Ltd,98708843,0.25,T&S UK - Public Transport
BEIS,UKRI - AHRC,05/03/2020,T&S UK - Public Transport,Executive Office,Corporate Travel Management (North) Ltd,98708843,148.50,T&S UK - Public Transport
BEIS,UKRI - AHRC,05/03/2020,T&S UK - Public Transport,Executive Office,Corporate Travel Management (North) Ltd,98708843,0.25,T&S UK - Public Transport
BEIS,UKRI - AHRC,05/03/2020,T&S UK - Public Transport,Executive Office,Corporate Travel Management (North) Ltd,98708843,117.50,T&S UK - Public Transport
BEIS,UKRI - AHRC,05/03/2020,T&S UK - Public Transport,FIC- US,Corporate Travel Management (North) Ltd,98708843,0.50,T&S UK - Public Transport
BEIS,UKRI - AHRC,05/03/2020,T&S UK - Public Transport,FIC- US,Corporate Travel Management (North) Ltd,98708843,14.40,T&S UK - Public Transport
BEIS,UKRI - AHRC,05/03/2020,T&S UK - Public Transport,FIC- US,Corporate Travel Management (North) Ltd,98708843,18.15,T&S UK - Public Transport
BEIS,UKRI - AHRC,05/03/2020,T&S UK - Public Transport,GCRF - Programme Delivery,Corporate Travel Management (North) Ltd,98708843,0.25,T&S UK - Public Transport
BEIS,UKRI - AHRC,05/03/2020,T&S UK - Public Transport,GCRF - Programme Delivery,Corporate Travel Management (North) Ltd,98708843,106.60,T&S UK - Public Transport
BEIS,UKRI - AHRC,05/03/2020,T&S UK - Public Transport,GCRF - Programme Delivery,Corporate Travel Management (North) Ltd,98708843,0.25,T&S UK - Public Transport
BEIS,UKRI - AHRC,05/03/2020,T&S UK - Public Transport,GCRF - Programme Delivery,Corporate Travel Management (North) Ltd,98708843,56.80,T&S UK - Public Transport
BEIS,UKRI - AHRC,05/03/2020,T&S UK - Public Transport,GCRF - Programme Delivery,Corporate Travel Management (North) Ltd,98708843,0.50,T&S UK - Public Transport
BEIS,UKRI - AHRC,05/03/2020,T&S UK - Public Transport,GCRF - Programme Delivery,Corporate Travel Management (North) Ltd,98708843,235.00,T&S UK - Public Transport
BEIS,UKRI - AHRC,05/03/2020,T&S UK - Public Transport,GCRF - Programme Delivery,Corporate Travel Management (North) Ltd,98708843,0.25,T&S UK - Public Transport
BEIS,UKRI - AHRC,05/03/2020,T&S UK - Public Transport,GCRF - Programme Delivery,Corporate Travel Management (North) Ltd,98708843,148.00,T&S UK - Public Transport
BEIS,UKRI - AHRC,05/03/2020,T&S UK - Public Transport,HR,Corporate Travel Management (North) Ltd,98708843,0.25,T&S UK - Public Transport
BEIS,UKRI - AHRC,05/03/2020,T&S UK - Public Transport,HR,Corporate Travel Management (North) Ltd,98708843,28.90,T&S UK - Public Transport
BEIS,UKRI - AHRC,05/03/2020,T&S UK - Public Transport,HR,Corporate Travel Management (North) Ltd,98708843,0.25,T&S UK - Public Transport
BEIS,UKRI - AHRC,05/03/2020,T&S UK - Public Transport,HR,Corporate Travel Management (North) Ltd,98708843,74.40,T&S UK - Public Transport
BEIS,UKRI - AHRC,05/03/2020,T&S UK - Public Transport,"History, Heritage, Languages and Literature",Corporate Travel Management (North) Ltd,98708843,0.25,T&S UK - Public Transport
BEIS,UKRI - AHRC,05/03/2020,T&S UK - Public Transport,"History, Heritage, Languages and Literature",Corporate Travel Management (North) Ltd,98708843,182.00,T&S UK - Public Transport
BEIS,UKRI - AHRC,05/03/2020,T&S UK - Public Transport,"History, Heritage, Languages and Literature",Corporate Travel Management (North) Ltd,98708843,0.25,T&S UK - Public Transport
BEIS,UKRI - AHRC,05/03/2020,T&S UK - Public Transport,"History, Heritage, Languages and Literature",Corporate Travel Management (North) Ltd,98708843,142.00,T&S UK - Public Transport
BEIS,UKRI - AHRC,05/03/2020,T&S UK - Public Transport,"History, Heritage, Languages and Literature",Corporate Travel Management (North) Ltd,98708843,0.25,T&S UK - Public Transport
BEIS,UKRI - AHRC,05/03/2020,T&S UK - Public Transport,"History, Heritage, Languages and Literature",Corporate Travel Management (North) Ltd,98708843,68.30,T&S UK - Public Transport
BEIS,UKRI - AHRC,05/03/2020,T&S UK - Public Transport,"History, Heritage, Languages and Literature",Corporate Travel Management (North) Ltd,98708843,0.25,T&S UK - Public Transport
BEIS,UKRI - AHRC,05/03/2020,T&S UK - Public Transport,"History, Heritage, Languages and Literature",Corporate Travel Management (North) Ltd,98708843,67.60,T&S UK - Public Transport
BEIS,UKRI - AHRC,05/03/2020,T&S UK - Public Transport,"History, Heritage, Languages and Literature",Corporate Travel Management (North) Ltd,98708843,0.50,T&S UK - Public Transport
BEIS,UKRI - AHRC,05/03/2020,T&S UK - Public Transport,"History, Heritage, Languages and Literature",Corporate Travel Management (North) Ltd,98708843,54.50,T&S UK - Public Transport
BEIS,UKRI - AHRC,05/03/2020,T&S UK - Public Transport,"History, Heritage, Languages and Literature",Corporate Travel Management (North) Ltd,98708843,43.80,T&S UK - Public Transport
BEIS,UKRI - AHRC,05/03/2020,T&S UK - Public Transport,"History, Heritage, Languages and Literature",Corporate Travel Management (North) Ltd,98708843,2.50,T&S UK - Public Transport
BEIS,UKRI - AHRC,05/03/2020,T&S UK - Public Transport,"History, Heritage, Languages and Literature",Corporate Travel Management (North) Ltd,98708843,14.93,T&S UK - Public Transport
BEIS,UKRI - AHRC,05/03/2020,T&S UK - Public Transport,"History, Heritage, Languages and Literature",Corporate Travel Management (North) Ltd,98708843,0.50,T&S UK - Public Transport
BEIS,UKRI - AHRC,05/03/2020,T&S UK - Public Transport,"History, Heritage, Languages and Literature",Corporate Travel Management (North) Ltd,98708843,163.40,T&S UK - Public Transport
BEIS,UKRI - AHRC,05/03/2020,T&S UK - Public Transport,"History, Heritage, Languages and Literature",Corporate Travel Management (North) Ltd,98708843,75.75,T&S UK - Public Transport
BEIS,UKRI - AHRC,05/03/2020,T&S UK - Public Transport,"History, Heritage, Languages and Literature",Corporate Travel Management (North) Ltd,98708843,0.50,T&S UK - Public Transport
BEIS,UKRI - AHRC,05/03/2020,T&S UK - Public Transport,"History, Heritage, Languages and Literature",Corporate Travel Management (North) Ltd,98708843,66.50,T&S UK - Public Transport
BEIS,UKRI - AHRC,05/03/2020,T&S UK - Public Transport,"History, Heritage, Languages and Literature",Corporate Travel Management (North) Ltd,98708843,13.50,T&S UK - Public Transport
BEIS,UKRI - AHRC,05/03/2020,T&S UK - Public Transport,"History, Heritage, Languages and Literature",Corporate Travel Management (North) Ltd,98708843,0.50,T&S UK - Public Transport
BEIS,UKRI - AHRC,05/03/2020,T&S UK - Public Transport,"History, Heritage, Languages and Literature",Corporate Travel Management (North) Ltd,98708843,51.50,T&S UK - Public Transport
BEIS,UKRI - AHRC,05/03/2020,T&S UK - Public Transport,"History, Heritage, Languages and Literature",Corporate Travel Management (North) Ltd,98708843,54.00,T&S UK - Public Transport
BEIS,UKRI - AHRC,05/03/2020,T&S UK - Public Transport,"History, Heritage, Languages and Literature",Corporate Travel Management (North) Ltd,98708843,0.50,T&S UK - Public Transport
BEIS,UKRI - AHRC,05/03/2020,T&S UK - Public Transport,"History, Heritage, Languages and Literature",Corporate Travel Management (North) Ltd,98708843,251.40,T&S UK - Public Transport
BEIS,UKRI - AHRC,05/03/2020,T&S UK - Public Transport,"History, Heritage, Languages and Literature",Corporate Travel Management (North) Ltd,98708843,0.25,T&S UK - Public Transport
BEIS,UKRI - AHRC,05/03/2020,T&S UK - Public Transport,"History, Heritage, Languages and Literature",Corporate Travel Management (North) Ltd,98708843,214.80,T&S UK - Public Transport
BEIS,UKRI - AHRC,05/03/2020,T&S UK - Public Transport,"History, Heritage, Languages and Literature",Corporate Travel Management (North) Ltd,98708843,0.25,T&S UK - Public Transport
BEIS,UKRI - AHRC,05/03/2020,T&S UK - Public Transport,"History, Heritage, Languages and Literature",Corporate Travel Management (North) Ltd,98708843,193.50,T&S UK - Public Transport
BEIS,UKRI - AHRC,05/03/2020,T&S UK - Public Transport,"History, Heritage, Languages and Literature",Corporate Travel Management (North) Ltd,98708843,0.25,T&S UK - Public Transport
BEIS,UKRI - AHRC,05/03/2020,T&S UK - Public Transport,"History, Heritage, Languages and Literature",Corporate Travel Management (North) Ltd,98708843,154.90,T&S UK - Public Transport
BEIS,UKRI - AHRC,05/03/2020,T&S UK - Public Transport,"History, Heritage, Languages and Literature",Corporate Travel Management (North) Ltd,98708843,0.25,T&S UK - Public Transport
BEIS,UKRI - AHRC,05/03/2020,T&S UK - Public Transport,"History, Heritage, Languages and Literature",Corporate Travel Management (North) Ltd,98708843,161.90,T&S UK - Public Transport
BEIS,UKRI - AHRC,05/03/2020,T&S UK - Public Transport,"History, Heritage, Languages and Literature",Corporate Travel Management (North) Ltd,98708843,0.25,T&S UK - Public Transport
BEIS,UKRI - AHRC,05/03/2020,T&S UK - Public Transport,"History, Heritage, Languages and Literature",Corporate Travel Management (North) Ltd,98708843,152.40,T&S UK - Public Transport
BEIS,UKRI - AHRC,05/03/2020,T&S UK - Public Transport,"History, Heritage, Languages and Literature",Corporate Travel Management (North) Ltd,98708843,0.50,T&S UK - Public Transport
BEIS,UKRI - AHRC,05/03/2020,T&S UK - Public Transport,Industrial Strategy Challenge Fund (ISCF) - Creative Clusters,Corporate Travel Management (North) Ltd,98708843,0.50,T&S UK - Public Transport
BEIS,UKRI - AHRC,05/03/2020,T&S UK - Public Transport,Industrial Strategy Challenge Fund (ISCF) - Creative Clusters,Corporate Travel Management (North) Ltd,98708843,273.80,T&S UK - Public Transport
BEIS,UKRI - AHRC,05/03/2020,T&S UK - Public Transport,Industrial Strategy Challenge Fund (ISCF) - Creative Clusters,Corporate Travel Management (North) Ltd,98708843,0.25,T&S UK - Public Transport
BEIS,UKRI - AHRC,05/03/2020,T&S UK - Public Transport,Industrial Strategy Challenge Fund (ISCF) - Creative Clusters,Corporate Travel Management (North) Ltd,98708843,25.10,T&S UK - Public Transport
BEIS,UKRI - AHRC,05/03/2020,T&S UK - Public Transport,Industrial Strategy Challenge Fund (ISCF) - Creative Clusters,Corporate Travel Management (North) Ltd,98708843,5.00,T&S UK - Public Transport
BEIS,UKRI - AHRC,05/03/2020,T&S UK - Public Transport,Industrial Strategy Challenge Fund (ISCF) - Creative Clusters,Corporate Travel Management (North) Ltd,98708843,-139.70,T&S UK - Public Transport
BEIS,UKRI - AHRC,05/03/2020,T&S UK - Public Transport,Industrial Strategy Challenge Fund (ISCF) - Creative Clusters,Corporate Travel Management (North) Ltd,98708843,0.25,T&S UK - Public Transport
BEIS,UKRI - AHRC,05/03/2020,T&S UK - Public Transport,Industrial Strategy Challenge Fund (ISCF) - Creative Clusters,Corporate Travel Management (North) Ltd,98708843,22.80,T&S UK - Public Transport
BEIS,UKRI - AHRC,05/03/2020,T&S UK - Public Transport,Industrial Strategy Challenge Fund (ISCF) - Creative Clusters,Corporate Travel Management (North) Ltd,98708843,0.25,T&S UK - Public Transport
BEIS,UKRI - AHRC,05/03/2020,T&S UK - Public Transport,Industrial Strategy Challenge Fund (ISCF) - Creative Clusters,Corporate Travel Management (North) Ltd,98708843,11.40,T&S UK - Public Transport
BEIS,UKRI - AHRC,05/03/2020,T&S UK - Public Transport,Industrial Strategy Challenge Fund (ISCF) - Creative Clusters,Corporate Travel Management (North) Ltd,98708843,0.25,T&S UK - Public Transport
BEIS,UKRI - AHRC,05/03/2020,T&S UK - Public Transport,Industrial Strategy Challenge Fund (ISCF) - Creative Clusters,Corporate Travel Management (North) Ltd,98708843,9.50,T&S UK - Public Transport
BEIS,UKRI - AHRC,05/03/2020,T&S UK - Public Transport,Industrial Strategy Challenge Fund (ISCF) - Creative Clusters,Corporate Travel Management (North) Ltd,98708843,0.50,T&S UK - Public Transport
BEIS,UKRI - AHRC,05/03/2020,T&S UK - Public Transport,Industrial Strategy Challenge Fund (ISCF) - Creative Clusters,Corporate Travel Management (North) Ltd,98708843,18.40,T&S UK - Public Transport
BEIS,UKRI - AHRC,05/03/2020,T&S UK - Public Transport,Industrial Strategy Challenge Fund (ISCF) - Creative Clusters,Corporate Travel Management (North) Ltd,98708843,16.90,T&S UK - Public Transport
BEIS,UKRI - AHRC,05/03/2020,T&S UK - Public Transport,Industrial Strategy Challenge Fund (ISCF) - Creative Clusters,Corporate Travel Management (North) Ltd,98708843,0.25,T&S UK - Public Transport
BEIS,UKRI - AHRC,05/03/2020,T&S UK - Public Transport,Industrial Strategy Challenge Fund (ISCF) - Creative Clusters,Corporate Travel Management (North) Ltd,98708843,58.80,T&S UK - Public Transport
BEIS,UKRI - AHRC,05/03/2020,T&S UK - Public Transport,Industrial Strategy Challenge Fund (ISCF) - Creative Clusters,Corporate Travel Management (North) Ltd,98708843,0.25,T&S UK - Public Transport
BEIS,UKRI - AHRC,05/03/2020,T&S UK - Public Transport,Industrial Strategy Challenge Fund (ISCF) - Creative Clusters,Corporate Travel Management (North) Ltd,98708843,18.10,T&S UK - Public Transport
BEIS,UKRI - AHRC,05/03/2020,T&S UK - Public Transport,Industrial Strategy Challenge Fund (ISCF) - Creative Clusters,Corporate Travel Management (North) Ltd,98708843,0.25,T&S UK - Public Transport
BEIS,UKRI - AHRC,05/03/2020,T&S UK - Public Transport,Industrial Strategy Challenge Fund (ISCF) - Creative Clusters,Corporate Travel Management (North) Ltd,98708843,47.50,T&S UK - Public Transport
BEIS,UKRI - AHRC,05/03/2020,T&S UK - Public Transport,Industrial Strategy Challenge Fund (ISCF) - Creative Clusters,Corporate Travel Management (North) Ltd,98708843,0.25,T&S UK - Public Transport
BEIS,UKRI - AHRC,05/03/2020,T&S UK - Public Transport,Industrial Strategy Challenge Fund (ISCF) - Creative Clusters,Corporate Travel Management (North) Ltd,98708843,148.80,T&S UK - Public Transport
BEIS,UKRI - AHRC,05/03/2020,T&S UK - Public Transport,Industrial Strategy Challenge Fund (ISCF) - Creative Clusters,Corporate Travel Management (North) Ltd,98708843,0.13,T&S UK - Public Transport
BEIS,UKRI - AHRC,05/03/2020,T&S UK - Public Transport,Industrial Strategy Challenge Fund (ISCF) - Creative Clusters,Corporate Travel Management (North) Ltd,98708843,71.70,T&S UK - Public Transport
BEIS,UKRI - AHRC,05/03/2020,T&S UK - Public Transport,Industrial Strategy Challenge Fund (ISCF) - Creative Clusters,Corporate Travel Management (North) Ltd,98708843,0.12,T&S UK - Public Transport
BEIS,UKRI - AHRC,05/03/2020,T&S UK - Public Transport,Industrial Strategy Challenge Fund (ISCF) - Creative Clusters,Corporate Travel Management (North) Ltd,98708843,71.70,T&S UK - Public Transport
BEIS,UKRI - AHRC,05/03/2020,T&S UK - Public Transport,Industrial Strategy Challenge Fund (ISCF) - Creative Clusters,Corporate Travel Management (North) Ltd,98708843,0.50,T&S UK - Public Transport
BEIS,UKRI - AHRC,05/03/2020,T&S UK - Public Transport,Industrial Strategy Challenge Fund (ISCF) - Creative Clusters,Corporate Travel Management (North) Ltd,98708843,68.50,T&S UK - Public Transport
BEIS,UKRI - AHRC,05/03/2020,T&S UK - Public Transport,Industrial Strategy Challenge Fund (ISCF) - Creative Clusters,Corporate Travel Management (North) Ltd,98708843,12.90,T&S UK - Public Transport
BEIS,UKRI - AHRC,05/03/2020,T&S UK - Public Transport,Industrial Strategy Challenge Fund (ISCF) - Creative Clusters,Corporate Travel Management (North) Ltd,98708843,0.25,T&S UK - Public Transport
BEIS,UKRI - AHRC,05/03/2020,T&S UK - Public Transport,Industrial Strategy Challenge Fund (ISCF) - Creative Clusters,Corporate Travel Management (North) Ltd,98708843,211.60,T&S UK - Public Transport
BEIS,UKRI - AHRC,05/03/2020,T&S UK - Public Transport,Industrial Strategy Challenge Fund (ISCF) - Creative Clusters,Corporate Travel Management (North) Ltd,98708843,0.25,T&S UK - Public Transport
BEIS,UKRI - AHRC,05/03/2020,T&S UK - Public Transport,Industrial Strategy Challenge Fund (ISCF) - Creative Clusters,Corporate Travel Management (North) Ltd,98708843,64.60,T&S UK - Public Transport
BEIS,UKRI - AHRC,05/03/2020,T&S UK - Public Transport,Industrial Strategy Challenge Fund (ISCF) - Creative Clusters,Corporate Travel Management (North) Ltd,98708843,0.25,T&S UK - Public Transport
BEIS,UKRI - AHRC,05/03/2020,T&S UK - Public Transport,Industrial Strategy Challenge Fund (ISCF) - Creative Clusters,Corporate Travel Management (North) Ltd,98708843,117.50,T&S UK - Public Transport
BEIS,UKRI - AHRC,05/03/2020,T&S UK - Public Transport,Industrial Strategy Challenge Fund (ISCF) - Creative Clusters,Corporate Travel Management (North) Ltd,98708843,0.25,T&S UK - Public Transport
BEIS,UKRI - AHRC,05/03/2020,T&S UK - Public Transport,Industrial Strategy Challenge Fund (ISCF) - Creative Clusters,Corporate Travel Management (North) Ltd,98708843,173.10,T&S UK - Public Transport
BEIS,UKRI - AHRC,05/03/2020,T&S UK - Public Transport,Industrial Strategy Challenge Fund (ISCF) - Creative Clusters,Corporate Travel Management (North) Ltd,98708843,0.25,T&S UK - Public Transport
BEIS,UKRI - AHRC,05/03/2020,T&S UK - Public Transport,Industrial Strategy Challenge Fund (ISCF) - Creative Clusters,Corporate Travel Management (North) Ltd,98708843,148.80,T&S UK - Public Transport
BEIS,UKRI - AHRC,05/03/2020,T&S UK - Public Transport,Industrial Strategy Challenge Fund (ISCF) - Creative Clusters,Corporate Travel Management (North) Ltd,98708843,0.25,T&S UK - Public Transport
BEIS,UKRI - AHRC,05/03/2020,T&S UK - Public Transport,Industrial Strategy Challenge Fund (ISCF) - Creative Clusters,Corporate Travel Management (North) Ltd,98708843,80.50,T&S UK - Public Transport
BEIS,UKRI - AHRC,05/03/2020,T&S UK - Public Transport,International,Corporate Travel Management (North) Ltd,98708843,0.25,T&S UK - Public Transport
BEIS,UKRI - AHRC,05/03/2020,T&S UK - Public Transport,International,Corporate Travel Management (North) Ltd,98708843,16.80,T&S UK - Public Transport
BEIS,UKRI - AHRC,05/03/2020,T&S UK - Public Transport,International,Corporate Travel Management (North) Ltd,98708843,0.25,T&S UK - Public Transport
BEIS,UKRI - AHRC,05/03/2020,T&S UK - Public Transport,International,Corporate Travel Management (North) Ltd,98708843,55.50,T&S UK - Public Transport
BEIS,UKRI - AHRC,05/03/2020,T&S UK - Public Transport,International,Corporate Travel Management (North) Ltd,98708843,0.25,T&S UK - Public Transport
BEIS,UKRI - AHRC,05/03/2020,T&S UK - Public Transport,International,Corporate Travel Management (North) Ltd,98708843,72.60,T&S UK - Public Transport
BEIS,UKRI - AHRC,05/03/2020,T&S UK - Public Transport,International,Corporate Travel Management (North) Ltd,98708843,0.25,T&S UK - Public Transport
BEIS,UKRI - AHRC,05/03/2020,T&S UK - Public Transport,International,Corporate Travel Management (North) Ltd,98708843,53.50,T&S UK - Public Transport
BEIS,UKRI - AHRC,05/03/2020,T&S UK - Public Transport,International,Corporate Travel Management (North) Ltd,98708843,0.25,T&S UK - Public Transport
BEIS,UKRI - AHRC,05/03/2020,T&S UK - Public Transport,International,Corporate Travel Management (North) Ltd,98708843,192.50,T&S UK - Public Transport
BEIS,UKRI - AHRC,05/03/2020,T&S UK - Public Transport,International Development and Area Studies,Corporate Travel Management (North) Ltd,98708843,0.25,T&S UK - Public Transport
BEIS,UKRI - AHRC,05/03/2020,T&S UK - Public Transport,International Development and Area Studies,Corporate Travel Management (North) Ltd,98708843,155.50,T&S UK - Public Transport
BEIS,UKRI - AHRC,05/03/2020,T&S UK - Public Transport,International Development and Area Studies,Corporate Travel Management (North) Ltd,98708843,0.25,T&S UK - Public Transport
BEIS,UKRI - AHRC,05/03/2020,T&S UK - Public Transport,International Development and Area Studies,Corporate Travel Management (North) Ltd,98708843,148.00,T&S UK - Public Transport
BEIS,UKRI - AHRC,05/03/2020,T&S UK - Public Transport,International Development and Area Studies,Corporate Travel Management (North) Ltd,98708843,0.25,T&S UK - Public Transport
BEIS,UKRI - AHRC,05/03/2020,T&S UK - Public Transport,International Development and Area Studies,Corporate Travel Management (North) Ltd,98708843,117.50,T&S UK - Public Transport
BEIS,UKRI - AHRC,05/03/2020,T&S UK - Public Transport,International Development and Area Studies,Corporate Travel Management (North) Ltd,98708843,0.25,T&S UK - Public Transport
BEIS,UKRI - AHRC,05/03/2020,T&S UK - Public Transport,International Development and Area Studies,Corporate Travel Management (North) Ltd,98708843,148.80,T&S UK - Public Transport
BEIS,UKRI - AHRC,05/03/2020,T&S UK - Public Transport,International Development and Area Studies,Corporate Travel Management (North) Ltd,98708843,0.25,T&S UK - Public Transport
BEIS,UKRI - AHRC,05/03/2020,T&S UK - Public Transport,International Development and Area Studies,Corporate Travel Management (North) Ltd,98708843,148.80,T&S UK - Public Transport
BEIS,UKRI - AHRC,05/03/2020,T&S UK - Public Transport,International Development and Area Studies,Corporate Travel Management (North) Ltd,98708843,0.25,T&S UK - Public Transport
BEIS,UKRI - AHRC,05/03/2020,T&S UK - Public Transport,International Development and Area Studies,Corporate Travel Management (North) Ltd,98708843,117.50,T&S UK - Public Transport
BEIS,UKRI - AHRC,05/03/2020,T&S UK - Public Transport,International Partnership and Engagement,Corporate Travel Management (North) Ltd,98708843,10.00,T&S UK - Public Transport
BEIS,UKRI - AHRC,05/03/2020,T&S UK - Public Transport,International Partnership and Engagement,Corporate Travel Management (North) Ltd,98708843,-67.60,T&S UK - Public Transport
BEIS,UKRI - AHRC,05/03/2020,T&S UK - Public Transport,International Partnership and Engagement,Corporate Travel Management (North) Ltd,98708843,-46.00,T&S UK - Public Transport
BEIS,UKRI - AHRC,05/03/2020,T&S UK - Public Transport,International Partnership and Engagement,Corporate Travel Management (North) Ltd,98708843,0.25,T&S UK - Public Transport
BEIS,UKRI - AHRC,05/03/2020,T&S UK - Public Transport,International Partnership and Engagement,Corporate Travel Management (North) Ltd,98708843,182.00,T&S UK - Public Transport
BEIS,UKRI - AHRC,05/03/2020,T&S UK - Public Transport,International Partnership and Engagement,Corporate Travel Management (North) Ltd,98708843,0.25,T&S UK - Public Transport
BEIS,UKRI - AHRC,05/03/2020,T&S UK - Public Transport,International Partnership and Engagement,Corporate Travel Management (North) Ltd,98708843,95.40,T&S UK - Public Transport
BEIS,UKRI - AHRC,05/03/2020,T&S UK - Public Transport,International Partnership and Engagement,Corporate Travel Management (North) Ltd,98708843,0.25,T&S UK - Public Transport
BEIS,UKRI - AHRC,05/03/2020,T&S UK - Public Transport,International Partnership and Engagement,Corporate Travel Management (North) Ltd,98708843,74.00,T&S UK - Public Transport
BEIS,UKRI - AHRC,05/03/2020,T&S UK - Public Transport,International Partnership and Engagement,Corporate Travel Management (North) Ltd,98708843,0.25,T&S UK - Public Transport
BEIS,UKRI - AHRC,05/03/2020,T&S UK - Public Transport,International Partnership and Engagement,Corporate Travel Management (North) Ltd,98708843,62.80,T&S UK - Public Transport
BEIS,UKRI - AHRC,05/03/2020,T&S UK - Public Transport,International Partnership and Engagement,Corporate Travel Management (North) Ltd,98708843,5.00,T&S UK - Public Transport
BEIS,UKRI - AHRC,05/03/2020,T&S UK - Public Transport,International Partnership and Engagement,Corporate Travel Management (North) Ltd,98708843,-67.00,T&S UK - Public Transport
BEIS,UKRI - AHRC,05/03/2020,T&S UK - Public Transport,International Partnership and Engagement,Corporate Travel Management (North) Ltd,98708843,0.25,T&S UK - Public Transport
BEIS,UKRI - AHRC,05/03/2020,T&S UK - Public Transport,International Partnership and Engagement,Corporate Travel Management (North) Ltd,98708843,62.80,T&S UK - Public Transport
BEIS,UKRI - AHRC,05/03/2020,T&S UK - Public Transport,International Partnership and Engagement,Corporate Travel Management (North) Ltd,98708843,0.25,T&S UK - Public Transport
BEIS,UKRI - AHRC,05/03/2020,T&S UK - Public Transport,International Partnership and Engagement,Corporate Travel Management (North) Ltd,98708843,224.20,T&S UK - Public Transport
BEIS,UKRI - AHRC,05/03/2020,T&S UK - Public Transport,International Partnership and Engagement,Corporate Travel Management (North) Ltd,98708843,0.50,T&S UK - Public Transport
BEIS,UKRI - AHRC,05/03/2020,T&S UK - Public Transport,International Partnership and Engagement,Corporate Travel Management (North) Ltd,98708843,33.70,T&S UK - Public Transport
BEIS,UKRI - AHRC,05/03/2020,T&S UK - Public Transport,International Partnership and Engagement,Corporate Travel Management (North) Ltd,98708843,12.90,T&S UK - Public Transport
BEIS,UKRI - AHRC,05/03/2020,T&S UK - Public Transport,International Partnership and Engagement,Corporate Travel Management (North) Ltd,98708843,0.25,T&S UK - Public Transport
BEIS,UKRI - AHRC,05/03/2020,T&S UK - Public Transport,International Partnership and Engagement,Corporate Travel Management (North) Ltd,98708843,135.20,T&S UK - Public Transport
BEIS,UKRI - AHRC,05/03/2020,T&S UK - Public Transport,JPI Cultural Heritage Project,Corporate Travel Management (North) Ltd,98708843,0.25,T&S UK - Public Transport
BEIS,UKRI - AHRC,05/03/2020,T&S UK - Public Transport,JPI Cultural Heritage Project,Corporate Travel Management (North) Ltd,98708843,97.70,T&S UK - Public Transport
BEIS,UKRI - AHRC,05/03/2020,T&S UK - Public Transport,Newton Programme Delivery,Corporate Travel Management (North) Ltd,98708843,0.25,T&S UK - Public Transport
BEIS,UKRI - AHRC,05/03/2020,T&S UK - Public Transport,Newton Programme Delivery,Corporate Travel Management (North) Ltd,98708843,71.70,T&S UK - Public Transport
BEIS,UKRI - AHRC,05/03/2020,T&S UK - Public Transport,Newton Programme Delivery,Corporate Travel Management (North) Ltd,98708843,0.25,T&S UK - Public Transport
BEIS,UKRI - AHRC,05/03/2020,T&S UK - Public Transport,Newton Programme Delivery,Corporate Travel Management (North) Ltd,98708843,71.70,T&S UK - Public Transport
BEIS,UKRI - AHRC,05/03/2020,T&S UK - Public Transport,Newton Programme Delivery,Corporate Travel Management (North) Ltd,98708843,0.25,T&S UK - Public Transport
BEIS,UKRI - AHRC,05/03/2020,T&S UK - Public Transport,Newton Programme Delivery,Corporate Travel Management (North) Ltd,98708843,117.50,T&S UK - Public Transport
BEIS,UKRI - AHRC,05/03/2020,T&S UK - Public Transport,Operations,Corporate Travel Management (North) Ltd,98708843,0.25,T&S UK - Public Transport
BEIS,UKRI - AHRC,05/03/2020,T&S UK - Public Transport,Operations,Corporate Travel Management (North) Ltd,98708843,46.85,T&S UK - Public Transport
BEIS,UKRI - AHRC,05/03/2020,T&S UK - Public Transport,Operations,Corporate Travel Management (North) Ltd,98708843,0.25,T&S UK - Public Transport
BEIS,UKRI - AHRC,05/03/2020,T&S UK - Public Transport,Operations,Corporate Travel Management (North) Ltd,98708843,148.00,T&S UK - Public Transport
BEIS,UKRI - AHRC,05/03/2020,T&S UK - Public Transport,Operations,Corporate Travel Management (North) Ltd,98708843,0.25,T&S UK - Public Transport
BEIS,UKRI - AHRC,05/03/2020,T&S UK - Public Transport,Operations,Corporate Travel Management (North) Ltd,98708843,142.00,T&S UK - Public Transport
BEIS,UKRI - AHRC,05/03/2020,T&S UK - Public Transport,Operations,Corporate Travel Management (North) Ltd,98708843,0.25,T&S UK - Public Transport
BEIS,UKRI - AHRC,05/03/2020,T&S UK - Public Transport,Operations,Corporate Travel Management (North) Ltd,98708843,141.75,T&S UK - Public Transport
BEIS,UKRI - AHRC,05/03/2020,T&S UK - Public Transport,Operations,Corporate Travel Management (North) Ltd,98708843,0.25,T&S UK - Public Transport
BEIS,UKRI - AHRC,05/03/2020,T&S UK - Public Transport,Operations,Corporate Travel Management (North) Ltd,98708843,68.80,T&S UK - Public Transport
BEIS,UKRI - AHRC,05/03/2020,T&S UK - Public Transport,Operations,Corporate Travel Management (North) Ltd,98708843,0.25,T&S UK - Public Transport
BEIS,UKRI - AHRC,05/03/2020,T&S UK - Public Transport,Operations,Corporate Travel Management (North) Ltd,98708843,148.80,T&S UK - Public Transport
BEIS,UKRI - AHRC,05/03/2020,T&S UK - Public Transport,Operations,Corporate Travel Management (North) Ltd,98708843,0.25,T&S UK - Public Transport
BEIS,UKRI - AHRC,05/03/2020,T&S UK - Public Transport,Operations,Corporate Travel Management (North) Ltd,98708843,95.40,T&S UK - Public Transport
BEIS,UKRI - AHRC,05/03/2020,T&S UK - Public Transport,Operations,Corporate Travel Management (North) Ltd,98708843,0.25,T&S UK - Public Transport
BEIS,UKRI - AHRC,05/03/2020,T&S UK - Public Transport,Operations,Corporate Travel Management (North) Ltd,98708843,155.50,T&S UK - Public Transport
BEIS,UKRI - AHRC,05/03/2020,T&S UK - Public Transport,Operations,Corporate Travel Management (North) Ltd,98708843,0.25,T&S UK - Public Transport
BEIS,UKRI - AHRC,05/03/2020,T&S UK - Public Transport,Operations,Corporate Travel Management (North) Ltd,98708843,142.30,T&S UK - Public Transport
BEIS,UKRI - AHRC,05/03/2020,T&S UK - Public Transport,Operations,Corporate Travel Management (North) Ltd,98708843,0.25,T&S UK - Public Transport
BEIS,UKRI - AHRC,05/03/2020,T&S UK - Public Transport,Operations,Corporate Travel Management (North) Ltd,98708843,45.50,T&S UK - Public Transport
BEIS,UKRI - AHRC,05/03/2020,T&S UK - Public Transport,Operations,Corporate Travel Management (North) Ltd,98708843,0.25,T&S UK - Public Transport
BEIS,UKRI - AHRC,05/03/2020,T&S UK - Public Transport,Operations,Corporate Travel Management (North) Ltd,98708843,51.00,T&S UK - Public Transport
BEIS,UKRI - AHRC,05/03/2020,T&S UK - Public Transport,Operations,Corporate Travel Management (North) Ltd,98708843,0.25,T&S UK - Public Transport
BEIS,UKRI - AHRC,05/03/2020,T&S UK - Public Transport,Operations,Corporate Travel Management (North) Ltd,98708843,77.30,T&S UK - Public Transport
BEIS,UKRI - AHRC,05/03/2020,T&S UK - Public Transport,Operations,Corporate Travel Management (North) Ltd,98708843,0.25,T&S UK - Public Transport
BEIS,UKRI - AHRC,05/03/2020,T&S UK - Public Transport,Operations,Corporate Travel Management (North) Ltd,98708843,62.90,T&S UK - Public Transport
BEIS,UKRI - AHRC,05/03/2020,T&S UK - Public Transport,Operations,Corporate Travel Management (North) Ltd,98708843,0.25,T&S UK - Public Transport
BEIS,UKRI - AHRC,05/03/2020,T&S UK - Public Transport,Operations,Corporate Travel Management (North) Ltd,98708843,45.50,T&S UK - Public Transport
BEIS,UKRI - AHRC,05/03/2020,T&S UK - Public Transport,Operations,Corporate Travel Management (North) Ltd,98708843,0.25,T&S UK - Public Transport
BEIS,UKRI - AHRC,05/03/2020,T&S UK - Public Transport,Operations,Corporate Travel Management (North) Ltd,98708843,18.00,T&S UK - Public Transport
BEIS,UKRI - AHRC,05/03/2020,T&S UK - Public Transport,Operations,Corporate Travel Management (North) Ltd,98708843,0.25,T&S UK - Public Transport
BEIS,UKRI - AHRC,05/03/2020,T&S UK - Public Transport,Operations,Corporate Travel Management (North) Ltd,98708843,11.90,T&S UK - Public Transport
BEIS,UKRI - AHRC,05/03/2020,T&S UK - Public Transport,Operations,Corporate Travel Management (North) Ltd,98708843,0.25,T&S UK - Public Transport
BEIS,UKRI - AHRC,05/03/2020,T&S UK - Public Transport,Operations,Corporate Travel Management (North) Ltd,98708843,9.00,T&S UK - Public Transport
BEIS,UKRI - AHRC,05/03/2020,T&S UK - Public Transport,Operations,Corporate Travel Management (North) Ltd,98708843,0.25,T&S UK - Public Transport
BEIS,UKRI - AHRC,05/03/2020,T&S UK - Public Transport,Operations,Corporate Travel Management (North) Ltd,98708843,18.00,T&S UK - Public Transport
BEIS,UKRI - AHRC,05/03/2020,T&S UK - Public Transport,Operations,Corporate Travel Management (North) Ltd,98708843,0.25,T&S UK - Public Transport
BEIS,UKRI - AHRC,05/03/2020,T&S UK - Public Transport,Operations,Corporate Travel Management (North) Ltd,98708843,18.00,T&S UK - Public Transport
BEIS,UKRI - AHRC,05/03/2020,T&S UK - Public Transport,Operations,Corporate Travel Management (North) Ltd,98708843,0.25,T&S UK - Public Transport
BEIS,UKRI - AHRC,05/03/2020,T&S UK - Public Transport,Operations,Corporate Travel Management (North) Ltd,98708843,18.00,T&S UK - Public Transport
BEIS,UKRI - AHRC,05/03/2020,T&S UK - Public Transport,Operations,Corporate Travel Management (North) Ltd,98708843,0.25,T&S UK - Public Transport
BEIS,UKRI - AHRC,05/03/2020,T&S UK - Public Transport,Operations,Corporate Travel Management (North) Ltd,98708843,5.95,T&S UK - Public Transport
BEIS,UKRI - AHRC,05/03/2020,T&S UK - Public Transport,Operations,Corporate Travel Management (North) Ltd,98708843,0.25,T&S UK - Public Transport
BEIS,UKRI - AHRC,05/03/2020,T&S UK - Public Transport,Operations,Corporate Travel Management (North) Ltd,98708843,9.00,T&S UK - Public Transport
BEIS,UKRI - AHRC,05/03/2020,T&S UK - Public Transport,Operations,Corporate Travel Management (North) Ltd,98708843,0.25,T&S UK - Public Transport
BEIS,UKRI - AHRC,05/03/2020,T&S UK - Public Transport,Operations,Corporate Travel Management (North) Ltd,98708843,39.95,T&S UK - Public Transport
BEIS,UKRI - AHRC,05/03/2020,T&S UK - Public Transport,PSU Project Office,Corporate Travel Management (North) Ltd,98708843,0.25,T&S UK - Public Transport
BEIS,UKRI - AHRC,05/03/2020,T&S UK - Public Transport,PSU Project Office,Corporate Travel Management (North) Ltd,98708843,24.60,T&S UK - Public Transport
BEIS,UKRI - AHRC,05/03/2020,T&S UK - Public Transport,PSU Project Office,Corporate Travel Management (North) Ltd,98708843,0.50,T&S UK - Public Transport
BEIS,UKRI - AHRC,05/03/2020,T&S UK - Public Transport,PSU Project Office,Corporate Travel Management (North) Ltd,98708843,33.70,T&S UK - Public Transport
BEIS,UKRI - AHRC,05/03/2020,T&S UK - Public Transport,PSU Project Office,Corporate Travel Management (North) Ltd,98708843,12.90,T&S UK - Public Transport
BEIS,UKRI - AHRC,05/03/2020,T&S UK - Public Transport,PSU Project Office,Corporate Travel Management (North) Ltd,98708843,0.50,T&S UK - Public Transport
BEIS,UKRI - AHRC,05/03/2020,T&S UK - Public Transport,PSU Project Office,Corporate Travel Management (North) Ltd,98708843,11.70,T&S UK - Public Transport
BEIS,UKRI - AHRC,05/03/2020,T&S UK - Public Transport,PSU Project Office,Corporate Travel Management (North) Ltd,98708843,33.05,T&S UK - Public Transport
BEIS,UKRI - AHRC,05/03/2020,T&S UK - Public Transport,PSU Project Office,Corporate Travel Management (North) Ltd,98708843,0.25,T&S UK - Public Transport
BEIS,UKRI - AHRC,05/03/2020,T&S UK - Public Transport,PSU Project Office,Corporate Travel Management (North) Ltd,98708843,42.60,T&S UK - Public Transport
BEIS,UKRI - AHRC,05/03/2020,T&S UK - Public Transport,PSU Project Office,Corporate Travel Management (North) Ltd,98708843,0.50,T&S UK - Public Transport
BEIS,UKRI - AHRC,05/03/2020,T&S UK - Public Transport,PSU Project Office,Corporate Travel Management (North) Ltd,98708843,92.20,T&S UK - Public Transport
BEIS,UKRI - AHRC,05/03/2020,T&S UK - Public Transport,PSU Project Office,Corporate Travel Management (North) Ltd,98708843,0.25,T&S UK - Public Transport
BEIS,UKRI - AHRC,05/03/2020,T&S UK - Public Transport,PSU Project Office,Corporate Travel Management (North) Ltd,98708843,27.80,T&S UK - Public Transport
BEIS,UKRI - AHRC,05/03/2020,T&S UK - Public Transport,Public and Stakeholder Engagement,Corporate Travel Management (North) Ltd,98708843,0.25,T&S UK - Public Transport
BEIS,UKRI - AHRC,05/03/2020,T&S UK - Public Transport,Public and Stakeholder Engagement,Corporate Travel Management (North) Ltd,98708843,10.35,T&S UK - Public Transport
BEIS,UKRI - AHRC,05/03/2020,T&S UK - Public Transport,Public and Stakeholder Engagement,Corporate Travel Management (North) Ltd,98708843,0.25,T&S UK - Public Transport
BEIS,UKRI - AHRC,05/03/2020,T&S UK - Public Transport,Public and Stakeholder Engagement,Corporate Travel Management (North) Ltd,98708843,30.60,T&S UK - Public Transport
BEIS,UKRI - AHRC,05/03/2020,T&S UK - Public Transport,Public and Stakeholder Engagement,Corporate Travel Management (North) Ltd,98708843,0.25,T&S UK - Public Transport
BEIS,UKRI - AHRC,05/03/2020,T&S UK - Public Transport,Public and Stakeholder Engagement,Corporate Travel Management (North) Ltd,98708843,169.40,T&S UK - Public Transport
BEIS,UKRI - AHRC,05/03/2020,T&S UK - Public Transport,Public and Stakeholder Engagement,Corporate Travel Management (North) Ltd,98708843,0.25,T&S UK - Public Transport
BEIS,UKRI - AHRC,05/03/2020,T&S UK - Public Transport,Public and Stakeholder Engagement,Corporate Travel Management (North) Ltd,98708843,214.80,T&S UK - Public Transport
BEIS,UKRI - AHRC,05/03/2020,T&S UK - Public Transport,Public and Stakeholder Engagement,Corporate Travel Management (North) Ltd,98708843,0.25,T&S UK - Public Transport
BEIS,UKRI - AHRC,05/03/2020,T&S UK - Public Transport,Public and Stakeholder Engagement,Corporate Travel Management (North) Ltd,98708843,95.40,T&S UK - Public Transport
BEIS,UKRI - AHRC,05/03/2020,T&S UK - Public Transport,Public and Stakeholder Engagement,Corporate Travel Management (North) Ltd,98708843,0.25,T&S UK - Public Transport
BEIS,UKRI - AHRC,05/03/2020,T&S UK - Public Transport,Public and Stakeholder Engagement,Corporate Travel Management (North) Ltd,98708843,61.70,T&S UK - Public Transport
BEIS,UKRI - AHRC,05/03/2020,T&S UK - Public Transport,Public and Stakeholder Engagement,Corporate Travel Management (North) Ltd,98708843,0.25,T&S UK - Public Transport
BEIS,UKRI - AHRC,05/03/2020,T&S UK - Public Transport,Public and Stakeholder Engagement,Corporate Travel Management (North) Ltd,98708843,200.30,T&S UK - Public Transport
BEIS,UKRI - AHRC,05/03/2020,T&S UK - Public Transport,Public and Stakeholder Engagement,Corporate Travel Management (North) Ltd,98708843,0.25,T&S UK - Public Transport
BEIS,UKRI - AHRC,05/03/2020,T&S UK - Public Transport,Public and Stakeholder Engagement,Corporate Travel Management (North) Ltd,98708843,16.70,T&S UK - Public Transport
BEIS,UKRI - AHRC,05/03/2020,T&S UK - Public Transport,Public and Stakeholder Engagement,Corporate Travel Management (North) Ltd,98708843,0.25,T&S UK - Public Transport
BEIS,UKRI - AHRC,05/03/2020,T&S UK - Public Transport,Public and Stakeholder Engagement,Corporate Travel Management (North) Ltd,98708843,36.65,T&S UK - Public Transport
BEIS,UKRI - AHRC,05/03/2020,T&S UK - Public Transport,Public and Stakeholder Engagement,Corporate Travel Management (North) Ltd,98708843,0.25,T&S UK - Public Transport
BEIS,UKRI - AHRC,05/03/2020,T&S UK - Public Transport,Public and Stakeholder Engagement,Corporate Travel Management (North) Ltd,98708843,99.80,T&S UK - Public Transport
BEIS,UKRI - AHRC,05/03/2020,T&S UK - Public Transport,Public and Stakeholder Engagement,Corporate Travel Management (North) Ltd,98708843,0.25,T&S UK - Public Transport
BEIS,UKRI - AHRC,05/03/2020,T&S UK - Public Transport,Public and Stakeholder Engagement,Corporate Travel Management (North) Ltd,98708843,62.95,T&S UK - Public Transport
BEIS,UKRI - AHRC,05/03/2020,T&S UK - Public Transport,Public and Stakeholder Engagement,Corporate Travel Management (North) Ltd,98708843,0.25,T&S UK - Public Transport
BEIS,UKRI - AHRC,05/03/2020,T&S UK - Public Transport,Public and Stakeholder Engagement,Corporate Travel Management (North) Ltd,98708843,208.80,T&S UK - Public Transport
BEIS,UKRI - AHRC,05/03/2020,T&S UK - Public Transport,Public and Stakeholder Engagement,Corporate Travel Management (North) Ltd,98708843,0.25,T&S UK - Public Transport
BEIS,UKRI - AHRC,05/03/2020,T&S UK - Public Transport,Public and Stakeholder Engagement,Corporate Travel Management (North) Ltd,98708843,17.80,T&S UK - Public Transport
BEIS,UKRI - AHRC,05/03/2020,T&S UK - Public Transport,Public and Stakeholder Engagement,Corporate Travel Management (North) Ltd,98708843,0.25,T&S UK - Public Transport
BEIS,UKRI - AHRC,05/03/2020,T&S UK - Public Transport,Public and Stakeholder Engagement,Corporate Travel Management (North) Ltd,98708843,23.85,T&S UK - Public Transport
BEIS,UKRI - AHRC,05/03/2020,T&S UK - Public Transport,Public and Stakeholder Engagement,Corporate Travel Management (North) Ltd,98708843,0.25,T&S UK - Public Transport
BEIS,UKRI - AHRC,05/03/2020,T&S UK - Public Transport,Public and Stakeholder Engagement,Corporate Travel Management (North) Ltd,98708843,139.80,T&S UK - Public Transport
BEIS,UKRI - AHRC,05/03/2020,T&S UK - Public Transport,Public and Stakeholder Engagement,Corporate Travel Management (North) Ltd,98708843,0.25,T&S UK - Public Transport
BEIS,UKRI - AHRC,05/03/2020,T&S UK - Public Transport,Public and Stakeholder Engagement,Corporate Travel Management (North) Ltd,98708843,8.30,T&S UK - Public Transport
BEIS,UKRI - AHRC,05/03/2020,T&S UK - Public Transport,Public and Stakeholder Engagement,Corporate Travel Management (North) Ltd,98708843,0.25,T&S UK - Public Transport
BEIS,UKRI - AHRC,05/03/2020,T&S UK - Public Transport,Public and Stakeholder Engagement,Corporate Travel Management (North) Ltd,98708843,161.90,T&S UK - Public Transport
BEIS,UKRI - AHRC,05/03/2020,T&S UK - Public Transport,Public and Stakeholder Engagement,Corporate Travel Management (North) Ltd,98708843,0.25,T&S UK - Public Transport
BEIS,UKRI - AHRC,05/03/2020,T&S UK - Public Transport,Public and Stakeholder Engagement,Corporate Travel Management (North) Ltd,98708843,119.70,T&S UK - Public Transport
BEIS,UKRI - AHRC,05/03/2020,T&S UK - Public Transport,Public and Stakeholder Engagement,Corporate Travel Management (North) Ltd,98708843,0.25,T&S UK - Public Transport
BEIS,UKRI - AHRC,05/03/2020,T&S UK - Public Transport,Public and Stakeholder Engagement,Corporate Travel Management (North) Ltd,98708843,38.00,T&S UK - Public Transport
BEIS,UKRI - AHRC,05/03/2020,T&S UK - Public Transport,SMT,Corporate Travel Management (North) Ltd,98708843,0.25,T&S UK - Public Transport
BEIS,UKRI - AHRC,05/03/2020,T&S UK - Public Transport,SMT,Corporate Travel Management (North) Ltd,98708843,46.90,T&S UK - Public Transport
BEIS,UKRI - AHRC,05/03/2020,T&S UK - Public Transport,SMT,Corporate Travel Management (North) Ltd,98708843,0.25,T&S UK - Public Transport
BEIS,UKRI - AHRC,05/03/2020,T&S UK - Public Transport,SMT,Corporate Travel Management (North) Ltd,98708843,51.50,T&S UK - Public Transport
BEIS,UKRI - AHRC,05/03/2020,T&S UK - Public Transport,SMT,Corporate Travel Management (North) Ltd,98708843,0.25,T&S UK - Public Transport
BEIS,UKRI - AHRC,05/03/2020,T&S UK - Public Transport,SMT,Corporate Travel Management (North) Ltd,98708843,53.10,T&S UK - Public Transport
BEIS,UKRI - AHRC,05/03/2020,T&S UK - Public Transport,SMT,Corporate Travel Management (North) Ltd,98708843,0.25,T&S UK - Public Transport
BEIS,UKRI - AHRC,05/03/2020,T&S UK - Public Transport,SMT,Corporate Travel Management (North) Ltd,98708843,71.00,T&S UK - Public Transport
BEIS,UKRI - AHRC,05/03/2020,T&S UK - Public Transport,SMT,Corporate Travel Management (North) Ltd,98708843,0.25,T&S UK - Public Transport
BEIS,UKRI - AHRC,05/03/2020,T&S UK - Public Transport,SMT,Corporate Travel Management (North) Ltd,98708843,73.10,T&S UK - Public Transport
BEIS,UKRI - AHRC,05/03/2020,T&S UK - Public Transport,SMT,Corporate Travel Management (North) Ltd,98708843,0.25,T&S UK - Public Transport
BEIS,UKRI - AHRC,05/03/2020,T&S UK - Public Transport,SMT,Corporate Travel Management (North) Ltd,98708843,156.50,T&S UK - Public Transport
BEIS,UKRI - AHRC,05/03/2020,T&S UK - Public Transport,SMT,Corporate Travel Management (North) Ltd,98708843,0.25,T&S UK - Public Transport
BEIS,UKRI - AHRC,05/03/2020,T&S UK - Public Transport,SMT,Corporate Travel Management (North) Ltd,98708843,124.10,T&S UK - Public Transport
BEIS,UKRI - AHRC,05/03/2020,T&S UK - Public Transport,SMT,Corporate Travel Management (North) Ltd,98708843,0.50,T&S UK - Public Transport
BEIS,UKRI - AHRC,05/03/2020,T&S UK - Public Transport,SMT,Corporate Travel Management (North) Ltd,98708843,34.70,T&S UK - Public Transport
BEIS,UKRI - AHRC,05/03/2020,T&S UK - Public Transport,SMT,Corporate Travel Management (North) Ltd,98708843,46.90,T&S UK - Public Transport
BEIS,UKRI - AHRC,05/03/2020,T&S UK - Public Transport,SMT,Corporate Travel Management (North) Ltd,98708843,0.25,T&S UK - Public Transport
BEIS,UKRI - AHRC,05/03/2020,T&S UK - Public Transport,SMT,Corporate Travel Management (North) Ltd,98708843,93.40,T&S UK - Public Transport
BEIS,UKRI - AHRC,05/03/2020,T&S UK - Public Transport,SMT,Corporate Travel Management (North) Ltd,98708843,0.25,T&S UK - Public Transport
BEIS,UKRI - AHRC,05/03/2020,T&S UK - Public Transport,SMT,Corporate Travel Management (North) Ltd,98708843,128.60,T&S UK - Public Transport
BEIS,UKRI - AHRC,05/03/2020,T&S UK - Public Transport,SMT,Corporate Travel Management (North) Ltd,98708843,0.25,T&S UK - Public Transport
BEIS,UKRI - AHRC,05/03/2020,T&S UK - Public Transport,SMT,Corporate Travel Management (North) Ltd,98708843,360.00,T&S UK - Public Transport
BEIS,UKRI - AHRC,05/03/2020,T&S UK - Public Transport,SMT,Corporate Travel Management (North) Ltd,98708843,10.00,T&S UK - Public Transport
BEIS,UKRI - AHRC,05/03/2020,T&S UK - Public Transport,SMT,Corporate Travel Management (North) Ltd,98708843,-61.10,T&S UK - Public Transport
BEIS,UKRI - AHRC,05/03/2020,T&S UK - Public Transport,SMT,Corporate Travel Management (North) Ltd,98708843,5.00,T&S UK - Public Transport
BEIS,UKRI - AHRC,05/03/2020,T&S UK - Public Transport,SMT,Corporate Travel Management (North) Ltd,98708843,-60.20,T&S UK - Public Transport
BEIS,UKRI - AHRC,05/03/2020,T&S UK - Public Transport,SMT,Corporate Travel Management (North) Ltd,98708843,0.50,T&S UK - Public Transport
BEIS,UKRI - AHRC,05/03/2020,T&S UK - Public Transport,SMT,Corporate Travel Management (North) Ltd,98708843,32.60,T&S UK - Public Transport
BEIS,UKRI - AHRC,05/03/2020,T&S UK - Public Transport,SMT,Corporate Travel Management (North) Ltd,98708843,29.60,T&S UK - Public Transport
BEIS,UKRI - AHRC,05/03/2020,T&S UK - Public Transport,SMT,Corporate Travel Management (North) Ltd,98708843,0.25,T&S UK - Public Transport
BEIS,UKRI - AHRC,05/03/2020,T&S UK - Public Transport,SMT,Corporate Travel Management (North) Ltd,98708843,100.60,T&S UK - Public Transport
BEIS,UKRI - AHRC,05/03/2020,T&S UK - Public Transport,SMT,Corporate Travel Management (North) Ltd,98708843,0.25,T&S UK - Public Transport
BEIS,UKRI - AHRC,05/03/2020,T&S UK - Public Transport,SMT,Corporate Travel Management (North) Ltd,98708843,142.00,T&S UK - Public Transport
BEIS,UKRI - AHRC,05/03/2020,T&S UK - Public Transport,SMT,Corporate Travel Management (North) Ltd,98708843,0.25,T&S UK - Public Transport
BEIS,UKRI - AHRC,05/03/2020,T&S UK - Public Transport,SMT,Corporate Travel Management (North) Ltd,98708843,124.10,T&S UK - Public Transport
BEIS,UKRI - AHRC,05/03/2020,T&S UK - Public Transport,SMT,Corporate Travel Management (North) Ltd,98708843,0.25,T&S UK - Public Transport
BEIS,UKRI - AHRC,05/03/2020,T&S UK - Public Transport,SMT,Corporate Travel Management (North) Ltd,98708843,142.00,T&S UK - Public Transport
BEIS,UKRI - AHRC,05/03/2020,T&S UK - Public Transport,SMT,Corporate Travel Management (North) Ltd,98708843,0.25,T&S UK - Public Transport
BEIS,UKRI - AHRC,05/03/2020,T&S UK - Public Transport,SMT,Corporate Travel Management (North) Ltd,98708843,73.10,T&S UK - Public Transport
BEIS,UKRI - AHRC,05/03/2020,T&S UK - Public Transport,SMT,Corporate Travel Management (North) Ltd,98708843,0.50,T&S UK - Public Transport
BEIS,UKRI - AHRC,05/03/2020,T&S UK - Public Transport,SMT,Corporate Travel Management (North) Ltd,98708843,34.70,T&S UK - Public Transport
BEIS,UKRI - AHRC,05/03/2020,T&S UK - Public Transport,SMT,Corporate Travel Management (North) Ltd,98708843,105.90,T&S UK - Public Transport
BEIS,UKRI - AHRC,05/03/2020,T&S UK - Public Transport,SMT,Corporate Travel Management (North) Ltd,98708843,10.00,T&S UK - Public Transport
BEIS,UKRI - AHRC,05/03/2020,T&S UK - Public Transport,SMT,Corporate Travel Management (North) Ltd,98708843,-61.60,T&S UK - Public Transport
BEIS,UKRI - AHRC,05/03/2020,T&S UK - Public Transport,SMT,Corporate Travel Management (North) Ltd,98708843,-46.00,T&S UK - Public Transport
BEIS,UKRI - AHRC,05/03/2020,T&S UK - Public Transport,SMT,Corporate Travel Management (North) Ltd,98708843,0.50,T&S UK - Public Transport
BEIS,UKRI - AHRC,05/03/2020,T&S UK - Public Transport,SMT,Corporate Travel Management (North) Ltd,98708843,23.70,T&S UK - Public Transport
BEIS,UKRI - AHRC,05/03/2020,T&S UK - Public Transport,SMT,Corporate Travel Management (North) Ltd,98708843,112.10,T&S UK - Public Transport
BEIS,UKRI - AHRC,05/03/2020,T&S UK - Public Transport,SMT,Corporate Travel Management (North) Ltd,98708843,0.25,T&S UK - Public Transport
BEIS,UKRI - AHRC,05/03/2020,T&S UK - Public Transport,SMT,Corporate Travel Management (North) Ltd,98708843,68.50,T&S UK - Public Transport
BEIS,UKRI - AHRC,05/03/2020,T&S UK - Public Transport,SMT,Corporate Travel Management (North) Ltd,98708843,0.25,T&S UK - Public Transport
BEIS,UKRI - AHRC,05/03/2020,T&S UK - Public Transport,SMT,Corporate Travel Management (North) Ltd,98708843,136.80,T&S UK - Public Transport
BEIS,UKRI - AHRC,05/03/2020,T&S UK - Public Transport,SMT,Corporate Travel Management (North) Ltd,98708843,0.25,T&S UK - Public Transport
BEIS,UKRI - AHRC,05/03/2020,T&S UK - Public Transport,SMT,Corporate Travel Management (North) Ltd,98708843,73.10,T&S UK - Public Transport
BEIS,UKRI - AHRC,05/03/2020,T&S UK - Public Transport,SMT,Corporate Travel Management (North) Ltd,98708843,0.25,T&S UK - Public Transport
BEIS,UKRI - AHRC,05/03/2020,T&S UK - Public Transport,SMT,Corporate Travel Management (North) Ltd,98708843,119.50,T&S UK - Public Transport
BEIS,UKRI - AHRC,05/03/2020,T&S UK - Public Transport,SMT,Corporate Travel Management (North) Ltd,98708843,0.50,T&S UK - Public Transport
BEIS,UKRI - AHRC,05/03/2020,T&S UK - Public Transport,SMT,Corporate Travel Management (North) Ltd,98708843,52.00,T&S UK - Public Transport
BEIS,UKRI - AHRC,05/03/2020,T&S UK - Public Transport,SMT,Corporate Travel Management (North) Ltd,98708843,29.60,T&S UK - Public Transport
BEIS,UKRI - AHRC,05/03/2020,T&S UK - Public Transport,SMT,Corporate Travel Management (North) Ltd,98708843,0.25,T&S UK - Public Transport
BEIS,UKRI - AHRC,05/03/2020,T&S UK - Public Transport,SMT,Corporate Travel Management (North) Ltd,98708843,142.00,T&S UK - Public Transport
BEIS,UKRI - AHRC,05/03/2020,T&S UK - Public Transport,SMT,Corporate Travel Management (North) Ltd,98708843,0.25,T&S UK - Public Transport
BEIS,UKRI - AHRC,05/03/2020,T&S UK - Public Transport,SMT,Corporate Travel Management (North) Ltd,98708843,73.30,T&S UK - Public Transport
BEIS,UKRI - AHRC,05/03/2020,T&S UK - Public Transport,SMT,Corporate Travel Management (North) Ltd,98708843,0.25,T&S UK - Public Transport
BEIS,UKRI - AHRC,05/03/2020,T&S UK - Public Transport,SMT,Corporate Travel Management (North) Ltd,98708843,34.70,T&S UK - Public Transport
BEIS,UKRI - AHRC,05/03/2020,T&S UK - Public Transport,SMT,Corporate Travel Management (North) Ltd,98708843,0.25,T&S UK - Public Transport
BEIS,UKRI - AHRC,05/03/2020,T&S UK - Public Transport,SMT,Corporate Travel Management (North) Ltd,98708843,16.80,T&S UK - Public Transport
BEIS,UKRI - AHRC,05/03/2020,T&S UK - Public Transport,SMT,Corporate Travel Management (North) Ltd,98708843,5.00,T&S UK - Public Transport
BEIS,UKRI - AHRC,05/03/2020,T&S UK - Public Transport,SMT,Corporate Travel Management (North) Ltd,98708843,-64.00,T&S UK - Public Transport
BEIS,UKRI - AHRC,05/03/2020,T&S UK - Public Transport,SMT,Corporate Travel Management (North) Ltd,98708843,5.00,T&S UK - Public Transport
BEIS,UKRI - AHRC,05/03/2020,T&S UK - Public Transport,SMT,Corporate Travel Management (North) Ltd,98708843,-64.00,T&S UK - Public Transport
BEIS,UKRI - AHRC,05/03/2020,T&S UK - Public Transport,SMT,Corporate Travel Management (North) Ltd,98708843,5.00,T&S UK - Public Transport
BEIS,UKRI - AHRC,05/03/2020,T&S UK - Public Transport,SMT,Corporate Travel Management (North) Ltd,98708843,-64.00,T&S UK - Public Transport
BEIS,UKRI - AHRC,05/03/2020,T&S UK - Public Transport,SMT,Corporate Travel Management (North) Ltd,98708843,0.25,T&S UK - Public Transport
BEIS,UKRI - AHRC,05/03/2020,T&S UK - Public Transport,SMT,Corporate Travel Management (North) Ltd,98708843,32.60,T&S UK - Public Transport
BEIS,UKRI - AHRC,05/03/2020,T&S UK - Public Transport,SMT,Corporate Travel Management (North) Ltd,98708843,5.00,T&S UK - Public Transport
BEIS,UKRI - AHRC,05/03/2020,T&S UK - Public Transport,SMT,Corporate Travel Management (North) Ltd,98708843,-84.00,T&S UK - Public Transport
BEIS,UKRI - AHRC,05/03/2020,T&S UK - Public Transport,SMT,Corporate Travel Management (North) Ltd,98708843,0.25,T&S UK - Public Transport
BEIS,UKRI - AHRC,05/03/2020,T&S UK - Public Transport,SMT,Corporate Travel Management (North) Ltd,98708843,119.50,T&S UK - Public Transport
BEIS,UKRI - AHRC,05/03/2020,T&S UK - Public Transport,SMT,Corporate Travel Management (North) Ltd,98708843,0.25,T&S UK - Public Transport
BEIS,UKRI - AHRC,05/03/2020,T&S UK - Public Transport,SMT,Corporate Travel Management (North) Ltd,98708843,71.00,T&S UK - Public Transport
BEIS,UKRI - AHRC,05/03/2020,T&S UK - Public Transport,SMT,Corporate Travel Management (North) Ltd,98708843,0.25,T&S UK - Public Transport
BEIS,UKRI - AHRC,05/03/2020,T&S UK - Public Transport,SMT,Corporate Travel Management (North) Ltd,98708843,19.60,T&S UK - Public Transport
BEIS,UKRI - AHRC,05/03/2020,T&S UK - Public Transport,SMT,Corporate Travel Management (North) Ltd,98708843,0.25,T&S UK - Public Transport
BEIS,UKRI - AHRC,05/03/2020,T&S UK - Public Transport,SMT,Corporate Travel Management (North) Ltd,98708843,46.90,T&S UK - Public Transport
BEIS,UKRI - AHRC,05/03/2020,T&S UK - Public Transport,Skills Strategy,Corporate Travel Management (North) Ltd,98708843,5.00,T&S UK - Public Transport
BEIS,UKRI - AHRC,05/03/2020,T&S UK - Public Transport,Skills Strategy,Corporate Travel Management (North) Ltd,98708843,-157.95,T&S UK - Public Transport
BEIS,UKRI - AHRC,05/03/2020,T&S UK - Public Transport,Skills Strategy,Corporate Travel Management (North) Ltd,98708843,0.50,T&S UK - Public Transport
BEIS,UKRI - AHRC,05/03/2020,T&S UK - Public Transport,Skills Strategy,Corporate Travel Management (North) Ltd,98708843,115.10,T&S UK - Public Transport
BEIS,UKRI - AHRC,05/03/2020,T&S UK - Public Transport,Skills Strategy,Corporate Travel Management (North) Ltd,98708843,71.50,T&S UK - Public Transport
BEIS,UKRI - AHRC,05/03/2020,T&S UK - Public Transport,Skills Strategy,Corporate Travel Management (North) Ltd,98708843,0.25,T&S UK - Public Transport
BEIS,UKRI - AHRC,05/03/2020,T&S UK - Public Transport,Skills Strategy,Corporate Travel Management (North) Ltd,98708843,280.05,T&S UK - Public Transport
BEIS,UKRI - AHRC,05/03/2020,T&S UK - Public Transport,Skills Strategy,Corporate Travel Management (North) Ltd,98708843,0.25,T&S UK - Public Transport
BEIS,UKRI - AHRC,05/03/2020,T&S UK - Public Transport,Skills Strategy,Corporate Travel Management (North) Ltd,98708843,127.20,T&S UK - Public Transport
BEIS,UKRI - AHRC,05/03/2020,T&S UK - Public Transport,Skills Strategy,Corporate Travel Management (North) Ltd,98708843,0.25,T&S UK - Public Transport
BEIS,UKRI - AHRC,05/03/2020,T&S UK - Public Transport,Skills Strategy,Corporate Travel Management (North) Ltd,98708843,79.50,T&S UK - Public Transport
BEIS,UKRI - AHRC,05/03/2020,T&S UK - Public Transport,Skills Strategy,Corporate Travel Management (North) Ltd,98708843,0.25,T&S UK - Public Transport
BEIS,UKRI - AHRC,05/03/2020,T&S UK - Public Transport,Skills Strategy,Corporate Travel Management (North) Ltd,98708843,16.10,T&S UK - Public Transport
BEIS,UKRI - AHRC,05/03/2020,T&S UK - Public Transport,Skills Strategy,Corporate Travel Management (North) Ltd,98708843,0.25,T&S UK - Public Transport
BEIS,UKRI - AHRC,05/03/2020,T&S UK - Public Transport,Skills Strategy,Corporate Travel Management (North) Ltd,98708843,16.10,T&S UK - Public Transport
BEIS,UKRI - AHRC,05/03/2020,T&S UK - Public Transport,Skills Strategy,Corporate Travel Management (North) Ltd,98708843,0.25,T&S UK - Public Transport
BEIS,UKRI - AHRC,05/03/2020,T&S UK - Public Transport,Skills Strategy,Corporate Travel Management (North) Ltd,98708843,8.30,T&S UK - Public Transport
BEIS,UKRI - AHRC,05/03/2020,T&S UK - Public Transport,Skills Strategy,Corporate Travel Management (North) Ltd,98708843,0.25,T&S UK - Public Transport
BEIS,UKRI - AHRC,05/03/2020,T&S UK - Public Transport,Skills Strategy,Corporate Travel Management (North) Ltd,98708843,157.00,T&S UK - Public Transport
BEIS,UKRI - AHRC,05/03/2020,T&S UK - Public Transport,Skills Strategy,Corporate Travel Management (North) Ltd,98708843,0.25,T&S UK - Public Transport
BEIS,UKRI - AHRC,05/03/2020,T&S UK - Public Transport,Skills Strategy,Corporate Travel Management (North) Ltd,98708843,12.20,T&S UK - Public Transport
BEIS,UKRI - AHRC,05/03/2020,T&S UK - Public Transport,Skills Strategy,Corporate Travel Management (North) Ltd,98708843,0.25,T&S UK - Public Transport
BEIS,UKRI - AHRC,05/03/2020,T&S UK - Public Transport,Skills Strategy,Corporate Travel Management (North) Ltd,98708843,155.65,T&S UK - Public Transport
BEIS,UKRI - AHRC,05/03/2020,T&S UK - Public Transport,Skills Strategy,Corporate Travel Management (North) Ltd,98708843,0.25,T&S UK - Public Transport
BEIS,UKRI - AHRC,05/03/2020,T&S UK - Public Transport,Skills Strategy,Corporate Travel Management (North) Ltd,98708843,167.40,T&S UK - Public Transport
BEIS,UKRI - AHRC,05/03/2020,T&S UK - Public Transport,Skills Strategy,Corporate Travel Management (North) Ltd,98708843,0.25,T&S UK - Public Transport
BEIS,UKRI - AHRC,05/03/2020,T&S UK - Public Transport,Skills Strategy,Corporate Travel Management (North) Ltd,98708843,94.00,T&S UK - Public Transport
BEIS,UKRI - AHRC,05/03/2020,T&S UK - Public Transport,Skills Strategy,Corporate Travel Management (North) Ltd,98708843,0.50,T&S UK - Public Transport
BEIS,UKRI - AHRC,05/03/2020,T&S UK - Public Transport,Skills Strategy,Corporate Travel Management (North) Ltd,98708843,94.00,T&S UK - Public Transport
BEIS,UKRI - AHRC,05/03/2020,T&S UK - Public Transport,Skills Strategy,Corporate Travel Management (North) Ltd,98708843,94.00,T&S UK - Public Transport
BEIS,UKRI - AHRC,05/03/2020,T&S UK - Public Transport,Skills Strategy,Corporate Travel Management (North) Ltd,98708843,0.25,T&S UK - Public Transport
BEIS,UKRI - AHRC,05/03/2020,T&S UK - Public Transport,Skills Strategy,Corporate Travel Management (North) Ltd,98708843,12.20,T&S UK - Public Transport
BEIS,UKRI - AHRC,05/03/2020,T&S UK - Public Transport,Skills Strategy,Corporate Travel Management (North) Ltd,98708843,0.25,T&S UK - Public Transport
BEIS,UKRI - AHRC,05/03/2020,T&S UK - Public Transport,Skills Strategy,Corporate Travel Management (North) Ltd,98708843,12.20,T&S UK - Public Transport
BEIS,UKRI - AHRC,05/03/2020,T&S UK - Public Transport,Skills Strategy,Corporate Travel Management (North) Ltd,98708843,0.25,T&S UK - Public Transport
BEIS,UKRI - AHRC,05/03/2020,T&S UK - Public Transport,Skills Strategy,Corporate Travel Management (North) Ltd,98708843,17.00,T&S UK - Public Transport
BEIS,UKRI - AHRC,05/03/2020,T&S UK - Subsistence,Operations,Unspecified,98709045,30.45,T&S UK - Subsistence
BEIS,UKRI - AHRC,05/03/2020,T&S UK - Public Transport,Skills Strategy,Unspecified,98709046,29.35,T&S UK - Public Transport
BEIS,UKRI - AHRC,05/03/2020,T&S UK - Subsistence,Skills Strategy,Unspecified,98709046,20.20,T&S UK - Subsistence
BEIS,UKRI - AHRC,05/03/2020,T&S UK - Parking Tolls Congestion Charges,Operations,Unspecified,98709047,14.00,T&S UK - Parking Tolls Congestion Charges
BEIS,UKRI - AHRC,05/03/2020,T&S UK - Subsistence,Operations,Unspecified,98709047,23.00,T&S UK - Subsistence
BEIS,UKRI - AHRC,06/03/2020,Non-staff travel and subsistance,Skills Strategy,Non Employee Expenses Supplier,98712994,149.30,Non-staff travel and subsistance
BEIS,UKRI - AHRC,06/03/2020,Non-staff travel and subsistance,Skills Strategy,Non Employee Expenses Supplier,98712995,109.15,Non-staff travel and subsistance
BEIS,UKRI - AHRC,06/03/2020,Non-staff travel and subsistance,Operations,Non Employee Expenses Supplier,98712996,316.30,Non-staff travel and subsistance
BEIS,UKRI - AHRC,06/03/2020,Research Grant Expenditure,Industrial Strategy Challenge Fund (ISCF) - Creative Clusters,"Royal Holloway, University of London",98713099,120000.00,Research Grant Expenditure
BEIS,UKRI - AHRC,09/03/2020,Non-staff travel and subsistance,Operations,Non Employee Expenses Supplier,98709531,49.90,Non-staff travel and subsistance
BEIS,UKRI - AHRC,09/03/2020,Non-staff travel and subsistance,Operations,Non Employee Expenses Supplier,98709532,85.30,Non-staff travel and subsistance
BEIS,UKRI - AHRC,09/03/2020,Non-staff travel and subsistance,Operations,Non Employee Expenses Supplier,98709533,23.40,Non-staff travel and subsistance
BEIS,UKRI - AHRC,09/03/2020,Non-staff travel and subsistance,Operations,Non Employee Expenses Supplier,98709534,188.98,Non-staff travel and subsistance
BEIS,UKRI - AHRC,09/03/2020,Non-staff travel and subsistance,Skills Strategy,Non Employee Expenses Supplier,98709535,39.10,Non-staff travel and subsistance
BEIS,UKRI - AHRC,09/03/2020,Non-staff travel and subsistance,Skills Strategy,Non Employee Expenses Supplier,98709536,44.25,Non-staff travel and subsistance
BEIS,UKRI - AHRC,09/03/2020,Non-staff travel and subsistance,Funds for International Collaboration (FIC 20 US),Non Employee Expenses Supplier,98709537,835.62,Non-staff travel and subsistance
BEIS,UKRI - AHRC,09/03/2020,Non-staff travel and subsistance,Operations,Non Employee Expenses Supplier,98709539,197.64,Non-staff travel and subsistance
BEIS,UKRI - AHRC,09/03/2020,Non-staff travel and subsistance,Operations,Non Employee Expenses Supplier,98709540,184.43,Non-staff travel and subsistance
BEIS,UKRI - AHRC,09/03/2020,Non-staff travel and subsistance,Operations,Non Employee Expenses Supplier,98709541,19.10,Non-staff travel and subsistance
BEIS,UKRI - AHRC,09/03/2020,Contract Staff,PSU Project Office,Alexander Mann Solutions Ltd,98713362,2795.58,Contract Staff
BEIS,UKRI - AHRC,09/03/2020,Contract Staff,PSU JRS,Alexander Mann Solutions Ltd,98714124,3423.12,Contract Staff
BEIS,UKRI - AHRC,10/03/2020,Recharges From Councils - General,Public and Stakeholder Engagement,UKRI - Biotechnology and Biological Sciences Research Council (BBSRC),98703111,19220.00,Recharges From Councils - General
BEIS,UKRI - AHRC,10/03/2020,Consultancy Services,HR,Everwell Occupational Health Ltd,98706710,420.00,Consultancy Services
BEIS,UKRI - AHRC,10/03/2020,Other Programme Costs,Commissioned Research,UKRI - Engineering & Physical Sciences Research Council,98713257,3750.00,Other Programme Costs
BEIS,UKRI - AHRC,10/03/2020,T&S UK - Other Charges,Operations,Unspecified,98715810,3.09,T&S UK - Other Charges
BEIS,UKRI - AHRC,10/03/2020,T&S UK - Subsistence,Operations,Unspecified,98715810,27.60,T&S UK - Subsistence
BEIS,UKRI - AHRC,11/03/2020,Corporate Events,Executive Office,Benugo Ltd,98715866,2341.38,Corporate Events
BEIS,UKRI - AHRC,11/03/2020,Non-staff travel and subsistance,Skills Strategy,Non Employee Expenses Supplier,98716533,150.40,Non-staff travel and subsistance
BEIS,UKRI - AHRC,11/03/2020,Non-staff travel and subsistance,Skills Strategy,Non Employee Expenses Supplier,98716534,83.65,Non-staff travel and subsistance
BEIS,UKRI - AHRC,11/03/2020,Non-staff travel and subsistance,Skills Strategy,Non Employee Expenses Supplier,98716535,228.29,Non-staff travel and subsistance
BEIS,UKRI - AHRC,11/03/2020,Non-staff travel and subsistance,Operations,Non Employee Expenses Supplier,98716536,8.85,Non-staff travel and subsistance
BEIS,UKRI - AHRC,11/03/2020,Non-staff travel and subsistance,Operations,Non Employee Expenses Supplier,98716537,61.90,Non-staff travel and subsistance
BEIS,UKRI - AHRC,11/03/2020,Non-staff travel and subsistance,Operations,Non Employee Expenses Supplier,98716538,179.30,Non-staff travel and subsistance
BEIS,UKRI - AHRC,11/03/2020,Non-staff travel and subsistance,Skills Strategy,Non Employee Expenses Supplier,98716539,50.50,Non-staff travel and subsistance
BEIS,UKRI - AHRC,11/03/2020,T&S UK - Public Transport,International Development and Area Studies,Unspecified,98716677,17.20,T&S UK - Public Transport
BEIS,UKRI - AHRC,11/03/2020,T&S UK - Subsistence,DFID Collaboratice Humanitarian Protection Research Programme,Unspecified,98716677,25.00,T&S UK - Subsistence
BEIS,UKRI - AHRC,11/03/2020,T&S UK - Subsistence,International Development and Area Studies,Unspecified,98716677,5.00,T&S UK - Subsistence
BEIS,UKRI - AHRC,12/03/2020,Non-staff travel and subsistance,Operations,Non Employee Expenses Supplier,98719043,23.10,Non-staff travel and subsistance
BEIS,UKRI - AHRC,12/03/2020,Non-staff travel and subsistance,Operations,Non Employee Expenses Supplier,98719044,14.50,Non-staff travel and subsistance
BEIS,UKRI - AHRC,12/03/2020,NI Payable Salaries,Balance Sheet,HM Revenue & Customs,98720093,58603.55,NI Payable Salaries
BEIS,UKRI - AHRC,12/03/2020,PAYE Payable Salaries,Balance Sheet,HM Revenue & Customs,98720094,43511.86,PAYE Payable Salaries
BEIS,UKRI - AHRC,12/03/2020,Student Loans,Balance Sheet,HM Revenue & Customs,98720095,5219.00,Student Loans
BEIS,UKRI - AHRC,12/03/2020,Apprenticeship Levy,Corporate Services,HM Revenue & Customs,98720096,1558.00,Apprenticeship Levy
BEIS,UKRI - AHRC,12/03/2020,T&S UK - Mileage,SMT,Unspecified,98720157,18.00,T&S UK - Mileage
BEIS,UKRI - AHRC,13/03/2020,Consultancy Services,HR,Everwell Occupational Health Ltd,98718839,420.00,Consultancy Services
BEIS,UKRI - AHRC,13/03/2020,Non-staff travel and subsistance,"History, Heritage, Languages and Literature",Non Employee Expenses Supplier,98719253,276.80,Non-staff travel and subsistance
BEIS,UKRI - AHRC,13/03/2020,Non-staff travel and subsistance,Operations,Non Employee Expenses Supplier,98719254,93.60,Non-staff travel and subsistance
BEIS,UKRI - AHRC,13/03/2020,Non-staff travel and subsistance,Digital Arts and Humanities and Creative Industries,Non Employee Expenses Supplier,98719255,191.00,Non-staff travel and subsistance
BEIS,UKRI - AHRC,13/03/2020,Union Deductions,Balance Sheet,PCS Union,98720098,82.27,Union Deductions
BEIS,UKRI - AHRC,13/03/2020,Ees Pension Deductions - JSS,Balance Sheet,RCPS Pension,98720099,20694.30,Ees Pension Deductions - JSS
BEIS,UKRI - AHRC,13/03/2020,Ers Pension Deductions - JSS,Balance Sheet,RCPS Pension,98720100,94677.75,Ers Pension Deductions - JSS
BEIS,UKRI - AHRC,13/03/2020,Partnership Pension Deductions,Balance Sheet,Scottish Widows,98720101,322.85,Partnership Pension Deductions
BEIS,UKRI - AHRC,13/03/2020,Ers Pension Deductions - JSS,Balance Sheet,Cabinet Office RM Shared Services,98720102,12.83,Ers Pension Deductions - JSS
BEIS,UKRI - AHRC,13/03/2020,Ees Pension Deductions - MyCSP,Balance Sheet,Cabinet Office RM Shared Services,98720103,6390.43,Ees Pension Deductions - MyCSP
BEIS,UKRI - AHRC,13/03/2020,Ers Pension Deductions - MyCSP,Balance Sheet,Cabinet Office RM Shared Services,98720104,33354.64,Ers Pension Deductions - MyCSP
BEIS,UKRI - AHRC,13/03/2020,Ees Pension Deductions - MRC,Balance Sheet,UKRI - Medical Research Council,98720105,134.32,Ees Pension Deductions - MRC
BEIS,UKRI - AHRC,13/03/2020,Ers Pension Deductions - MRC,Balance Sheet,UKRI - Medical Research Council,98720106,309.96,Ers Pension Deductions - MRC
BEIS,UKRI - AHRC,13/03/2020,T&S UK - Other Charges,GCRF - Programme Delivery,Unspecified,98720816,60.00,T&S UK - Other Charges
BEIS,UKRI - AHRC,13/03/2020,T&S UK - Subsistence,GCRF - Programme Delivery,Unspecified,98720816,30.00,T&S UK - Subsistence
BEIS,UKRI - AHRC,16/03/2020,Hospitality,Public and Stakeholder Engagement,In Any Event UK Solutions Ltd,98679228,21583.63,Hospitality
BEIS,UKRI - AHRC,16/03/2020,Data Storage & Recovery,Corporate Services,Iron Mountain (UK) PLC,98683929,60.49,Data Storage & Recovery
BEIS,UKRI - AHRC,16/03/2020,Non-staff travel and subsistance,SMT,Non Employee Expenses Supplier,98720827,159.29,Non-staff travel and subsistance
BEIS,UKRI - AHRC,16/03/2020,Non-staff travel and subsistance,SMT,Non Employee Expenses Supplier,98720828,267.90,Non-staff travel and subsistance
BEIS,UKRI - AHRC,16/03/2020,Voluntary Deductions,Balance Sheet,Chargive,98720863,570.83,Voluntary Deductions
BEIS,UKRI - AHRC,16/03/2020,Contract Staff,PSU Project Office,Alexander Mann Solutions Ltd,98721024,2795.58,Contract Staff
BEIS,UKRI - AHRC,16/03/2020,T&S UK - Accommodation,SMT,Unspecified,98721181,142.00,T&S UK - Accommodation
BEIS,UKRI - AHRC,16/03/2020,T&S UK - Subsistence,SMT,Unspecified,98721181,89.42,T&S UK - Subsistence
BEIS,UKRI - AHRC,16/03/2020,T&S UK - Subsistence,SMT,Unspecified,98721181,5.00,T&S UK - Subsistence
BEIS,UKRI - AHRC,16/03/2020,T&S UK - Subsistence,SMT,Unspecified,98721181,9.15,T&S UK - Subsistence
BEIS,UKRI - AHRC,16/03/2020,T&S UK - Mileage,Digital Arts and Humanities and Creative Industries,Unspecified,98721182,76.95,T&S UK - Mileage
BEIS,UKRI - AHRC,16/03/2020,T&S UK - Other Charges,Digital Arts and Humanities and Creative Industries,Unspecified,98721182,10.75,T&S UK - Other Charges
BEIS,UKRI - AHRC,16/03/2020,T&S UK - Parking Tolls Congestion Charges,Digital Arts and Humanities and Creative Industries,Unspecified,98721182,12.80,T&S UK - Parking Tolls Congestion Charges
BEIS,UKRI - AHRC,16/03/2020,T&S UK - Public Transport,Digital Arts and Humanities and Creative Industries,Unspecified,98721182,17.00,T&S UK - Public Transport
BEIS,UKRI - AHRC,16/03/2020,T&S UK - Subsistence,Digital Arts and Humanities and Creative Industries,Unspecified,98721182,62.90,T&S UK - Subsistence
BEIS,UKRI - AHRC,16/03/2020,T&S UK - Subsistence,Digital Arts and Humanities and Creative Industries,Unspecified,98721182,25.00,T&S UK - Subsistence
BEIS,UKRI - AHRC,16/03/2020,T&S UK - Public Transport,Digital Arts and Humanities and Creative Industries,Unspecified,98721184,10.37,T&S UK - Public Transport
BEIS,UKRI - AHRC,16/03/2020,T&S UK - Subsistence,Digital Arts and Humanities and Creative Industries,Unspecified,98721184,12.00,T&S UK - Subsistence
BEIS,UKRI - AHRC,16/03/2020,T&S UK - Subsistence,Digital Arts and Humanities and Creative Industries,Unspecified,98721184,9.55,T&S UK - Subsistence
BEIS,UKRI - AHRC,16/03/2020,T&S UK - Subsistence,Digital Arts and Humanities and Creative Industries,Unspecified,98721184,5.00,T&S UK - Subsistence
BEIS,UKRI - AHRC,16/03/2020,T&S UK - Subsistence,Digital Arts and Humanities and Creative Industries,Unspecified,98721184,2.55,T&S UK - Subsistence
BEIS,UKRI - AHRC,16/03/2020,T&S UK - Other Charges,Health and Environmental Humanities,Unspecified,98721185,2.30,T&S UK - Other Charges
BEIS,UKRI - AHRC,16/03/2020,T&S UK - Parking Tolls Congestion Charges,Health and Environmental Humanities,Unspecified,98721185,6.60,T&S UK - Parking Tolls Congestion Charges
BEIS,UKRI - AHRC,16/03/2020,T&S UK - Subsistence,Health and Environmental Humanities,Unspecified,98721185,10.55,T&S UK - Subsistence
BEIS,UKRI - AHRC,16/03/2020,T&S UK - Subsistence,Health and Environmental Humanities,Unspecified,98721185,10.00,T&S UK - Subsistence
BEIS,UKRI - AHRC,16/03/2020,Non-staff travel and subsistance,Operations,Non Employee Expenses Supplier,98722217,140.80,Non-staff travel and subsistance
BEIS,UKRI - AHRC,16/03/2020,Non-staff travel and subsistance,Operations,Non Employee Expenses Supplier,98722218,107.85,Non-staff travel and subsistance
BEIS,UKRI - AHRC,17/03/2020,Research Grant Expenditure,NPIF Research Talent (RCUK Innovation Fellowships),UKRI - Engineering & Physical Sciences Research Council,98719354,21690.65,Research Grant Expenditure
BEIS,UKRI - AHRC,17/03/2020,Research Grant Expenditure,NPIF Research Talent (RCUK Innovation Fellowships),UKRI - Engineering & Physical Sciences Research Council,98719355,13937.96,Research Grant Expenditure
BEIS,UKRI - AHRC,17/03/2020,Research Grant Expenditure,NPIF Research Talent (RCUK Innovation Fellowships),UKRI - Engineering & Physical Sciences Research Council,98719357,12445.06,Research Grant Expenditure
BEIS,UKRI - AHRC,17/03/2020,Research Grant Expenditure,NPIF Research Talent (RCUK Innovation Fellowships),UKRI - Engineering & Physical Sciences Research Council,98719360,7063.36,Research Grant Expenditure
BEIS,UKRI - AHRC,17/03/2020,Research Grant Expenditure,Digital Economy,UKRI - Engineering & Physical Sciences Research Council,98719485,25804.83,Research Grant Expenditure
BEIS,UKRI - AHRC,17/03/2020,Research Grant Expenditure,Digital Economy,UKRI - Engineering & Physical Sciences Research Council,98719487,25889.87,Research Grant Expenditure
BEIS,UKRI - AHRC,17/03/2020,Research Grant Expenditure,Digital Economy,UKRI - Engineering & Physical Sciences Research Council,98719505,6253.79,Research Grant Expenditure
BEIS,UKRI - AHRC,17/03/2020,Research Grant Expenditure,Digital Economy,UKRI - Engineering & Physical Sciences Research Council,98719508,10570.27,Research Grant Expenditure
BEIS,UKRI - AHRC,17/03/2020,Research Grant Expenditure,Digital Economy,UKRI - Engineering & Physical Sciences Research Council,98719512,17763.22,Research Grant Expenditure
